﻿Department Family,Entity,Date,Expense Type,Expense Area,Supplier,Transaction Number,Amount,Item Description
BEIS,UKRI - AHRC,01/06/2022,Research Consumables,AI&Design,Unspecified,99671715,6750.00,Research Consumables
BEIS,UKRI - AHRC,01/06/2022,Research Consumables,AI&Design,Unspecified,99713960,6750.00,Research Consumables
BEIS,UKRI - AHRC,01/06/2022,T&S UK - Subsistence,SMT,Unspecified,99729784,20.20,T&S UK - Subsistence
BEIS,UKRI - AHRC,01/06/2022,T&S UK - Mileage,AHRC - Creative Industries,Unspecified,99736259,59.40,T&S UK - Mileage
BEIS,UKRI - AHRC,01/06/2022,T&S UK - Other Charges,Executive Office,Unspecified,99739833,10.93,T&S UK - Other Charges
BEIS,UKRI - AHRC,01/06/2022,T&S UK - Subsistence,International Partnership and Engagement,Unspecified,99739834,21.68,T&S UK - Subsistence
BEIS,UKRI - AHRC,01/06/2022,T&S UK - Subsistence,International Partnership and Engagement,Unspecified,99739834,11.49,T&S UK - Subsistence
BEIS,UKRI - AHRC,06/06/2022,Fees (Including College Members),Executive Office,Unspecified,99739110,500.00,Fees (Including College Members)
BEIS,UKRI - AHRC,06/06/2022,Fees (Including College Members),Executive Office,Unspecified,99739111,500.00,Fees (Including College Members)
BEIS,UKRI - AHRC,06/06/2022,Non-staff travel and subsistance,International Partnership and Engagement,Unspecified,99739112,12.20,Non-staff travel and subsistance
BEIS,UKRI - AHRC,06/06/2022,Non-staff travel and subsistance,International Partnership and Engagement,Unspecified,99739113,96.99,Non-staff travel and subsistance
BEIS,UKRI - AHRC,06/06/2022,Non-staff travel and subsistance,Executive Office,Unspecified,99739114,100.26,Non-staff travel and subsistance
BEIS,UKRI - AHRC,06/06/2022,Fees (Including College Members),Executive Office,Unspecified,99739115,500.00,Fees (Including College Members)
BEIS,UKRI - AHRC,06/06/2022,Fees (Including College Members),Executive Office,Unspecified,99739116,170.00,Fees (Including College Members)
BEIS,UKRI - AHRC,06/06/2022,T&S UK - Public Transport,Operations,Unspecified,99740140,2.50,T&S UK - Public Transport
BEIS,UKRI - AHRC,06/06/2022,T&S UK - Subsistence,Operations,Unspecified,99740140,35.14,T&S UK - Subsistence
BEIS,UKRI - AHRC,08/06/2022,Unspecified,Infrastruture Roadmap,Alexander Mann Solutions Ltd,99744051,1732.66,Legal & Professional Services
BEIS,UKRI - AHRC,08/06/2022,T&S UK - Subsistence,SMT,Unspecified,99744227,18.10,T&S UK - Subsistence
BEIS,UKRI - AHRC,08/06/2022,T&S UK - Subsistence,SMT,Unspecified,99744227,15.25,T&S UK - Subsistence
BEIS,UKRI - AHRC,09/06/2022,T&S Overseas - Accommodation,"History, Heritage, Languages and Literature",Unspecified,99745335,41.58,T&S Overseas - Accommodation
BEIS,UKRI - AHRC,09/06/2022,T&S Overseas - Public Transport,"History, Heritage, Languages and Literature",Unspecified,99745335,21.00,T&S Overseas - Public Transport
BEIS,UKRI - AHRC,09/06/2022,T&S Overseas - Public Transport,"History, Heritage, Languages and Literature",Unspecified,99745335,22.12,T&S Overseas - Public Transport
BEIS,UKRI - AHRC,09/06/2022,T&S Overseas - Subsistence,"History, Heritage, Languages and Literature",Unspecified,99745335,15.00,T&S Overseas - Subsistence
BEIS,UKRI - AHRC,09/06/2022,T&S Overseas - Subsistence,"History, Heritage, Languages and Literature",Unspecified,99745335,40.49,T&S Overseas - Subsistence
BEIS,UKRI - AHRC,09/06/2022,T&S Overseas - Subsistence,"History, Heritage, Languages and Literature",Unspecified,99745335,7.30,T&S Overseas - Subsistence
BEIS,UKRI - AHRC,10/06/2022,Unspecified,Infrastruture Roadmap,Alexander Mann Solutions Ltd,99691971,2079.18,Legal & Professional Services
BEIS,UKRI - AHRC,10/06/2022,Non-staff travel and subsistance,Executive Office,Unspecified,99745580,108.88,Non-staff travel and subsistance
BEIS,UKRI - AHRC,10/06/2022,Fees (Including College Members),Executive Office,Unspecified,99745581,500.00,Fees (Including College Members)
BEIS,UKRI - AHRC,10/06/2022,Non-staff travel and subsistance,Executive Office,Unspecified,99745582,68.75,Non-staff travel and subsistance
BEIS,UKRI - AHRC,10/06/2022,Non-staff travel and subsistance,Executive Office,Unspecified,99745583,255.65,Non-staff travel and subsistance
BEIS,UKRI - AHRC,10/06/2022,Fees (Including College Members),Executive Office,Unspecified,99745613,500.00,Fees (Including College Members)
BEIS,UKRI - AHRC,10/06/2022,Fees (Including College Members),Operations,Unspecified,99745614,230.00,Fees (Including College Members)
BEIS,UKRI - AHRC,10/06/2022,Fees (Including College Members),Operations,Unspecified,99745615,170.00,Fees (Including College Members)
BEIS,UKRI - AHRC,10/06/2022,T&S UK - Public Transport,Strategy and Evidence,Unspecified,99748720,26.82,T&S UK - Public Transport
BEIS,UKRI - AHRC,10/06/2022,T&S UK - Subsistence,Strategy and Evidence,Unspecified,99748720,49.90,T&S UK - Subsistence
BEIS,UKRI - AHRC,10/06/2022,T&S UK - Mileage,AI&Design,Unspecified,99748721,45.90,T&S UK - Mileage
BEIS,UKRI - AHRC,10/06/2022,T&S UK - Parking Tolls Congestion Charges,AI&Design,Unspecified,99748721,6.80,T&S UK - Parking Tolls Congestion Charges
BEIS,UKRI - AHRC,13/06/2022,Non-staff travel and subsistance,International Partnership and Engagement,Unspecified,99747904,148.50,Non-staff travel and subsistance
BEIS,UKRI - AHRC,14/06/2022,Unspecified,Balance Sheet,HM Revenue & Customs,99744838,68795.59,NI Payable Salaries
BEIS,UKRI - AHRC,14/06/2022,Unspecified,Balance Sheet,HM Revenue & Customs,99744839,45614.83,PAYE Payable Salaries
BEIS,UKRI - AHRC,14/06/2022,Unspecified,Balance Sheet,HM Revenue & Customs,99744840,5166.00,Student Loans
BEIS,UKRI - AHRC,14/06/2022,Unspecified,Corporate Services,HM Revenue & Customs,99744841,1694.00,Apprenticeship Levy
BEIS,UKRI - AHRC,14/06/2022,International Subscriptions,SMT,Arma (UK) Ltd,99750153,2697.00,International Subscriptions
BEIS,UKRI - AHRC,14/06/2022,Unspecified,Infrastruture Roadmap,Alexander Mann Solutions Ltd,99750199,2772.24,Legal & Professional Services
BEIS,UKRI - AHRC,14/06/2022,Fees (Including College Members),Operations,Unspecified,99750833,85.00,Fees (Including College Members)
BEIS,UKRI - AHRC,14/06/2022,Non-staff travel and subsistance,Operations,Unspecified,99750834,42.00,Non-staff travel and subsistance
BEIS,UKRI - AHRC,14/06/2022,T&S UK - Other Charges,International Partnership and Engagement,Unspecified,99751036,13.99,T&S UK - Other Charges
BEIS,UKRI - AHRC,14/06/2022,T&S UK - Subsistence,HERA JRP Project,Unspecified,99751036,12.99,T&S UK - Subsistence
BEIS,UKRI - AHRC,14/06/2022,T&S UK - Subsistence,Infrastructure Fund - CoSTAR,Unspecified,99751037,8.00,T&S UK - Subsistence
BEIS,UKRI - AHRC,14/06/2022,T&S UK - Subsistence,Infrastructure Fund - CoSTAR,Unspecified,99751037,6.53,T&S UK - Subsistence
BEIS,UKRI - AHRC,14/06/2022,T&S UK - Subsistence,Infrastructure Fund - CoSTAR,Unspecified,99751037,5.00,T&S UK - Subsistence
BEIS,UKRI - AHRC,15/06/2022,Voluntary Deductions,Balance Sheet,Swindon Office Sports and Social Club,99744842,26.00,Voluntary Deductions
BEIS,UKRI - AHRC,15/06/2022,Union Deductions,Balance Sheet,PCS Union,99744843,58.67,Union Deductions
BEIS,UKRI - AHRC,15/06/2022,Unspecified,Balance Sheet,Unspecified,99744844,9585.40,Ees Pension Deductions - JSS
BEIS,UKRI - AHRC,15/06/2022,Unspecified,Balance Sheet,Unspecified,99744845,40697.48,Ers Pension Deductions - JSS
BEIS,UKRI - AHRC,15/06/2022,Unspecified,Balance Sheet,Scottish Widows,99744846,193.37,Partnership Pension Deductions
BEIS,UKRI - AHRC,15/06/2022,Unspecified,Balance Sheet,Cabinet Office RM Shared Services,99744847,11821.95,Ees Pension Deductions - MyCSP
BEIS,UKRI - AHRC,15/06/2022,Unspecified,Balance Sheet,Cabinet Office RM Shared Services,99744848,53793.40,Ers Pension Deductions - MyCSP
BEIS,UKRI - AHRC,15/06/2022,Unspecified,Balance Sheet,Unspecified,99744849,146.38,Ees Pension Deductions - MRC
BEIS,UKRI - AHRC,15/06/2022,Unspecified,Balance Sheet,Unspecified,99744850,360.32,Ers Pension Deductions - MRC
BEIS,UKRI - AHRC,15/06/2022,Nursery Deductions,Balance Sheet,UKRI - Engineering & Physical Sciences Research Council,99744851,1013.00,Nursery Deductions
BEIS,UKRI - AHRC,15/06/2022,Non-staff travel and subsistance,International Partnership and Engagement,Unspecified,99749464,211.00,Non-staff travel and subsistance
BEIS,UKRI - AHRC,15/06/2022,Research Consumables,AI&Design,Unspecified,99751032,9000.00,Research Consumables
BEIS,UKRI - AHRC,15/06/2022,Non-staff travel and subsistance,Secretariat,Corporate Travel Management (North) Ltd,99751254,0.80,Non-staff travel and subsistance
BEIS,UKRI - AHRC,15/06/2022,Non-staff travel and subsistance,Secretariat,Corporate Travel Management (North) Ltd,99751254,178.50,Non-staff travel and subsistance
BEIS,UKRI - AHRC,15/06/2022,Non-staff travel and subsistance,Secretariat,Corporate Travel Management (North) Ltd,99751254,0.80,Non-staff travel and subsistance
BEIS,UKRI - AHRC,15/06/2022,Non-staff travel and subsistance,Secretariat,Corporate Travel Management (North) Ltd,99751254,327.50,Non-staff travel and subsistance
BEIS,UKRI - AHRC,15/06/2022,Non-staff travel and subsistance,Secretariat,Corporate Travel Management (North) Ltd,99751254,0.32,Non-staff travel and subsistance
BEIS,UKRI - AHRC,15/06/2022,T&S Overseas - Flights,SMT,Corporate Travel Management (North) Ltd,99751254,2.50,T&S Overseas - Flights
BEIS,UKRI - AHRC,15/06/2022,T&S Overseas - Flights,SMT,Corporate Travel Management (North) Ltd,99751254,108.57,T&S Overseas - Flights
BEIS,UKRI - AHRC,15/06/2022,T&S Overseas - Other Charges,SMT,Corporate Travel Management (North) Ltd,99751254,2.50,T&S Overseas - Other Charges
BEIS,UKRI - AHRC,15/06/2022,T&S Overseas - Other Charges,SMT,Corporate Travel Management (North) Ltd,99751254,66.59,T&S Overseas - Other Charges
BEIS,UKRI - AHRC,15/06/2022,T&S UK - Accommodation,AHRC - Creative Industries,Corporate Travel Management (North) Ltd,99751254,0.80,T&S UK - Accommodation
BEIS,UKRI - AHRC,15/06/2022,T&S UK - Accommodation,AHRC - Creative Industries,Corporate Travel Management (North) Ltd,99751254,298.50,T&S UK - Accommodation
BEIS,UKRI - AHRC,15/06/2022,T&S UK - Accommodation,AHRC - Creative Industries,Corporate Travel Management (North) Ltd,99751254,0.16,T&S UK - Accommodation
BEIS,UKRI - AHRC,15/06/2022,T&S UK - Accommodation,AI&Design,Corporate Travel Management (North) Ltd,99751254,0.80,T&S UK - Accommodation
BEIS,UKRI - AHRC,15/06/2022,T&S UK - Accommodation,AI&Design,Corporate Travel Management (North) Ltd,99751254,285.00,T&S UK - Accommodation
BEIS,UKRI - AHRC,15/06/2022,T&S UK - Accommodation,AI&Design,Corporate Travel Management (North) Ltd,99751254,0.80,T&S UK - Accommodation
BEIS,UKRI - AHRC,15/06/2022,T&S UK - Accommodation,AI&Design,Corporate Travel Management (North) Ltd,99751254,357.50,T&S UK - Accommodation
BEIS,UKRI - AHRC,15/06/2022,T&S UK - Accommodation,AI&Design,Corporate Travel Management (North) Ltd,99751254,0.32,T&S UK - Accommodation
BEIS,UKRI - AHRC,15/06/2022,T&S UK - Accommodation,Executive Office,Corporate Travel Management (North) Ltd,99751254,0.80,T&S UK - Accommodation
BEIS,UKRI - AHRC,15/06/2022,T&S UK - Accommodation,Executive Office,Corporate Travel Management (North) Ltd,99751254,41.99,T&S UK - Accommodation
BEIS,UKRI - AHRC,15/06/2022,T&S UK - Accommodation,Executive Office,Corporate Travel Management (North) Ltd,99751254,0.16,T&S UK - Accommodation
BEIS,UKRI - AHRC,15/06/2022,T&S UK - Accommodation,Industrial Strategy Challenge Fund (ISCF) - Creative Clusters,Corporate Travel Management (North) Ltd,99751254,0.80,T&S UK - Accommodation
BEIS,UKRI - AHRC,15/06/2022,T&S UK - Accommodation,Industrial Strategy Challenge Fund (ISCF) - Creative Clusters,Corporate Travel Management (North) Ltd,99751254,178.00,T&S UK - Accommodation
BEIS,UKRI - AHRC,15/06/2022,T&S UK - Accommodation,Industrial Strategy Challenge Fund (ISCF) - Creative Clusters,Corporate Travel Management (North) Ltd,99751254,0.16,T&S UK - Accommodation
BEIS,UKRI - AHRC,15/06/2022,T&S UK - Accommodation,Infrastruture Roadmap,Corporate Travel Management (North) Ltd,99751254,0.80,T&S UK - Accommodation
BEIS,UKRI - AHRC,15/06/2022,T&S UK - Accommodation,Infrastruture Roadmap,Corporate Travel Management (North) Ltd,99751254,139.50,T&S UK - Accommodation
BEIS,UKRI - AHRC,15/06/2022,T&S UK - Accommodation,Infrastruture Roadmap,Corporate Travel Management (North) Ltd,99751254,0.80,T&S UK - Accommodation
BEIS,UKRI - AHRC,15/06/2022,T&S UK - Accommodation,Infrastruture Roadmap,Corporate Travel Management (North) Ltd,99751254,148.20,T&S UK - Accommodation
BEIS,UKRI - AHRC,15/06/2022,T&S UK - Accommodation,Infrastruture Roadmap,Corporate Travel Management (North) Ltd,99751254,0.32,T&S UK - Accommodation
BEIS,UKRI - AHRC,15/06/2022,T&S UK - Accommodation,International Partnership and Engagement,Corporate Travel Management (North) Ltd,99751254,0.80,T&S UK - Accommodation
BEIS,UKRI - AHRC,15/06/2022,T&S UK - Accommodation,International Partnership and Engagement,Corporate Travel Management (North) Ltd,99751254,145.80,T&S UK - Accommodation
BEIS,UKRI - AHRC,15/06/2022,T&S UK - Accommodation,International Partnership and Engagement,Corporate Travel Management (North) Ltd,99751254,0.80,T&S UK - Accommodation
BEIS,UKRI - AHRC,15/06/2022,T&S UK - Accommodation,International Partnership and Engagement,Corporate Travel Management (North) Ltd,99751254,130.00,T&S UK - Accommodation
BEIS,UKRI - AHRC,15/06/2022,T&S UK - Accommodation,International Partnership and Engagement,Corporate Travel Management (North) Ltd,99751254,0.32,T&S UK - Accommodation
BEIS,UKRI - AHRC,15/06/2022,T&S UK - Accommodation,SMT,Corporate Travel Management (North) Ltd,99751254,0.80,T&S UK - Accommodation
BEIS,UKRI - AHRC,15/06/2022,T&S UK - Accommodation,SMT,Corporate Travel Management (North) Ltd,99751254,149.40,T&S UK - Accommodation
BEIS,UKRI - AHRC,15/06/2022,T&S UK - Accommodation,SMT,Corporate Travel Management (North) Ltd,99751254,0.80,T&S UK - Accommodation
BEIS,UKRI - AHRC,15/06/2022,T&S UK - Accommodation,SMT,Corporate Travel Management (North) Ltd,99751254,187.00,T&S UK - Accommodation
BEIS,UKRI - AHRC,15/06/2022,T&S UK - Accommodation,SMT,Corporate Travel Management (North) Ltd,99751254,0.32,T&S UK - Accommodation
BEIS,UKRI - AHRC,15/06/2022,T&S UK - Accommodation,Secretariat,Corporate Travel Management (North) Ltd,99751254,0.80,T&S UK - Accommodation
BEIS,UKRI - AHRC,15/06/2022,T&S UK - Accommodation,Secretariat,Corporate Travel Management (North) Ltd,99751254,178.50,T&S UK - Accommodation
BEIS,UKRI - AHRC,15/06/2022,T&S UK - Accommodation,Secretariat,Corporate Travel Management (North) Ltd,99751254,0.16,T&S UK - Accommodation
BEIS,UKRI - AHRC,15/06/2022,T&S UK - Flights,AHRC - Creative Industries,Corporate Travel Management (North) Ltd,99751254,2.50,T&S UK - Flights
BEIS,UKRI - AHRC,15/06/2022,T&S UK - Flights,AHRC - Creative Industries,Corporate Travel Management (North) Ltd,99751254,367.10,T&S UK - Flights
BEIS,UKRI - AHRC,15/06/2022,T&S UK - Flights,Executive Office,Corporate Travel Management (North) Ltd,99751254,2.50,T&S UK - Flights
BEIS,UKRI - AHRC,15/06/2022,T&S UK - Flights,Executive Office,Corporate Travel Management (North) Ltd,99751254,389.98,T&S UK - Flights
BEIS,UKRI - AHRC,15/06/2022,T&S UK - Flights,Industrial Strategy Challenge Fund (ISCF) - Creative Clusters,Corporate Travel Management (North) Ltd,99751254,1.25,T&S UK - Flights
BEIS,UKRI - AHRC,15/06/2022,T&S UK - Flights,Industrial Strategy Challenge Fund (ISCF) - Creative Clusters,Corporate Travel Management (North) Ltd,99751254,106.95,T&S UK - Flights
BEIS,UKRI - AHRC,15/06/2022,T&S UK - Flights,Industrial Strategy Challenge Fund (ISCF) - Creative Clusters,Corporate Travel Management (North) Ltd,99751254,1.25,T&S UK - Flights
BEIS,UKRI - AHRC,15/06/2022,T&S UK - Flights,Industrial Strategy Challenge Fund (ISCF) - Creative Clusters,Corporate Travel Management (North) Ltd,99751254,106.95,T&S UK - Flights
BEIS,UKRI - AHRC,15/06/2022,T&S UK - Public Transport,AI&Design,Corporate Travel Management (North) Ltd,99751254,0.25,T&S UK - Public Transport
BEIS,UKRI - AHRC,15/06/2022,T&S UK - Public Transport,AI&Design,Corporate Travel Management (North) Ltd,99751254,63.60,T&S UK - Public Transport
BEIS,UKRI - AHRC,15/06/2022,T&S UK - Public Transport,AI&Design,Corporate Travel Management (North) Ltd,99751254,0.25,T&S UK - Public Transport
BEIS,UKRI - AHRC,15/06/2022,T&S UK - Public Transport,AI&Design,Corporate Travel Management (North) Ltd,99751254,90.90,T&S UK - Public Transport
BEIS,UKRI - AHRC,15/06/2022,T&S UK - Public Transport,AI&Design,Corporate Travel Management (North) Ltd,99751254,2.60,T&S UK - Public Transport
BEIS,UKRI - AHRC,15/06/2022,T&S UK - Public Transport,AI&Design,Corporate Travel Management (North) Ltd,99751254,215.40,T&S UK - Public Transport
BEIS,UKRI - AHRC,15/06/2022,T&S UK - Public Transport,Executive Office,Corporate Travel Management (North) Ltd,99751254,0.25,T&S UK - Public Transport
BEIS,UKRI - AHRC,15/06/2022,T&S UK - Public Transport,Executive Office,Corporate Travel Management (North) Ltd,99751254,90.10,T&S UK - Public Transport
BEIS,UKRI - AHRC,15/06/2022,T&S UK - Public Transport,Executive Office,Corporate Travel Management (North) Ltd,99751254,0.25,T&S UK - Public Transport
BEIS,UKRI - AHRC,15/06/2022,T&S UK - Public Transport,Executive Office,Corporate Travel Management (North) Ltd,99751254,103.30,T&S UK - Public Transport
BEIS,UKRI - AHRC,15/06/2022,T&S UK - Public Transport,Executive Office,Corporate Travel Management (North) Ltd,99751254,0.25,T&S UK - Public Transport
BEIS,UKRI - AHRC,15/06/2022,T&S UK - Public Transport,Executive Office,Corporate Travel Management (North) Ltd,99751254,38.00,T&S UK - Public Transport
BEIS,UKRI - AHRC,15/06/2022,T&S UK - Public Transport,GCRF - Programme Delivery,Corporate Travel Management (North) Ltd,99751254,0.25,T&S UK - Public Transport
BEIS,UKRI - AHRC,15/06/2022,T&S UK - Public Transport,GCRF - Programme Delivery,Corporate Travel Management (North) Ltd,99751254,86.70,T&S UK - Public Transport
BEIS,UKRI - AHRC,15/06/2022,T&S UK - Public Transport,HERA JRP Project,Corporate Travel Management (North) Ltd,99751254,0.25,T&S UK - Public Transport
BEIS,UKRI - AHRC,15/06/2022,T&S UK - Public Transport,HERA JRP Project,Corporate Travel Management (North) Ltd,99751254,8.40,T&S UK - Public Transport
BEIS,UKRI - AHRC,15/06/2022,T&S UK - Public Transport,HERA JRP Project,Corporate Travel Management (North) Ltd,99751254,0.25,T&S UK - Public Transport
BEIS,UKRI - AHRC,15/06/2022,T&S UK - Public Transport,HERA JRP Project,Corporate Travel Management (North) Ltd,99751254,129.30,T&S UK - Public Transport
BEIS,UKRI - AHRC,15/06/2022,T&S UK - Public Transport,ISCF Creative Clusters,Corporate Travel Management (North) Ltd,99751254,0.25,T&S UK - Public Transport
BEIS,UKRI - AHRC,15/06/2022,T&S UK - Public Transport,ISCF Creative Clusters,Corporate Travel Management (North) Ltd,99751254,167.60,T&S UK - Public Transport
BEIS,UKRI - AHRC,15/06/2022,T&S UK - Public Transport,Industrial Strategy Challenge Fund (ISCF) - Creative Clusters,Corporate Travel Management (North) Ltd,99751254,0.25,T&S UK - Public Transport
BEIS,UKRI - AHRC,15/06/2022,T&S UK - Public Transport,Industrial Strategy Challenge Fund (ISCF) - Creative Clusters,Corporate Travel Management (North) Ltd,99751254,193.50,T&S UK - Public Transport
BEIS,UKRI - AHRC,15/06/2022,T&S UK - Public Transport,Infrastructure Fund - CoSTAR,Corporate Travel Management (North) Ltd,99751254,0.25,T&S UK - Public Transport
BEIS,UKRI - AHRC,15/06/2022,T&S UK - Public Transport,Infrastructure Fund - CoSTAR,Corporate Travel Management (North) Ltd,99751254,198.70,T&S UK - Public Transport
BEIS,UKRI - AHRC,15/06/2022,T&S UK - Public Transport,Infrastructure Fund - CoSTAR,Corporate Travel Management (North) Ltd,99751254,0.25,T&S UK - Public Transport
BEIS,UKRI - AHRC,15/06/2022,T&S UK - Public Transport,Infrastructure Fund - CoSTAR,Corporate Travel Management (North) Ltd,99751254,198.70,T&S UK - Public Transport
BEIS,UKRI - AHRC,15/06/2022,T&S UK - Public Transport,Infrastruture Roadmap,Corporate Travel Management (North) Ltd,99751254,0.25,T&S UK - Public Transport
BEIS,UKRI - AHRC,15/06/2022,T&S UK - Public Transport,Infrastruture Roadmap,Corporate Travel Management (North) Ltd,99751254,66.90,T&S UK - Public Transport
BEIS,UKRI - AHRC,15/06/2022,T&S UK - Public Transport,Infrastruture Roadmap,Corporate Travel Management (North) Ltd,99751254,0.25,T&S UK - Public Transport
BEIS,UKRI - AHRC,15/06/2022,T&S UK - Public Transport,Infrastruture Roadmap,Corporate Travel Management (North) Ltd,99751254,183.00,T&S UK - Public Transport
BEIS,UKRI - AHRC,15/06/2022,T&S UK - Public Transport,Infrastruture Roadmap,Corporate Travel Management (North) Ltd,99751254,0.50,T&S UK - Public Transport
BEIS,UKRI - AHRC,15/06/2022,T&S UK - Public Transport,Infrastruture Roadmap,Corporate Travel Management (North) Ltd,99751254,16.10,T&S UK - Public Transport
BEIS,UKRI - AHRC,15/06/2022,T&S UK - Public Transport,Infrastruture Roadmap,Corporate Travel Management (North) Ltd,99751254,130.80,T&S UK - Public Transport
BEIS,UKRI - AHRC,15/06/2022,T&S UK - Public Transport,International Development and Area Studies,Corporate Travel Management (North) Ltd,99751254,5.00,T&S UK - Public Transport
BEIS,UKRI - AHRC,15/06/2022,T&S UK - Public Transport,International Development and Area Studies,Corporate Travel Management (North) Ltd,99751254,-13.10,T&S UK - Public Transport
BEIS,UKRI - AHRC,15/06/2022,T&S UK - Public Transport,International Partnership and Engagement,Corporate Travel Management (North) Ltd,99751254,0.25,T&S UK - Public Transport
BEIS,UKRI - AHRC,15/06/2022,T&S UK - Public Transport,International Partnership and Engagement,Corporate Travel Management (North) Ltd,99751254,41.20,T&S UK - Public Transport
BEIS,UKRI - AHRC,15/06/2022,T&S UK - Public Transport,International Partnership and Engagement,Corporate Travel Management (North) Ltd,99751254,0.25,T&S UK - Public Transport
BEIS,UKRI - AHRC,15/06/2022,T&S UK - Public Transport,International Partnership and Engagement,Corporate Travel Management (North) Ltd,99751254,31.60,T&S UK - Public Transport
BEIS,UKRI - AHRC,15/06/2022,T&S UK - Public Transport,International Partnership and Engagement,Corporate Travel Management (North) Ltd,99751254,0.25,T&S UK - Public Transport
BEIS,UKRI - AHRC,15/06/2022,T&S UK - Public Transport,International Partnership and Engagement,Corporate Travel Management (North) Ltd,99751254,9.00,T&S UK - Public Transport
BEIS,UKRI - AHRC,15/06/2022,T&S UK - Public Transport,Public Engagement,Corporate Travel Management (North) Ltd,99751254,0.25,T&S UK - Public Transport
BEIS,UKRI - AHRC,15/06/2022,T&S UK - Public Transport,Public Engagement,Corporate Travel Management (North) Ltd,99751254,13.10,T&S UK - Public Transport
BEIS,UKRI - AHRC,15/06/2022,T&S UK - Public Transport,Public Engagement,Corporate Travel Management (North) Ltd,99751254,0.25,T&S UK - Public Transport
BEIS,UKRI - AHRC,15/06/2022,T&S UK - Public Transport,Public Engagement,Corporate Travel Management (North) Ltd,99751254,163.40,T&S UK - Public Transport
BEIS,UKRI - AHRC,15/06/2022,T&S UK - Public Transport,Public Engagement,Corporate Travel Management (North) Ltd,99751254,0.25,T&S UK - Public Transport
BEIS,UKRI - AHRC,15/06/2022,T&S UK - Public Transport,Public Engagement,Corporate Travel Management (North) Ltd,99751254,229.70,T&S UK - Public Transport
BEIS,UKRI - AHRC,15/06/2022,T&S UK - Public Transport,Public and Stakeholder Engagement,Corporate Travel Management (North) Ltd,99751254,0.25,T&S UK - Public Transport
BEIS,UKRI - AHRC,15/06/2022,T&S UK - Public Transport,Public and Stakeholder Engagement,Corporate Travel Management (North) Ltd,99751254,8.90,T&S UK - Public Transport
BEIS,UKRI - AHRC,15/06/2022,T&S UK - Public Transport,SMT,Corporate Travel Management (North) Ltd,99751254,0.25,T&S UK - Public Transport
BEIS,UKRI - AHRC,15/06/2022,T&S UK - Public Transport,SMT,Corporate Travel Management (North) Ltd,99751254,98.70,T&S UK - Public Transport
BEIS,UKRI - AHRC,15/06/2022,T&S UK - Public Transport,SMT,Corporate Travel Management (North) Ltd,99751254,0.25,T&S UK - Public Transport
BEIS,UKRI - AHRC,15/06/2022,T&S UK - Public Transport,SMT,Corporate Travel Management (North) Ltd,99751254,57.20,T&S UK - Public Transport
BEIS,UKRI - AHRC,15/06/2022,T&S UK - Public Transport,SMT,Corporate Travel Management (North) Ltd,99751254,0.50,T&S UK - Public Transport
BEIS,UKRI - AHRC,15/06/2022,T&S UK - Public Transport,SMT,Corporate Travel Management (North) Ltd,99751254,136.60,T&S UK - Public Transport
BEIS,UKRI - AHRC,15/06/2022,T&S UK - Public Transport,SMT,Corporate Travel Management (North) Ltd,99751254,0.25,T&S UK - Public Transport
BEIS,UKRI - AHRC,15/06/2022,T&S UK - Public Transport,SMT,Corporate Travel Management (North) Ltd,99751254,3.50,T&S UK - Public Transport
BEIS,UKRI - AHRC,15/06/2022,T&S UK - Public Transport,SMT,Corporate Travel Management (North) Ltd,99751254,0.25,T&S UK - Public Transport
BEIS,UKRI - AHRC,15/06/2022,T&S UK - Public Transport,SMT,Corporate Travel Management (North) Ltd,99751254,173.60,T&S UK - Public Transport
BEIS,UKRI - AHRC,15/06/2022,T&S UK - Public Transport,SMT,Corporate Travel Management (North) Ltd,99751254,0.25,T&S UK - Public Transport
BEIS,UKRI - AHRC,15/06/2022,T&S UK - Public Transport,SMT,Corporate Travel Management (North) Ltd,99751254,152.10,T&S UK - Public Transport
BEIS,UKRI - AHRC,15/06/2022,T&S UK - Public Transport,SMT,Corporate Travel Management (North) Ltd,99751254,0.25,T&S UK - Public Transport
BEIS,UKRI - AHRC,15/06/2022,T&S UK - Public Transport,SMT,Corporate Travel Management (North) Ltd,99751254,151.20,T&S UK - Public Transport
BEIS,UKRI - AHRC,15/06/2022,T&S UK - Public Transport,SMT,Corporate Travel Management (North) Ltd,99751254,0.25,T&S UK - Public Transport
BEIS,UKRI - AHRC,15/06/2022,T&S UK - Public Transport,SMT,Corporate Travel Management (North) Ltd,99751254,16.00,T&S UK - Public Transport
BEIS,UKRI - AHRC,15/06/2022,T&S UK - Public Transport,SMT,Corporate Travel Management (North) Ltd,99751254,0.25,T&S UK - Public Transport
BEIS,UKRI - AHRC,15/06/2022,T&S UK - Public Transport,SMT,Corporate Travel Management (North) Ltd,99751254,50.90,T&S UK - Public Transport
BEIS,UKRI - AHRC,15/06/2022,T&S UK - Public Transport,SMT,Corporate Travel Management (North) Ltd,99751254,0.25,T&S UK - Public Transport
BEIS,UKRI - AHRC,15/06/2022,T&S UK - Public Transport,SMT,Corporate Travel Management (North) Ltd,99751254,51.20,T&S UK - Public Transport
BEIS,UKRI - AHRC,15/06/2022,T&S UK - Public Transport,SMT,Corporate Travel Management (North) Ltd,99751254,0.25,T&S UK - Public Transport
BEIS,UKRI - AHRC,15/06/2022,T&S UK - Public Transport,SMT,Corporate Travel Management (North) Ltd,99751254,32.20,T&S UK - Public Transport
BEIS,UKRI - AHRC,15/06/2022,T&S UK - Public Transport,SMT,Corporate Travel Management (North) Ltd,99751254,0.25,T&S UK - Public Transport
BEIS,UKRI - AHRC,15/06/2022,T&S UK - Public Transport,SMT,Corporate Travel Management (North) Ltd,99751254,6.20,T&S UK - Public Transport
BEIS,UKRI - AHRC,15/06/2022,T&S UK - Public Transport,SMT,Corporate Travel Management (North) Ltd,99751254,0.75,T&S UK - Public Transport
BEIS,UKRI - AHRC,15/06/2022,T&S UK - Public Transport,SMT,Corporate Travel Management (North) Ltd,99751254,14.00,T&S UK - Public Transport
BEIS,UKRI - AHRC,15/06/2022,T&S UK - Public Transport,SMT,Corporate Travel Management (North) Ltd,99751254,41.90,T&S UK - Public Transport
BEIS,UKRI - AHRC,15/06/2022,T&S UK - Public Transport,SMT,Corporate Travel Management (North) Ltd,99751254,0.25,T&S UK - Public Transport
BEIS,UKRI - AHRC,15/06/2022,T&S UK - Public Transport,SMT,Corporate Travel Management (North) Ltd,99751254,57.20,T&S UK - Public Transport
BEIS,UKRI - AHRC,15/06/2022,T&S UK - Public Transport,SMT,Corporate Travel Management (North) Ltd,99751254,0.25,T&S UK - Public Transport
BEIS,UKRI - AHRC,15/06/2022,T&S UK - Public Transport,SMT,Corporate Travel Management (North) Ltd,99751254,79.70,T&S UK - Public Transport
BEIS,UKRI - AHRC,15/06/2022,T&S UK - Public Transport,SMT,Corporate Travel Management (North) Ltd,99751254,0.25,T&S UK - Public Transport
BEIS,UKRI - AHRC,15/06/2022,T&S UK - Public Transport,SMT,Corporate Travel Management (North) Ltd,99751254,123.90,T&S UK - Public Transport
BEIS,UKRI - AHRC,15/06/2022,T&S UK - Public Transport,SMT,Corporate Travel Management (North) Ltd,99751254,0.25,T&S UK - Public Transport
BEIS,UKRI - AHRC,15/06/2022,T&S UK - Public Transport,SMT,Corporate Travel Management (North) Ltd,99751254,230.50,T&S UK - Public Transport
BEIS,UKRI - AHRC,15/06/2022,T&S UK - Public Transport,SMT,Corporate Travel Management (North) Ltd,99751254,0.25,T&S UK - Public Transport
BEIS,UKRI - AHRC,15/06/2022,T&S UK - Public Transport,SMT,Corporate Travel Management (North) Ltd,99751254,39.20,T&S UK - Public Transport
BEIS,UKRI - AHRC,15/06/2022,T&S UK - Public Transport,SMT,Corporate Travel Management (North) Ltd,99751254,0.50,T&S UK - Public Transport
BEIS,UKRI - AHRC,15/06/2022,T&S UK - Public Transport,SMT,Corporate Travel Management (North) Ltd,99751254,14.00,T&S UK - Public Transport
BEIS,UKRI - AHRC,15/06/2022,T&S UK - Public Transport,SMT,Corporate Travel Management (North) Ltd,99751254,16.00,T&S UK - Public Transport
BEIS,UKRI - AHRC,15/06/2022,T&S UK - Public Transport,SMT,Corporate Travel Management (North) Ltd,99751254,0.25,T&S UK - Public Transport
BEIS,UKRI - AHRC,15/06/2022,T&S UK - Public Transport,SMT,Corporate Travel Management (North) Ltd,99751254,32.20,T&S UK - Public Transport
BEIS,UKRI - AHRC,15/06/2022,T&S UK - Public Transport,SPF- Landscape Decisions,Corporate Travel Management (North) Ltd,99751254,0.25,T&S UK - Public Transport
BEIS,UKRI - AHRC,15/06/2022,T&S UK - Public Transport,SPF- Landscape Decisions,Corporate Travel Management (North) Ltd,99751254,16.00,T&S UK - Public Transport
BEIS,UKRI - AHRC,15/06/2022,T&S UK - Public Transport,Secretariat,Corporate Travel Management (North) Ltd,99751254,0.25,T&S UK - Public Transport
BEIS,UKRI - AHRC,15/06/2022,T&S UK - Public Transport,Secretariat,Corporate Travel Management (North) Ltd,99751254,133.20,T&S UK - Public Transport
BEIS,UKRI - AHRC,15/06/2022,T&S UK - Public Transport,AI&Design,Unspecified,99751680,5.00,T&S UK - Public Transport
BEIS,UKRI - AHRC,15/06/2022,T&S UK - Subsistence,AI&Design,Unspecified,99751680,9.35,T&S UK - Subsistence
BEIS,UKRI - AHRC,16/06/2022,Unspecified,SMT,University of Oxford,99751287,26622.12,Secondments
BEIS,UKRI - AHRC,16/06/2022,Fees (Including College Members),SPF- Modern Slavery and Human Rights,Unspecified,99753359,1000.00,Fees (Including College Members)
BEIS,UKRI - AHRC,16/06/2022,Fees (Including College Members),SPF- Modern Slavery and Human Rights,Unspecified,99753360,600.00,Fees (Including College Members)
BEIS,UKRI - AHRC,16/06/2022,Fees (Including College Members),SPF- Modern Slavery and Human Rights,Unspecified,99753361,1000.00,Fees (Including College Members)
BEIS,UKRI - AHRC,16/06/2022,Fees (Including College Members),SPF- Modern Slavery and Human Rights,Unspecified,99753362,340.00,Fees (Including College Members)
BEIS,UKRI - AHRC,16/06/2022,Fees (Including College Members),SPF- Modern Slavery and Human Rights,Unspecified,99753363,340.00,Fees (Including College Members)
BEIS,UKRI - AHRC,16/06/2022,Fees (Including College Members),SPF- Modern Slavery and Human Rights,Unspecified,99753364,460.00,Fees (Including College Members)
BEIS,UKRI - AHRC,16/06/2022,Fees (Including College Members),SPF- Modern Slavery and Human Rights,Unspecified,99753365,340.00,Fees (Including College Members)
BEIS,UKRI - AHRC,16/06/2022,Fees (Including College Members),Operations,Unspecified,99753366,500.00,Fees (Including College Members)
BEIS,UKRI - AHRC,16/06/2022,Fees (Including College Members),SPF- Modern Slavery and Human Rights,Unspecified,99753367,1000.00,Fees (Including College Members)
BEIS,UKRI - AHRC,17/06/2022,T&S UK - Public Transport,International Partnership and Engagement,Unspecified,99754348,8.60,T&S UK - Public Transport
BEIS,UKRI - AHRC,20/06/2022,Fellowships,Commissioned Research,Aston University,99747788,25000.00,Fellowships
BEIS,UKRI - AHRC,20/06/2022,Fellowships,Commissioned Research,University of Nottingham,99747789,24992.74,Fellowships
BEIS,UKRI - AHRC,20/06/2022,Fellowships,Research Fellowships,National Museums of Scotland,99747790,12420.28,Fellowships
BEIS,UKRI - AHRC,20/06/2022,Fellowships,Research Fellowships,Manchester Metropolitan University,99747791,33597.31,Fellowships
BEIS,UKRI - AHRC,20/06/2022,Fellowships,Research Fellowships,University of Leicester,99747792,38847.92,Fellowships
BEIS,UKRI - AHRC,20/06/2022,Fellowships,Research Fellowships,University of Leicester,99747792,38847.98,Fellowships
BEIS,UKRI - AHRC,20/06/2022,Fellowships,Research Fellowships,University of Leeds,99747793,34897.47,Fellowships
BEIS,UKRI - AHRC,20/06/2022,Fellowships,Research Fellowships,University of Leeds,99747793,34897.45,Fellowships
BEIS,UKRI - AHRC,20/06/2022,Fellowships,Research Fellowships,University of Liverpool,99747794,29859.79,Fellowships
BEIS,UKRI - AHRC,20/06/2022,Fellowships,Research Fellowships,University of Liverpool,99747795,29862.71,Fellowships
BEIS,UKRI - AHRC,20/06/2022,Fellowships,Research Fellowships,University of Birmingham GRANT,99747796,35688.43,Fellowships
BEIS,UKRI - AHRC,20/06/2022,Fellowships,Research Fellowships,University of the West of England,99747797,25181.33,Fellowships
BEIS,UKRI - AHRC,20/06/2022,Fellowships,Research Fellowships,University of Leicester,99747798,21959.36,Fellowships
BEIS,UKRI - AHRC,20/06/2022,Fellowships,Research Fellowships,University of Edinburgh,99747799,38728.38,Fellowships
BEIS,UKRI - AHRC,20/06/2022,Fellowships,Research Fellowships,University of Edinburgh,99747799,38728.36,Fellowships
BEIS,UKRI - AHRC,20/06/2022,Fellowships,Research Fellowships,University of Leeds,99747800,35284.53,Fellowships
BEIS,UKRI - AHRC,20/06/2022,Fellowships,Research Fellowships,"Royal Holloway, University of London",99747801,27270.05,Fellowships
BEIS,UKRI - AHRC,20/06/2022,Fellowships,Public and Stakeholder Engagement,University of West London,99747802,1260.12,Fellowships
BEIS,UKRI - AHRC,20/06/2022,Fellowships,Research Fellowships,University of Brighton,99747803,42572.61,Fellowships
BEIS,UKRI - AHRC,20/06/2022,Fellowships,Research Fellowships,University of St Andrews,99747804,37065.90,Fellowships
BEIS,UKRI - AHRC,20/06/2022,Fellowships,Research Fellowships,University of Exeter,99747805,33602.12,Fellowships
BEIS,UKRI - AHRC,20/06/2022,Fellowships,Research Fellowships,University of Sheffield,99747806,30846.54,Fellowships
BEIS,UKRI - AHRC,20/06/2022,Fellowships,Research Fellowships,University of Warwick,99747807,44194.44,Fellowships
BEIS,UKRI - AHRC,20/06/2022,Fellowships,Research Fellowships,Nottingham Trent University,99747808,31703.90,Fellowships
BEIS,UKRI - AHRC,20/06/2022,Fellowships,Research Fellowships,University of York,99747809,30571.75,Fellowships
BEIS,UKRI - AHRC,20/06/2022,Fellowships,Research Fellowships,University of Lincoln,99747810,27231.80,Fellowships
BEIS,UKRI - AHRC,20/06/2022,Fellowships,Commissioned Research,The Open University,99747811,15755.00,Fellowships
BEIS,UKRI - AHRC,20/06/2022,Fellowships,Research Fellowships,Birmingham City University,99747812,21196.90,Fellowships
BEIS,UKRI - AHRC,20/06/2022,Fellowships,Research Fellowships,Queen Mary University of London,99747813,37278.70,Fellowships
BEIS,UKRI - AHRC,20/06/2022,Fellowships,Research Fellowships,Newman University,99747814,20837.28,Fellowships
BEIS,UKRI - AHRC,20/06/2022,Fellowships,Research Fellowships,University of East Anglia,99747815,28959.69,Fellowships
BEIS,UKRI - AHRC,20/06/2022,Fellowships,Research Fellowships,University of Leeds,99747816,43767.85,Fellowships
BEIS,UKRI - AHRC,20/06/2022,Fellowships,Research Fellowships,University of Glasgow,99747817,46626.54,Fellowships
BEIS,UKRI - AHRC,20/06/2022,Fellowships,Research Fellowships,Northumbria University,99747818,22894.77,Fellowships
BEIS,UKRI - AHRC,20/06/2022,Fellowships,Research Fellowships,Northumbria University,99747819,20327.28,Fellowships
BEIS,UKRI - AHRC,20/06/2022,Fellowships,Research Fellowships,University of Greenwich,99747820,29311.34,Fellowships
BEIS,UKRI - AHRC,20/06/2022,Fellowships,Research Fellowships,University of Southampton GRANT,99747821,25401.96,Fellowships
BEIS,UKRI - AHRC,20/06/2022,Fellowships,Research Fellowships,Manchester Metropolitan University,99747822,21380.86,Fellowships
BEIS,UKRI - AHRC,20/06/2022,Fellowships,Research Fellowships,University of Sussex,99747823,30741.25,Fellowships
BEIS,UKRI - AHRC,20/06/2022,Fellowships,Research Fellowships,University of Bristol GRANT,99747824,28183.33,Fellowships
BEIS,UKRI - AHRC,20/06/2022,Fellowships,Research Fellowships,University of Bristol GRANT,99747825,38600.09,Fellowships
BEIS,UKRI - AHRC,20/06/2022,Fellowships,Research Fellowships,University of South Wales,99747826,22384.47,Fellowships
BEIS,UKRI - AHRC,20/06/2022,Fellowships,Commissioned Research,University of Bristol GRANT,99747827,26840.34,Fellowships
BEIS,UKRI - AHRC,20/06/2022,Fellowships,Commissioned Research,University of Newcastle Upon Tyne,99747828,25014.97,Fellowships
BEIS,UKRI - AHRC,20/06/2022,Fellowships,Commissioned Research,Aston University,99747829,18422.67,Fellowships
BEIS,UKRI - AHRC,20/06/2022,Fellowships,Commissioned Research,University of Leicester,99747830,33646.22,Fellowships
BEIS,UKRI - AHRC,20/06/2022,Fellowships,Research Fellowships,University of Liverpool,99747831,18653.97,Fellowships
BEIS,UKRI - AHRC,20/06/2022,Fellowships,Research Fellowships,Goldsmiths College University of London,99747832,24490.98,Fellowships
BEIS,UKRI - AHRC,20/06/2022,Fellowships,Research Fellowships,University of Warwick,99747833,34463.53,Fellowships
BEIS,UKRI - AHRC,20/06/2022,Fellowships,Research Fellowships,University of the Arts London,99747834,25957.88,Fellowships
BEIS,UKRI - AHRC,20/06/2022,Fellowships,Research Fellowships,University of Leeds,99747835,26285.63,Fellowships
BEIS,UKRI - AHRC,20/06/2022,Fellowships,Research Fellowships,University of Leeds,99747836,22321.91,Fellowships
BEIS,UKRI - AHRC,20/06/2022,Fellowships,Research Fellowships,University of Birmingham GRANT,99747837,19994.39,Fellowships
BEIS,UKRI - AHRC,20/06/2022,Fellowships,Research Fellowships,The University of Manchester,99747838,27296.57,Fellowships
BEIS,UKRI - AHRC,20/06/2022,Fellowships,NPIF Research Talent (RCUK Innovation Fellowships),University College London,99747839,20849.26,Fellowships
BEIS,UKRI - AHRC,20/06/2022,Fellowships,NPIF Research Talent (RCUK Innovation Fellowships),University College London,99747839,20849.26,Fellowships
BEIS,UKRI - AHRC,20/06/2022,Fellowships,NPIF Research Talent (RCUK Innovation Fellowships),University College London,99747839,21018.14,Fellowships
BEIS,UKRI - AHRC,20/06/2022,Fellowships,Research Fellowships,University of Brighton,99747840,10983.99,Fellowships
BEIS,UKRI - AHRC,20/06/2022,Fellowships,Research Fellowships,University of Edinburgh,99747841,19214.21,Fellowships
BEIS,UKRI - AHRC,20/06/2022,Fellowships,Research Fellowships,University of Edinburgh,99747841,19369.84,Fellowships
BEIS,UKRI - AHRC,20/06/2022,Fellowships,Research Fellowships,University of Edinburgh,99747841,19214.21,Fellowships
BEIS,UKRI - AHRC,20/06/2022,Fellowships,Research Fellowships,University of Edinburgh,99747841,19369.84,Fellowships
BEIS,UKRI - AHRC,20/06/2022,Fellowships,Research Fellowships,University of Edinburgh,99747841,19214.21,Fellowships
BEIS,UKRI - AHRC,20/06/2022,Fellowships,Research Fellowships,University of Edinburgh,99747841,19369.84,Fellowships
BEIS,UKRI - AHRC,20/06/2022,Research Grant Expenditure,Impact Accelerator Accounts (IAA's),University College London,99748728,37803.75,Research Grant Expenditure
BEIS,UKRI - AHRC,20/06/2022,Research Grant Expenditure,Impact Accelerator Accounts (IAA's),Lancaster University,99748729,37803.75,Research Grant Expenditure
BEIS,UKRI - AHRC,20/06/2022,Research Grant Expenditure,Impact Accelerator Accounts (IAA's),University of the West of England,99748730,37589.69,Research Grant Expenditure
BEIS,UKRI - AHRC,20/06/2022,Research Grant Expenditure,Impact Accelerator Accounts (IAA's),Cardiff University,99748731,37803.75,Research Grant Expenditure
BEIS,UKRI - AHRC,20/06/2022,Research Grant Expenditure,Impact Accelerator Accounts (IAA's),University of Cambridge,99748732,37803.75,Research Grant Expenditure
BEIS,UKRI - AHRC,20/06/2022,Research Grant Expenditure,Impact Accelerator Accounts (IAA's),Swansea University,99748733,37803.75,Research Grant Expenditure
BEIS,UKRI - AHRC,20/06/2022,Research Grant Expenditure,Impact Accelerator Accounts (IAA's),University of Sussex,99748734,37803.75,Research Grant Expenditure
BEIS,UKRI - AHRC,20/06/2022,Research Grant Expenditure,Impact Accelerator Accounts (IAA's),Museum of London Archaeology,99748735,37803.75,Research Grant Expenditure
BEIS,UKRI - AHRC,20/06/2022,Research Grant Expenditure,Impact Accelerator Accounts (IAA's),The University of Manchester,99748736,37803.75,Research Grant Expenditure
BEIS,UKRI - AHRC,20/06/2022,Research Grant Expenditure,Impact Accelerator Accounts (IAA's),King's College London,99748737,37803.75,Research Grant Expenditure
BEIS,UKRI - AHRC,20/06/2022,Research Grant Expenditure,Impact Accelerator Accounts (IAA's),University of Brighton,99748738,37803.75,Research Grant Expenditure
BEIS,UKRI - AHRC,20/06/2022,Research Grant Expenditure,Impact Accelerator Accounts (IAA's),University of Reading,99748739,37803.75,Research Grant Expenditure
BEIS,UKRI - AHRC,20/06/2022,Research Grant Expenditure,Impact Accelerator Accounts (IAA's),University of East Anglia,99748740,37803.75,Research Grant Expenditure
BEIS,UKRI - AHRC,20/06/2022,Research Grant Expenditure,Impact Accelerator Accounts (IAA's),University of Huddersfield,99748741,37803.75,Research Grant Expenditure
BEIS,UKRI - AHRC,20/06/2022,Research Grant Expenditure,Impact Accelerator Accounts (IAA's),Queen's University Belfast GRANT,99748742,37803.75,Research Grant Expenditure
BEIS,UKRI - AHRC,20/06/2022,Research Grant Expenditure,Impact Accelerator Accounts (IAA's),The Royal Central School of Speech and Drama,99748743,37803.75,Research Grant Expenditure
BEIS,UKRI - AHRC,20/06/2022,Research Grant Expenditure,Impact Accelerator Accounts (IAA's),University of Glasgow,99748744,37803.75,Research Grant Expenditure
BEIS,UKRI - AHRC,20/06/2022,Research Grant Expenditure,Impact Accelerator Accounts (IAA's),University of Birmingham GRANT,99748745,37803.75,Research Grant Expenditure
BEIS,UKRI - AHRC,20/06/2022,Research Grant Expenditure,Impact Accelerator Accounts (IAA's),Royal College of Art,99748746,37803.75,Research Grant Expenditure
BEIS,UKRI - AHRC,20/06/2022,Research Grant Expenditure,Impact Accelerator Accounts (IAA's),UNIVERSITY OF ULSTER,99748747,37803.75,Research Grant Expenditure
BEIS,UKRI - AHRC,20/06/2022,Research Grant Expenditure,Impact Accelerator Accounts (IAA's),Teesside University,99748748,37803.75,Research Grant Expenditure
BEIS,UKRI - AHRC,20/06/2022,Research Grant Expenditure,Impact Accelerator Accounts (IAA's),University of Southampton GRANT,99748749,37803.75,Research Grant Expenditure
BEIS,UKRI - AHRC,20/06/2022,Research Grant Expenditure,Impact Accelerator Accounts (IAA's),University of Hull,99748750,37803.75,Research Grant Expenditure
BEIS,UKRI - AHRC,20/06/2022,Research Grant Expenditure,Impact Accelerator Accounts (IAA's),University of Exeter,99748751,37803.75,Research Grant Expenditure
BEIS,UKRI - AHRC,20/06/2022,Research Grant Expenditure,Impact Accelerator Accounts (IAA's),Bath Spa University,99748752,37803.75,Research Grant Expenditure
BEIS,UKRI - AHRC,20/06/2022,Research Grant Expenditure,Impact Accelerator Accounts (IAA's),University of Kent,99748753,37803.75,Research Grant Expenditure
BEIS,UKRI - AHRC,20/06/2022,Research Grant Expenditure,Impact Accelerator Accounts (IAA's),University for the Creative Arts,99748754,37803.75,Research Grant Expenditure
BEIS,UKRI - AHRC,20/06/2022,Research Grant Expenditure,Impact Accelerator Accounts (IAA's),University of Liverpool,99748755,37803.75,Research Grant Expenditure
BEIS,UKRI - AHRC,20/06/2022,Research Grant Expenditure,Impact Accelerator Accounts (IAA's),University of Plymouth,99748756,37803.75,Research Grant Expenditure
BEIS,UKRI - AHRC,20/06/2022,Research Grant Expenditure,Impact Accelerator Accounts (IAA's),University of Bristol GRANT,99748757,37803.75,Research Grant Expenditure
BEIS,UKRI - AHRC,20/06/2022,Research Grant Expenditure,Storycraft fellowship (Bambo Soyinka),Bath Spa University,99748758,23619.77,Research Grant Expenditure
BEIS,UKRI - AHRC,20/06/2022,Research Grant Expenditure,Impact Accelerator Accounts (IAA's),University of Nottingham,99748759,37803.75,Research Grant Expenditure
BEIS,UKRI - AHRC,20/06/2022,Research Grant Expenditure,Impact Accelerator Accounts (IAA's),University of Hertfordshire,99748760,37803.75,Research Grant Expenditure
BEIS,UKRI - AHRC,20/06/2022,Research Grant Expenditure,DEDEFI Capital Grants,Imperial War Museum Trading Company Ltd,99748761,13897.38,Research Grant Expenditure
BEIS,UKRI - AHRC,20/06/2022,Research Grant Expenditure,DEDEFI Capital Grants,Imperial War Museum Trading Company Ltd,99748761,18529.83,Research Grant Expenditure
BEIS,UKRI - AHRC,20/06/2022,Research Grant Expenditure,DEDEFI Capital Grants,University of Southampton GRANT,99748762,18652.51,Research Grant Expenditure
BEIS,UKRI - AHRC,20/06/2022,Research Grant Expenditure,International Other,University of East Anglia,99748763,21296.04,Research Grant Expenditure
BEIS,UKRI - AHRC,20/06/2022,Research Grant Expenditure,International Other,University of Sheffield,99748764,24867.05,Research Grant Expenditure
BEIS,UKRI - AHRC,20/06/2022,Research Grant Expenditure,Public and Stakeholder Engagement,University of Southampton GRANT,99748765,10044.19,Research Grant Expenditure
BEIS,UKRI - AHRC,20/06/2022,Research Grant Expenditure,Public and Stakeholder Engagement,Coventry University,99748766,19980.54,Research Grant Expenditure
BEIS,UKRI - AHRC,20/06/2022,Research Grant Expenditure,Public and Stakeholder Engagement,University of Westminster,99748767,9684.30,Research Grant Expenditure
BEIS,UKRI - AHRC,20/06/2022,Research Grant Expenditure,Public and Stakeholder Engagement,University of Oxford,99748768,8211.99,Research Grant Expenditure
BEIS,UKRI - AHRC,20/06/2022,Research Grant Expenditure,Public and Stakeholder Engagement,University of Bradford,99748769,9573.66,Research Grant Expenditure
BEIS,UKRI - AHRC,20/06/2022,Research Grant Expenditure,Public and Stakeholder Engagement,University of Westminster,99748770,7477.09,Research Grant Expenditure
BEIS,UKRI - AHRC,20/06/2022,Research Grant Expenditure,DEDEFI Capital Grants,Museum of London Archaeology,99748771,8537.93,Research Grant Expenditure
BEIS,UKRI - AHRC,20/06/2022,Research Grant Expenditure,International Other,"SOAS, University of London",99748772,95275.20,Research Grant Expenditure
BEIS,UKRI - AHRC,20/06/2022,Research Grant Expenditure,Mobilising Cultural and Natural Assets,Lancaster University,99748773,18106.23,Research Grant Expenditure
BEIS,UKRI - AHRC,20/06/2022,Research Grant Expenditure,Mobilising Cultural and Natural Assets,Royal College of Art,99748774,17863.69,Research Grant Expenditure
BEIS,UKRI - AHRC,20/06/2022,Research Grant Expenditure,Mobilising Cultural and Natural Assets,Nottingham Trent University,99748775,18071.47,Research Grant Expenditure
BEIS,UKRI - AHRC,20/06/2022,Research Grant Expenditure,International Other,Lancaster University,99748776,0.04,Research Grant Expenditure
BEIS,UKRI - AHRC,20/06/2022,Research Grant Expenditure,DEDEFI Capital Grants,University of Newcastle Upon Tyne,99748777,36076.24,Research Grant Expenditure
BEIS,UKRI - AHRC,20/06/2022,Research Grant Expenditure,AHRC - DFG Collaborative Research Grant,Cardiff University,99748778,22716.26,Research Grant Expenditure
BEIS,UKRI - AHRC,20/06/2022,Research Grant Expenditure,AHRC - DFG Collaborative Research Grant,University of Durham,99748779,16332.11,Research Grant Expenditure
BEIS,UKRI - AHRC,20/06/2022,Research Grant Expenditure,AHRC - DFG Collaborative Research Grant,University of Edinburgh,99748780,25757.57,Research Grant Expenditure
BEIS,UKRI - AHRC,20/06/2022,Research Grant Expenditure,AHRC - DFG Collaborative Research Grant,University of Cambridge,99748781,25302.08,Research Grant Expenditure
BEIS,UKRI - AHRC,20/06/2022,Research Grant Expenditure,AHRC - DFG Collaborative Research Grant,University of Edinburgh,99748782,15275.57,Research Grant Expenditure
BEIS,UKRI - AHRC,20/06/2022,Research Grant Expenditure,AHRC - DFG Collaborative Research Grant,University of Essex,99748783,27930.87,Research Grant Expenditure
BEIS,UKRI - AHRC,20/06/2022,Research Grant Expenditure,AHRC - DFG Collaborative Research Grant,University of the Highlands and Islands,99748784,15794.11,Research Grant Expenditure
BEIS,UKRI - AHRC,20/06/2022,Research Grant Expenditure,AHRC - DFG Collaborative Research Grant,University of Oxford,99748785,35281.37,Research Grant Expenditure
BEIS,UKRI - AHRC,20/06/2022,Research Grant Expenditure,AHRC - DFG Collaborative Research Grant,Teesside University,99748786,19968.42,Research Grant Expenditure
BEIS,UKRI - AHRC,20/06/2022,Research Grant Expenditure,AHRC - DFG Collaborative Research Grant,University of Oxford,99748787,25085.82,Research Grant Expenditure
BEIS,UKRI - AHRC,20/06/2022,Research Grant Expenditure,AHRC - DFG Collaborative Research Grant,University of Newcastle Upon Tyne,99748788,23439.14,Research Grant Expenditure
BEIS,UKRI - AHRC,20/06/2022,Research Grant Expenditure,AHRC - DFG Collaborative Research Grant,University of Liverpool,99748789,21775.43,Research Grant Expenditure
BEIS,UKRI - AHRC,20/06/2022,Research Grant Expenditure,AHRC - DFG Collaborative Research Grant,University of Warwick,99748790,35280.69,Research Grant Expenditure
BEIS,UKRI - AHRC,20/06/2022,Research Grant Expenditure,AHRC - DFG Collaborative Research Grant,The University of Manchester,99748791,20196.94,Research Grant Expenditure
BEIS,UKRI - AHRC,20/06/2022,Research Grant Expenditure,AHRC - DFG Collaborative Research Grant,University of Birmingham GRANT,99748792,16717.82,Research Grant Expenditure
BEIS,UKRI - AHRC,20/06/2022,Research Grant Expenditure,AHRC - DFG Collaborative Research Grant,University of Bristol GRANT,99748793,33668.44,Research Grant Expenditure
BEIS,UKRI - AHRC,20/06/2022,Research Grant Expenditure,AHRC - DFG Collaborative Research Grant,University of Exeter,99748794,17563.15,Research Grant Expenditure
BEIS,UKRI - AHRC,20/06/2022,Research Grant Expenditure,AHRC - DFG Collaborative Research Grant,University of Southampton GRANT,99748795,29848.07,Research Grant Expenditure
BEIS,UKRI - AHRC,20/06/2022,Research Grant Expenditure,AHRC - DFG Collaborative Research Grant,University of Stirling,99748796,27064.40,Research Grant Expenditure
BEIS,UKRI - AHRC,20/06/2022,Research Grant Expenditure,Networks & Workshops,Birmingham City University,99748797,4276.60,Research Grant Expenditure
BEIS,UKRI - AHRC,20/06/2022,Research Grant Expenditure,Networks & Workshops,De Montfort University,99748798,0.01,Research Grant Expenditure
BEIS,UKRI - AHRC,20/06/2022,Research Grant Expenditure,Design: Strategic Initiatives,University of the Arts London,99748799,12304.51,Research Grant Expenditure
BEIS,UKRI - AHRC,20/06/2022,Research Grant Expenditure,Funds for International Collaboration (FIC 21 China),Falmouth University,99748800,20058.82,Research Grant Expenditure
BEIS,UKRI - AHRC,20/06/2022,Research Grant Expenditure,Funds for International Collaboration (FIC 21 China),Nottingham Trent University,99748801,19992.75,Research Grant Expenditure
BEIS,UKRI - AHRC,20/06/2022,Research Grant Expenditure,Funds for International Collaboration (FIC 21 China),Brunel University London,99748802,20021.04,Research Grant Expenditure
BEIS,UKRI - AHRC,20/06/2022,Research Grant Expenditure,Funds for International Collaboration (FIC 21 China),University of Leeds,99748803,20859.03,Research Grant Expenditure
BEIS,UKRI - AHRC,20/06/2022,Research Grant Expenditure,Funds for International Collaboration (FIC 21 China),Bournemouth University,99748804,21376.00,Research Grant Expenditure
BEIS,UKRI - AHRC,20/06/2022,Research Grant Expenditure,Hidden Histories,University of Sussex,99748805,12998.42,Research Grant Expenditure
BEIS,UKRI - AHRC,20/06/2022,Research Grant Expenditure,Labex,University of Exeter,99748806,8436.95,Research Grant Expenditure
BEIS,UKRI - AHRC,20/06/2022,Research Grant Expenditure,Hidden Histories,University of Liverpool,99748807,12954.55,Research Grant Expenditure
BEIS,UKRI - AHRC,20/06/2022,Research Grant Expenditure,Investment in Place,University of Bradford,99748808,16164.10,Research Grant Expenditure
BEIS,UKRI - AHRC,20/06/2022,Research Grant Expenditure,Hidden Histories,University of Strathclyde,99748809,14031.25,Research Grant Expenditure
BEIS,UKRI - AHRC,20/06/2022,Research Grant Expenditure,Investment in Place,Glasgow School of Art,99748810,16202.39,Research Grant Expenditure
BEIS,UKRI - AHRC,20/06/2022,Research Grant Expenditure,Investment in Place,University of Exeter,99748811,16187.58,Research Grant Expenditure
BEIS,UKRI - AHRC,20/06/2022,Research Grant Expenditure,Hidden Histories,The University of Manchester,99748812,9512.79,Research Grant Expenditure
BEIS,UKRI - AHRC,20/06/2022,Research Grant Expenditure,Hidden Histories,UK Centre for Ecology and Hydrology (UKCEH),99748813,15093.51,Research Grant Expenditure
BEIS,UKRI - AHRC,20/06/2022,Research Grant Expenditure,Hidden Histories,University of East Anglia,99748814,13283.22,Research Grant Expenditure
BEIS,UKRI - AHRC,20/06/2022,Research Grant Expenditure,Investment in Place,University of Edinburgh,99748815,16201.03,Research Grant Expenditure
BEIS,UKRI - AHRC,20/06/2022,Research Grant Expenditure,Hidden Histories,University of Southampton GRANT,99748816,13024.80,Research Grant Expenditure
BEIS,UKRI - AHRC,20/06/2022,Research Grant Expenditure,Investment in Place,The Open University,99748817,14088.39,Research Grant Expenditure
BEIS,UKRI - AHRC,20/06/2022,Research Grant Expenditure,Hidden Histories,University of Oxford,99748818,13087.73,Research Grant Expenditure
BEIS,UKRI - AHRC,20/06/2022,Research Grant Expenditure,Investment in Place,Coventry University,99748819,16083.84,Research Grant Expenditure
BEIS,UKRI - AHRC,20/06/2022,Research Grant Expenditure,Hidden Histories,University of Hull,99748820,13117.22,Research Grant Expenditure
BEIS,UKRI - AHRC,20/06/2022,Research Grant Expenditure,Investment in Place,University of Southampton GRANT,99748821,16170.07,Research Grant Expenditure
BEIS,UKRI - AHRC,20/06/2022,Research Grant Expenditure,Investment in Place,University of Nottingham,99748822,15995.05,Research Grant Expenditure
BEIS,UKRI - AHRC,20/06/2022,Research Grant Expenditure,Hidden Histories,University of Winchester,99748823,12263.40,Research Grant Expenditure
BEIS,UKRI - AHRC,20/06/2022,Research Grant Expenditure,Labex,University of Leeds,99748824,11711.98,Research Grant Expenditure
BEIS,UKRI - AHRC,20/06/2022,Research Grant Expenditure,Investment in Place,University of Sheffield,99748825,11095.22,Research Grant Expenditure
BEIS,UKRI - AHRC,20/06/2022,Research Grant Expenditure,Mobilising Cultural and Natural Assets,University of the Highlands and Islands,99748826,11034.18,Research Grant Expenditure
BEIS,UKRI - AHRC,20/06/2022,Research Grant Expenditure,Mobilising Cultural and Natural Assets,University of Newcastle Upon Tyne,99748827,18141.18,Research Grant Expenditure
BEIS,UKRI - AHRC,20/06/2022,Research Grant Expenditure,Mobilising Cultural and Natural Assets,University of Derby,99748828,9331.99,Research Grant Expenditure
BEIS,UKRI - AHRC,20/06/2022,Research Grant Expenditure,Mobilising Cultural and Natural Assets,Leeds Beckett University,99748829,18145.40,Research Grant Expenditure
BEIS,UKRI - AHRC,20/06/2022,Research Grant Expenditure,Mobilising Cultural and Natural Assets,Edge Hill University College,99748830,18141.83,Research Grant Expenditure
BEIS,UKRI - AHRC,20/06/2022,Research Grant Expenditure,Mobilising Cultural and Natural Assets,Bournemouth University,99748831,17134.29,Research Grant Expenditure
BEIS,UKRI - AHRC,20/06/2022,Research Grant Expenditure,Mobilising Cultural and Natural Assets,University of Nottingham,99748832,17599.39,Research Grant Expenditure
BEIS,UKRI - AHRC,20/06/2022,Research Grant Expenditure,Mobilising Cultural and Natural Assets,University College London,99748833,17239.64,Research Grant Expenditure
BEIS,UKRI - AHRC,20/06/2022,Research Grant Expenditure,Mobilising Cultural and Natural Assets,University of Dundee,99748834,17899.92,Research Grant Expenditure
BEIS,UKRI - AHRC,20/06/2022,Research Grant Expenditure,Artificial Intelligence,University of the West of England,99748835,7883.18,Research Grant Expenditure
BEIS,UKRI - AHRC,20/06/2022,Research Grant Expenditure,Artificial Intelligence,University of Warwick,99748836,16376.25,Research Grant Expenditure
BEIS,UKRI - AHRC,20/06/2022,Research Grant Expenditure,Artificial Intelligence,University of Cambridge,99748837,13866.01,Research Grant Expenditure
BEIS,UKRI - AHRC,20/06/2022,Research Grant Expenditure,Artificial Intelligence,University of Sheffield,99748838,17999.61,Research Grant Expenditure
BEIS,UKRI - AHRC,20/06/2022,Research Grant Expenditure,DEDEFI Capital Grants,University of Westminster,99748839,38504.38,Research Grant Expenditure
BEIS,UKRI - AHRC,20/06/2022,Research Grant Expenditure,Investment in Place,University of Glasgow,99748840,34980.57,Research Grant Expenditure
BEIS,UKRI - AHRC,20/06/2022,Research Grant Expenditure,DEDEFI Capital Grants,University of Leeds,99748841,41029.05,Research Grant Expenditure
BEIS,UKRI - AHRC,20/06/2022,Research Grant Expenditure,DEDEFI Capital Grants,University of Oxford,99748842,39444.07,Research Grant Expenditure
BEIS,UKRI - AHRC,20/06/2022,Research Grant Expenditure,Digital Transformations,University of Oxford,99748843,199763.68,Research Grant Expenditure
BEIS,UKRI - AHRC,20/06/2022,Research Grant Expenditure,Digital Transformations,University of York,99748844,199960.83,Research Grant Expenditure
BEIS,UKRI - AHRC,20/06/2022,Research Grant Expenditure,Follow-on Fund,King's College London,99748845,50443.44,Research Grant Expenditure
BEIS,UKRI - AHRC,20/06/2022,Research Grant Expenditure,Follow-on Fund,King's College London,99748845,50443.44,Research Grant Expenditure
BEIS,UKRI - AHRC,20/06/2022,Research Grant Expenditure,Digital Transformations,The Natural History Museum,99748846,200000.00,Research Grant Expenditure
BEIS,UKRI - AHRC,20/06/2022,Research Grant Expenditure,Networks & Workshops,University of East London,99748847,4462.29,Research Grant Expenditure
BEIS,UKRI - AHRC,20/06/2022,Research Grant Expenditure,Networks & Workshops,University of Exeter,99748848,3766.88,Research Grant Expenditure
BEIS,UKRI - AHRC,20/06/2022,Research Grant Expenditure,Follow-on Fund,University College London,99748849,45917.80,Research Grant Expenditure
BEIS,UKRI - AHRC,20/06/2022,Research Grant Expenditure,Networks & Workshops,University of Oxford,99748850,6949.62,Research Grant Expenditure
BEIS,UKRI - AHRC,20/06/2022,Research Grant Expenditure,Follow-on Fund,University of Glasgow,99748851,28697.89,Research Grant Expenditure
BEIS,UKRI - AHRC,20/06/2022,Research Grant Expenditure,Networks & Workshops,University of Portsmouth,99748852,4717.33,Research Grant Expenditure
BEIS,UKRI - AHRC,20/06/2022,Research Grant Expenditure,Funds for International Collaboration (FIC 20 US),University of Edinburgh,99748853,9398.88,Research Grant Expenditure
BEIS,UKRI - AHRC,20/06/2022,Research Grant Expenditure,Funds for International Collaboration (FIC 20 US),University of Oxford,99748854,25044.53,Research Grant Expenditure
BEIS,UKRI - AHRC,20/06/2022,Research Grant Expenditure,Funds for International Collaboration (FIC 20 US),University of Oxford,99748854,25044.53,Research Grant Expenditure
BEIS,UKRI - AHRC,20/06/2022,Research Grant Expenditure,Funds for International Collaboration (FIC 20 US),"SOAS, University of London",99748855,15523.52,Research Grant Expenditure
BEIS,UKRI - AHRC,20/06/2022,Research Grant Expenditure,Funds for International Collaboration (FIC 20 US),"SOAS, University of London",99748855,15523.61,Research Grant Expenditure
BEIS,UKRI - AHRC,20/06/2022,Research Grant Expenditure,Funds for International Collaboration (FIC 20 US),University of Edinburgh,99748856,31004.52,Research Grant Expenditure
BEIS,UKRI - AHRC,20/06/2022,Research Grant Expenditure,Funds for International Collaboration (FIC 20 US),University of Edinburgh,99748856,31004.50,Research Grant Expenditure
BEIS,UKRI - AHRC,20/06/2022,Research Grant Expenditure,Funds for International Collaboration (FIC 20 US),University of Kent,99748857,12045.84,Research Grant Expenditure
BEIS,UKRI - AHRC,20/06/2022,Research Grant Expenditure,Funds for International Collaboration (FIC 20 US),Birkbeck College,99748858,4656.58,Research Grant Expenditure
BEIS,UKRI - AHRC,20/06/2022,Research Grant Expenditure,Funds for International Collaboration (FIC 20 US),University of Westminster,99748859,16519.84,Research Grant Expenditure
BEIS,UKRI - AHRC,20/06/2022,Research Grant Expenditure,Funds for International Collaboration (FIC 20 US),Brunel University London,99748860,29957.74,Research Grant Expenditure
BEIS,UKRI - AHRC,20/06/2022,Research Grant Expenditure,Funds for International Collaboration (FIC 20 US),Lancaster University,99748861,14292.31,Research Grant Expenditure
BEIS,UKRI - AHRC,20/06/2022,Research Grant Expenditure,Funds for International Collaboration (FIC 20 US),University of Cambridge,99748862,14190.83,Research Grant Expenditure
BEIS,UKRI - AHRC,20/06/2022,Research Grant Expenditure,Funds for International Collaboration (FIC 20 US),University of Cambridge,99748862,10000.00,Research Grant Expenditure
BEIS,UKRI - AHRC,20/06/2022,Research Grant Expenditure,Funds for International Collaboration (FIC 20 US),Cardiff University,99748863,19832.28,Research Grant Expenditure
BEIS,UKRI - AHRC,20/06/2022,Research Grant Expenditure,Funds for International Collaboration (FIC 20 US),University of Newcastle Upon Tyne,99748864,4255.12,Research Grant Expenditure
BEIS,UKRI - AHRC,20/06/2022,Research Grant Expenditure,Follow-on Fund,University of Leeds,99748865,19230.62,Research Grant Expenditure
BEIS,UKRI - AHRC,20/06/2022,Research Grant Expenditure,Follow-on Fund,University of Leeds,99748866,19984.24,Research Grant Expenditure
BEIS,UKRI - AHRC,20/06/2022,Research Grant Expenditure,Networks & Workshops,University of Central Lancashire,99748867,3013.69,Research Grant Expenditure
BEIS,UKRI - AHRC,20/06/2022,Research Grant Expenditure,Follow-on Fund,Cardiff University,99748868,20161.80,Research Grant Expenditure
BEIS,UKRI - AHRC,20/06/2022,Research Grant Expenditure,Follow-on Fund,Manchester Metropolitan University,99748869,20132.72,Research Grant Expenditure
BEIS,UKRI - AHRC,20/06/2022,Research Grant Expenditure,Follow-on Fund,University of Cambridge,99748870,3571.00,Research Grant Expenditure
BEIS,UKRI - AHRC,20/06/2022,Research Grant Expenditure,Networks & Workshops,Middlesex University,99748871,8058.87,Research Grant Expenditure
BEIS,UKRI - AHRC,20/06/2022,Research Grant Expenditure,Follow-on Fund,University of Newcastle Upon Tyne,99748872,19536.31,Research Grant Expenditure
BEIS,UKRI - AHRC,20/06/2022,Research Grant Expenditure,COVID-19 (AHRC funded),University of Oxford,99748873,45312.40,Research Grant Expenditure
BEIS,UKRI - AHRC,20/06/2022,Research Grant Expenditure,Follow-on Fund,Queen Mary University of London,99748874,26616.62,Research Grant Expenditure
BEIS,UKRI - AHRC,20/06/2022,Research Grant Expenditure,Networks & Workshops,University of Westminster,99748875,5717.47,Research Grant Expenditure
BEIS,UKRI - AHRC,20/06/2022,Research Grant Expenditure,Research Grants,Bournemouth University,99748876,54535.13,Research Grant Expenditure
BEIS,UKRI - AHRC,20/06/2022,Research Grant Expenditure,Research Grants,University of Oxford,99748877,50383.21,Research Grant Expenditure
BEIS,UKRI - AHRC,20/06/2022,Research Grant Expenditure,Research Grants,University of Derby,99748878,14143.23,Research Grant Expenditure
BEIS,UKRI - AHRC,20/06/2022,Research Grant Expenditure,Networks & Workshops,University of Sussex,99748879,4159.80,Research Grant Expenditure
BEIS,UKRI - AHRC,20/06/2022,Research Grant Expenditure,Networks & Workshops,University of Sussex,99748879,4159.81,Research Grant Expenditure
BEIS,UKRI - AHRC,20/06/2022,Research Grant Expenditure,Follow-on Fund,University of Plymouth,99748880,27411.18,Research Grant Expenditure
BEIS,UKRI - AHRC,20/06/2022,Research Grant Expenditure,Towards a National Collection (SPF),University College London,99748881,230876.34,Research Grant Expenditure
BEIS,UKRI - AHRC,20/06/2022,Research Grant Expenditure,Towards a National Collection (SPF),University of the Arts London,99748883,245418.30,Research Grant Expenditure
BEIS,UKRI - AHRC,20/06/2022,Research Grant Expenditure,Towards a National Collection (SPF),Science Museum Group,99748884,245215.36,Research Grant Expenditure
BEIS,UKRI - AHRC,20/06/2022,Research Grant Expenditure,Towards a National Collection (SPF),University of Glasgow,99748885,249363.82,Research Grant Expenditure
BEIS,UKRI - AHRC,20/06/2022,Research Grant Expenditure,Research Grants,Royal College of Art,99748886,40793.74,Research Grant Expenditure
BEIS,UKRI - AHRC,20/06/2022,Research Grant Expenditure,Networks & Workshops,University of Birmingham GRANT,99748887,8465.07,Research Grant Expenditure
BEIS,UKRI - AHRC,20/06/2022,Research Grant Expenditure,Follow-on Fund,University of the Arts London,99748888,20072.60,Research Grant Expenditure
BEIS,UKRI - AHRC,20/06/2022,Research Grant Expenditure,Follow-on Fund,University of the Arts London,99748888,20072.63,Research Grant Expenditure
BEIS,UKRI - AHRC,20/06/2022,Research Grant Expenditure,Research Grants,University of Warwick,99748889,22196.58,Research Grant Expenditure
BEIS,UKRI - AHRC,20/06/2022,Research Grant Expenditure,Follow-on Fund,University of Reading,99748890,20161.85,Research Grant Expenditure
BEIS,UKRI - AHRC,20/06/2022,Research Grant Expenditure,Research Grants,University of Oxford,99748891,66854.14,Research Grant Expenditure
BEIS,UKRI - AHRC,20/06/2022,Research Grant Expenditure,Follow-on Fund,University of Leeds,99748892,20161.96,Research Grant Expenditure
BEIS,UKRI - AHRC,20/06/2022,Research Grant Expenditure,Networks & Workshops,Anglia Ruskin University,99748893,3942.60,Research Grant Expenditure
BEIS,UKRI - AHRC,20/06/2022,Research Grant Expenditure,Follow-on Fund,University of East Anglia,99748894,26437.13,Research Grant Expenditure
BEIS,UKRI - AHRC,20/06/2022,Research Grant Expenditure,Funds for International Collaboration (FIC2-06 Ireland),University of Oxford,99748895,23353.98,Research Grant Expenditure
BEIS,UKRI - AHRC,20/06/2022,Research Grant Expenditure,Funds for International Collaboration (FIC2-06 Ireland),University of Glasgow,99748896,26867.46,Research Grant Expenditure
BEIS,UKRI - AHRC,20/06/2022,Research Grant Expenditure,Funds for International Collaboration (FIC2-06 Ireland),Manchester Metropolitan University,99748897,43210.28,Research Grant Expenditure
BEIS,UKRI - AHRC,20/06/2022,Research Grant Expenditure,Funds for International Collaboration (FIC2-06 Ireland),Manchester Metropolitan University,99748897,10000.00,Research Grant Expenditure
BEIS,UKRI - AHRC,20/06/2022,Research Grant Expenditure,Funds for International Collaboration (FIC2-06 Ireland),University of Edinburgh,99748898,28509.88,Research Grant Expenditure
BEIS,UKRI - AHRC,20/06/2022,Research Grant Expenditure,Funds for International Collaboration (FIC2-06 Ireland),Loughborough University,99748899,26881.72,Research Grant Expenditure
BEIS,UKRI - AHRC,20/06/2022,Research Grant Expenditure,Funds for International Collaboration (FIC2-06 Ireland),Queen's University Belfast GRANT,99748900,36129.04,Research Grant Expenditure
BEIS,UKRI - AHRC,20/06/2022,Research Grant Expenditure,Funds for International Collaboration (FIC2-06 Ireland),University of East Anglia,99748901,34677.24,Research Grant Expenditure
BEIS,UKRI - AHRC,20/06/2022,Research Grant Expenditure,Funds for International Collaboration (FIC2-06 Ireland),University of Sussex,99748902,31970.96,Research Grant Expenditure
BEIS,UKRI - AHRC,20/06/2022,Research Grant Expenditure,Funds for International Collaboration (FIC2-06 Ireland),University of Brighton,99748903,23049.48,Research Grant Expenditure
BEIS,UKRI - AHRC,20/06/2022,Research Grant Expenditure,Funds for International Collaboration (FIC2-06 Ireland),Cardiff University,99748904,31318.56,Research Grant Expenditure
BEIS,UKRI - AHRC,20/06/2022,Research Grant Expenditure,Follow-on Fund,University of Leeds,99748905,26881.71,Research Grant Expenditure
BEIS,UKRI - AHRC,20/06/2022,Research Grant Expenditure,Networks & Workshops,Birkbeck College,99748906,9413.33,Research Grant Expenditure
BEIS,UKRI - AHRC,20/06/2022,Research Grant Expenditure,Networks & Workshops,Birkbeck College,99748906,4829.71,Research Grant Expenditure
BEIS,UKRI - AHRC,20/06/2022,Research Grant Expenditure,Funds for International Collaboration (FIC2-06 Ireland),University of Sheffield,99748907,23625.03,Research Grant Expenditure
BEIS,UKRI - AHRC,20/06/2022,Research Grant Expenditure,Research Grants,King's College London,99748908,38004.36,Research Grant Expenditure
BEIS,UKRI - AHRC,20/06/2022,Research Grant Expenditure,Networks & Workshops,University of Hertfordshire,99748909,6017.07,Research Grant Expenditure
BEIS,UKRI - AHRC,20/06/2022,Research Grant Expenditure,COVID-19 (AHRC funded),University of Exeter,99748910,27201.79,Research Grant Expenditure
BEIS,UKRI - AHRC,20/06/2022,Research Grant Expenditure,Networks & Workshops,The Open University,99748911,5217.31,Research Grant Expenditure
BEIS,UKRI - AHRC,20/06/2022,Research Grant Expenditure,Follow-on Fund,University of Aberdeen,99748912,20119.85,Research Grant Expenditure
BEIS,UKRI - AHRC,20/06/2022,Research Grant Expenditure,Research Grants,Cardiff University,99748913,59187.00,Research Grant Expenditure
BEIS,UKRI - AHRC,20/06/2022,Research Grant Expenditure,Research Grants,Roehampton University (University of Roehampton),99748914,23466.15,Research Grant Expenditure
BEIS,UKRI - AHRC,20/06/2022,Research Grant Expenditure,Networks & Workshops,University of Warwick,99748915,4534.22,Research Grant Expenditure
BEIS,UKRI - AHRC,20/06/2022,Research Grant Expenditure,JPI Cultural Heritage,Sheffield Hallam University,99748916,19689.70,Research Grant Expenditure
BEIS,UKRI - AHRC,20/06/2022,Research Grant Expenditure,JPI Cultural Heritage,University of the Highlands and Islands,99748917,12051.10,Research Grant Expenditure
BEIS,UKRI - AHRC,20/06/2022,Research Grant Expenditure,JPI Cultural Heritage,Falmouth University,99748918,17853.21,Research Grant Expenditure
BEIS,UKRI - AHRC,20/06/2022,Research Grant Expenditure,JPI Cultural Heritage,"SOAS, University of London",99748919,10206.31,Research Grant Expenditure
BEIS,UKRI - AHRC,20/06/2022,Research Grant Expenditure,Networks & Workshops,National Museums of Scotland,99748920,8707.62,Research Grant Expenditure
BEIS,UKRI - AHRC,20/06/2022,Research Grant Expenditure,Networks & Workshops,The Open University,99748921,3646.13,Research Grant Expenditure
BEIS,UKRI - AHRC,20/06/2022,Research Grant Expenditure,JPI Cultural Heritage,Kingston University,99748922,8692.35,Research Grant Expenditure
BEIS,UKRI - AHRC,20/06/2022,Research Grant Expenditure,Research Grants,King's College London,99748923,44970.35,Research Grant Expenditure
BEIS,UKRI - AHRC,20/06/2022,Research Grant Expenditure,Networks & Workshops,Manchester Metropolitan University,99748924,4507.47,Research Grant Expenditure
BEIS,UKRI - AHRC,20/06/2022,Research Grant Expenditure,COVID-19,Nottingham Trent University,99748925,30548.75,Research Grant Expenditure
BEIS,UKRI - AHRC,20/06/2022,Research Grant Expenditure,Follow-on Fund,University of Exeter,99748926,21924.77,Research Grant Expenditure
BEIS,UKRI - AHRC,20/06/2022,Research Grant Expenditure,Networks & Workshops,Sheffield Hallam University,99748927,8344.48,Research Grant Expenditure
BEIS,UKRI - AHRC,20/06/2022,Research Grant Expenditure,Networks & Workshops,University of West London,99748928,5975.59,Research Grant Expenditure
BEIS,UKRI - AHRC,20/06/2022,Research Grant Expenditure,Research Grants,University of York,99748929,54082.73,Research Grant Expenditure
BEIS,UKRI - AHRC,20/06/2022,Research Grant Expenditure,Research Grants,De Montfort University,99748930,40736.44,Research Grant Expenditure
BEIS,UKRI - AHRC,20/06/2022,Research Grant Expenditure,Research Grants,King's College London,99748931,21778.69,Research Grant Expenditure
BEIS,UKRI - AHRC,20/06/2022,Research Grant Expenditure,Research Grants,University of Cambridge,99748932,71396.30,Research Grant Expenditure
BEIS,UKRI - AHRC,20/06/2022,Research Grant Expenditure,Networks & Workshops,Northumbria University,99748933,5682.03,Research Grant Expenditure
BEIS,UKRI - AHRC,20/06/2022,Research Grant Expenditure,COVID-19,University of Leicester,99748934,49754.45,Research Grant Expenditure
BEIS,UKRI - AHRC,20/06/2022,Research Grant Expenditure,COVID-19,University of Newcastle Upon Tyne,99748935,65694.37,Research Grant Expenditure
BEIS,UKRI - AHRC,20/06/2022,Research Grant Expenditure,Research Grants,University of Lincoln,99748936,39118.95,Research Grant Expenditure
BEIS,UKRI - AHRC,20/06/2022,Research Grant Expenditure,Networks & Workshops,Leeds Beckett University,99748937,9204.69,Research Grant Expenditure
BEIS,UKRI - AHRC,20/06/2022,Research Grant Expenditure,Networks & Workshops,Kingston University,99748938,6410.31,Research Grant Expenditure
BEIS,UKRI - AHRC,20/06/2022,Research Grant Expenditure,Research Grants,Northumbria University,99748939,63606.39,Research Grant Expenditure
BEIS,UKRI - AHRC,20/06/2022,Research Grant Expenditure,Research Grants,University College London,99748940,31257.18,Research Grant Expenditure
BEIS,UKRI - AHRC,20/06/2022,Research Grant Expenditure,Networks & Workshops,National Maritime Museum,99748941,6014.41,Research Grant Expenditure
BEIS,UKRI - AHRC,20/06/2022,Research Grant Expenditure,Research Grants,University of London,99748942,61476.61,Research Grant Expenditure
BEIS,UKRI - AHRC,20/06/2022,Research Grant Expenditure,Research Grants,University of Sheffield,99748943,43340.37,Research Grant Expenditure
BEIS,UKRI - AHRC,20/06/2022,Research Grant Expenditure,Commissioned Research,University of Nottingham,99748944,41042.92,Research Grant Expenditure
BEIS,UKRI - AHRC,20/06/2022,Research Grant Expenditure,Research Grants,The University of Manchester,99748945,8444.39,Research Grant Expenditure
BEIS,UKRI - AHRC,20/06/2022,Research Grant Expenditure,Research Grants,The University of Manchester,99748945,18438.30,Research Grant Expenditure
BEIS,UKRI - AHRC,20/06/2022,Research Grant Expenditure,Research Grants,The University of Manchester,99748945,18438.28,Research Grant Expenditure
BEIS,UKRI - AHRC,20/06/2022,Research Grant Expenditure,Research Grants,Aberystwyth University,99748946,57341.23,Research Grant Expenditure
BEIS,UKRI - AHRC,20/06/2022,Research Grant Expenditure,Modern Slavery and Human Rights (SPF),King's College London,99748947,465.86,Research Grant Expenditure
BEIS,UKRI - AHRC,20/06/2022,Research Grant Expenditure,Research Grants,University of Edinburgh,99748948,70556.53,Research Grant Expenditure
BEIS,UKRI - AHRC,20/06/2022,Research Grant Expenditure,Follow-on Fund,"SOAS, University of London",99748949,20150.57,Research Grant Expenditure
BEIS,UKRI - AHRC,20/06/2022,Research Grant Expenditure,Follow-on Fund,University of Bristol GRANT,99748950,38859.49,Research Grant Expenditure
BEIS,UKRI - AHRC,20/06/2022,Research Grant Expenditure,Follow-on Fund,University of Nottingham,99748951,38657.40,Research Grant Expenditure
BEIS,UKRI - AHRC,20/06/2022,Research Grant Expenditure,Follow-on Fund,University College London,99748952,38748.97,Research Grant Expenditure
BEIS,UKRI - AHRC,20/06/2022,Research Grant Expenditure,Research Grants,University of the Arts London,99748953,20145.78,Research Grant Expenditure
BEIS,UKRI - AHRC,20/06/2022,Research Grant Expenditure,Follow-on Fund,Queen's University Belfast GRANT,99748954,20066.39,Research Grant Expenditure
BEIS,UKRI - AHRC,20/06/2022,Research Grant Expenditure,Follow-on Fund,University of Oxford,99748955,20161.81,Research Grant Expenditure
BEIS,UKRI - AHRC,20/06/2022,Research Grant Expenditure,Follow-on Fund,University of Oxford,99748955,20161.81,Research Grant Expenditure
BEIS,UKRI - AHRC,20/06/2022,Research Grant Expenditure,Research Grants,Queen's University Belfast GRANT,99748956,47685.97,Research Grant Expenditure
BEIS,UKRI - AHRC,20/06/2022,Research Grant Expenditure,Networks & Workshops,University of Birmingham GRANT,99748957,4567.39,Research Grant Expenditure
BEIS,UKRI - AHRC,20/06/2022,Research Grant Expenditure,Research Grants,University of Exeter,99748958,43095.63,Research Grant Expenditure
BEIS,UKRI - AHRC,20/06/2022,Research Grant Expenditure,Research Grants,"SOAS, University of London",99748959,49585.68,Research Grant Expenditure
BEIS,UKRI - AHRC,20/06/2022,Research Grant Expenditure,Networks & Workshops,Liverpool John Moores University,99748960,6026.42,Research Grant Expenditure
BEIS,UKRI - AHRC,20/06/2022,Research Grant Expenditure,Research Grants,University of Aberdeen,99748961,42689.02,Research Grant Expenditure
BEIS,UKRI - AHRC,20/06/2022,Research Grant Expenditure,Research Grants,University of Greenwich,99748962,32647.11,Research Grant Expenditure
BEIS,UKRI - AHRC,20/06/2022,Research Grant Expenditure,Follow-on Fund,"Royal Holloway, University of London",99748963,19722.75,Research Grant Expenditure
BEIS,UKRI - AHRC,20/06/2022,Research Grant Expenditure,Networks & Workshops,The University of Manchester,99748964,4498.28,Research Grant Expenditure
BEIS,UKRI - AHRC,20/06/2022,Research Grant Expenditure,Follow-on Fund,The National Archives,99748965,16634.78,Research Grant Expenditure
BEIS,UKRI - AHRC,20/06/2022,Research Grant Expenditure,Research Grants,University of London,99748966,50409.49,Research Grant Expenditure
BEIS,UKRI - AHRC,20/06/2022,Research Grant Expenditure,Networks & Workshops,University of Brighton,99748967,4782.13,Research Grant Expenditure
BEIS,UKRI - AHRC,20/06/2022,Research Grant Expenditure,Networks & Workshops,Coventry University,99748968,3427.04,Research Grant Expenditure
BEIS,UKRI - AHRC,20/06/2022,Research Grant Expenditure,Networks & Workshops,University of York,99748969,3546.36,Research Grant Expenditure
BEIS,UKRI - AHRC,20/06/2022,Research Grant Expenditure,Funds for International Collaboration (FIC 20 US),Nottingham Trent University,99748970,16933.11,Research Grant Expenditure
BEIS,UKRI - AHRC,20/06/2022,Research Grant Expenditure,Funds for International Collaboration (FIC 20 US),Nottingham Trent University,99748970,5000.00,Research Grant Expenditure
BEIS,UKRI - AHRC,20/06/2022,Research Grant Expenditure,Funds for International Collaboration (FIC 20 US),University of Leicester,99748971,33865.01,Research Grant Expenditure
BEIS,UKRI - AHRC,20/06/2022,Research Grant Expenditure,Funds for International Collaboration (FIC 20 US),"City, University of London",99748972,27776.73,Research Grant Expenditure
BEIS,UKRI - AHRC,20/06/2022,Research Grant Expenditure,Funds for International Collaboration (FIC 20 US),University of York,99748973,34874.57,Research Grant Expenditure
BEIS,UKRI - AHRC,20/06/2022,Research Grant Expenditure,Funds for International Collaboration (FIC 20 US),University of Reading,99748974,20587.09,Research Grant Expenditure
BEIS,UKRI - AHRC,20/06/2022,Research Grant Expenditure,Funds for International Collaboration (FIC 20 US),University of Oxford,99748975,24525.83,Research Grant Expenditure
BEIS,UKRI - AHRC,20/06/2022,Research Grant Expenditure,Funds for International Collaboration (FIC 20 US),University of Exeter,99748976,23231.02,Research Grant Expenditure
BEIS,UKRI - AHRC,20/06/2022,Research Grant Expenditure,Funds for International Collaboration (FIC 20 US),Goldsmiths College University of London,99748977,11176.59,Research Grant Expenditure
BEIS,UKRI - AHRC,20/06/2022,Research Grant Expenditure,Funds for International Collaboration (FIC 20 US),Lancaster University,99748978,19417.83,Research Grant Expenditure
BEIS,UKRI - AHRC,20/06/2022,Research Grant Expenditure,Funds for International Collaboration (FIC 20 US),Lancaster University,99748978,5000.00,Research Grant Expenditure
BEIS,UKRI - AHRC,20/06/2022,Research Grant Expenditure,Funds for International Collaboration (FIC 20 US),Science Museum Group,99748979,21786.58,Research Grant Expenditure
BEIS,UKRI - AHRC,20/06/2022,Research Grant Expenditure,Funds for International Collaboration (FIC 20 US),University of Cambridge,99748980,17368.42,Research Grant Expenditure
BEIS,UKRI - AHRC,20/06/2022,Research Grant Expenditure,Funds for International Collaboration (FIC 20 US),Loughborough University,99748981,6096.05,Research Grant Expenditure
BEIS,UKRI - AHRC,20/06/2022,Research Grant Expenditure,Funds for International Collaboration (FIC 20 US),Loughborough University,99748981,10000.00,Research Grant Expenditure
BEIS,UKRI - AHRC,20/06/2022,Research Grant Expenditure,Funds for International Collaboration (FIC 20 US),The Alan Turing Institute,99748982,30469.58,Research Grant Expenditure
BEIS,UKRI - AHRC,20/06/2022,Research Grant Expenditure,Research Grants,Loughborough University,99748983,19987.48,Research Grant Expenditure
BEIS,UKRI - AHRC,20/06/2022,Research Grant Expenditure,Research Grants,University of Brighton,99748984,29974.04,Research Grant Expenditure
BEIS,UKRI - AHRC,20/06/2022,Research Grant Expenditure,Research Grants,The Open University,99748985,62662.21,Research Grant Expenditure
BEIS,UKRI - AHRC,20/06/2022,Research Grant Expenditure,Research Grants,University of Reading,99748986,98033.75,Research Grant Expenditure
BEIS,UKRI - AHRC,20/06/2022,Research Grant Expenditure,Follow-on Fund,University of Sheffield,99748987,28215.43,Research Grant Expenditure
BEIS,UKRI - AHRC,20/06/2022,Research Grant Expenditure,Networks & Workshops,University of the Arts London,99748988,5297.61,Research Grant Expenditure
BEIS,UKRI - AHRC,20/06/2022,Research Grant Expenditure,Research Grants,De Montfort University,99748989,19232.39,Research Grant Expenditure
BEIS,UKRI - AHRC,20/06/2022,Research Grant Expenditure,Research Grants,De Montfort University,99748989,19232.48,Research Grant Expenditure
BEIS,UKRI - AHRC,20/06/2022,Research Grant Expenditure,Networks & Workshops,University of St Andrews,99748990,2953.10,Research Grant Expenditure
BEIS,UKRI - AHRC,20/06/2022,Research Grant Expenditure,Research Grants,"SOAS, University of London",99748991,38764.35,Research Grant Expenditure
BEIS,UKRI - AHRC,20/06/2022,Research Grant Expenditure,Follow-on Fund,Queen Mary University of London,99748992,20161.47,Research Grant Expenditure
BEIS,UKRI - AHRC,20/06/2022,Research Grant Expenditure,Follow-on Fund,Queen Mary University of London,99748992,20161.50,Research Grant Expenditure
BEIS,UKRI - AHRC,20/06/2022,Research Grant Expenditure,Follow-on Fund,University of Leeds,99748993,20450.78,Research Grant Expenditure
BEIS,UKRI - AHRC,20/06/2022,Research Grant Expenditure,Networks & Workshops,University of Kent,99748994,4471.94,Research Grant Expenditure
BEIS,UKRI - AHRC,20/06/2022,Research Grant Expenditure,Research Grants,Queen's University Belfast GRANT,99748995,59548.88,Research Grant Expenditure
BEIS,UKRI - AHRC,20/06/2022,Research Grant Expenditure,Networks & Workshops,University of Glasgow,99748996,4162.62,Research Grant Expenditure
BEIS,UKRI - AHRC,20/06/2022,Research Grant Expenditure,Follow-on Fund,University of Chester,99748997,19401.37,Research Grant Expenditure
BEIS,UKRI - AHRC,20/06/2022,Research Grant Expenditure,Networks & Workshops,King's College London,99748998,5871.40,Research Grant Expenditure
BEIS,UKRI - AHRC,20/06/2022,Research Grant Expenditure,Networks & Workshops,The University of Manchester,99748999,4495.54,Research Grant Expenditure
BEIS,UKRI - AHRC,20/06/2022,Research Grant Expenditure,Follow-on Fund,University of Glasgow,99749000,19705.34,Research Grant Expenditure
BEIS,UKRI - AHRC,20/06/2022,Research Grant Expenditure,Networks & Workshops,Goldsmiths College University of London,99749001,4051.50,Research Grant Expenditure
BEIS,UKRI - AHRC,20/06/2022,Research Grant Expenditure,Research Grants,University of Cambridge,99749002,23748.96,Research Grant Expenditure
BEIS,UKRI - AHRC,20/06/2022,Research Grant Expenditure,Follow-on Fund,University of Edinburgh,99749003,20341.64,Research Grant Expenditure
BEIS,UKRI - AHRC,20/06/2022,Research Grant Expenditure,Research Grants,The University of Manchester,99749004,29300.71,Research Grant Expenditure
BEIS,UKRI - AHRC,20/06/2022,Research Grant Expenditure,Research Grants,The University of Manchester,99749004,29300.70,Research Grant Expenditure
BEIS,UKRI - AHRC,20/06/2022,Research Grant Expenditure,Networks & Workshops,University of Leicester,99749005,3397.12,Research Grant Expenditure
BEIS,UKRI - AHRC,20/06/2022,Research Grant Expenditure,Networks & Workshops,University of St Andrews,99749006,4113.52,Research Grant Expenditure
BEIS,UKRI - AHRC,20/06/2022,Research Grant Expenditure,Networks & Workshops,University of St Andrews,99749006,4113.52,Research Grant Expenditure
BEIS,UKRI - AHRC,20/06/2022,Research Grant Expenditure,Networks & Workshops,University of St Andrews,99749006,4113.52,Research Grant Expenditure
BEIS,UKRI - AHRC,20/06/2022,Research Grant Expenditure,Networks & Workshops,University of St Andrews,99749006,4113.52,Research Grant Expenditure
BEIS,UKRI - AHRC,20/06/2022,Research Grant Expenditure,Research Grants,University of Warwick,99749007,13447.87,Research Grant Expenditure
BEIS,UKRI - AHRC,20/06/2022,Research Grant Expenditure,Global Challenges Research Fund (GCRF),University of Durham,99749008,85158.00,Research Grant Expenditure
BEIS,UKRI - AHRC,20/06/2022,Research Grant Expenditure,Networks & Workshops,University of Bristol GRANT,99749009,5800.95,Research Grant Expenditure
BEIS,UKRI - AHRC,20/06/2022,Research Grant Expenditure,Research Grants,University College London,99749010,65037.59,Research Grant Expenditure
BEIS,UKRI - AHRC,20/06/2022,Research Grant Expenditure,Research Grants,Northumbria University,99749011,59797.20,Research Grant Expenditure
BEIS,UKRI - AHRC,20/06/2022,Research Grant Expenditure,Research Grants,Oxford Brookes University,99749012,66974.55,Research Grant Expenditure
BEIS,UKRI - AHRC,20/06/2022,Research Grant Expenditure,Research Grants,University of Leeds,99749013,20002.03,Research Grant Expenditure
BEIS,UKRI - AHRC,20/06/2022,Research Grant Expenditure,Networks & Workshops,University of Warwick,99749014,3929.03,Research Grant Expenditure
BEIS,UKRI - AHRC,20/06/2022,Research Grant Expenditure,Research Grants,University of Sussex,99749015,66663.26,Research Grant Expenditure
BEIS,UKRI - AHRC,20/06/2022,Research Grant Expenditure,Follow-on Fund,Aston University,99749016,20160.57,Research Grant Expenditure
BEIS,UKRI - AHRC,20/06/2022,Research Grant Expenditure,Networks & Workshops,University of Southampton GRANT,99749017,4887.18,Research Grant Expenditure
BEIS,UKRI - AHRC,20/06/2022,Research Grant Expenditure,Research Grants,Lancaster University,99749018,74028.32,Research Grant Expenditure
BEIS,UKRI - AHRC,20/06/2022,Research Grant Expenditure,Research Grants,Northumbria University,99749019,54988.55,Research Grant Expenditure
BEIS,UKRI - AHRC,20/06/2022,Research Grant Expenditure,Research Grants,University College London,99749020,21181.64,Research Grant Expenditure
BEIS,UKRI - AHRC,20/06/2022,Research Grant Expenditure,Networks & Workshops,University of Glasgow,99749021,5681.56,Research Grant Expenditure
BEIS,UKRI - AHRC,20/06/2022,Research Grant Expenditure,Climate Resilience (SPF w1),University of Hull,99749022,41317.33,Research Grant Expenditure
BEIS,UKRI - AHRC,20/06/2022,Research Grant Expenditure,JPI Cultural Heritage,University College London,99749023,11192.11,Research Grant Expenditure
BEIS,UKRI - AHRC,20/06/2022,Research Grant Expenditure,Climate Resilience (SPF w1),University of Liverpool,99749024,40651.74,Research Grant Expenditure
BEIS,UKRI - AHRC,20/06/2022,Research Grant Expenditure,AHRC - DFG Collaborative Research Grant,Birkbeck College,99749025,81383.52,Research Grant Expenditure
BEIS,UKRI - AHRC,20/06/2022,Research Grant Expenditure,Research Grants,"City, University of London",99749026,58348.00,Research Grant Expenditure
BEIS,UKRI - AHRC,20/06/2022,Research Grant Expenditure,Climate Resilience (SPF w1),The University of Manchester,99749027,42563.33,Research Grant Expenditure
BEIS,UKRI - AHRC,20/06/2022,Research Grant Expenditure,Research Grants,Birmingham City University,99749028,21213.18,Research Grant Expenditure
BEIS,UKRI - AHRC,20/06/2022,Research Grant Expenditure,AHRC - DFG Collaborative Research Grant,University College London,99749029,25981.17,Research Grant Expenditure
BEIS,UKRI - AHRC,20/06/2022,Research Grant Expenditure,AHRC - DFG Collaborative Research Grant,University of Durham,99749030,90038.84,Research Grant Expenditure
BEIS,UKRI - AHRC,20/06/2022,Research Grant Expenditure,Research Grants,University of Exeter,99749031,54643.44,Research Grant Expenditure
BEIS,UKRI - AHRC,20/06/2022,Research Grant Expenditure,JPI Cultural Heritage,University of Durham,99749032,10828.72,Research Grant Expenditure
BEIS,UKRI - AHRC,20/06/2022,Research Grant Expenditure,Research Grants,Lancaster University,99749033,73934.65,Research Grant Expenditure
BEIS,UKRI - AHRC,20/06/2022,Research Grant Expenditure,Networks & Workshops,University of the Arts London,99749034,6043.92,Research Grant Expenditure
BEIS,UKRI - AHRC,20/06/2022,Research Grant Expenditure,Research Grants,University of Birmingham GRANT,99749035,69704.82,Research Grant Expenditure
BEIS,UKRI - AHRC,20/06/2022,Research Grant Expenditure,Networks & Workshops,University of Stirling,99749036,5192.13,Research Grant Expenditure
BEIS,UKRI - AHRC,20/06/2022,Research Grant Expenditure,Research Grants,Queen Mary University of London,99749037,43061.12,Research Grant Expenditure
BEIS,UKRI - AHRC,20/06/2022,Research Grant Expenditure,Research Grants,The University of Manchester,99749038,67544.11,Research Grant Expenditure
BEIS,UKRI - AHRC,20/06/2022,Research Grant Expenditure,Research Grants,University of Edinburgh,99749039,89312.30,Research Grant Expenditure
BEIS,UKRI - AHRC,20/06/2022,Research Grant Expenditure,JPI Cultural Heritage,University of York,99749040,7376.68,Research Grant Expenditure
BEIS,UKRI - AHRC,20/06/2022,Research Grant Expenditure,Research Grants,National Museums of Scotland,99749041,66577.58,Research Grant Expenditure
BEIS,UKRI - AHRC,20/06/2022,Research Grant Expenditure,Networks & Workshops,University of Westminster,99749042,4884.86,Research Grant Expenditure
BEIS,UKRI - AHRC,20/06/2022,Research Grant Expenditure,Research Grants,Brunel University London,99749043,32851.74,Research Grant Expenditure
BEIS,UKRI - AHRC,20/06/2022,Research Grant Expenditure,Networks & Workshops,University of Sheffield,99749044,5959.78,Research Grant Expenditure
BEIS,UKRI - AHRC,20/06/2022,Research Grant Expenditure,Research Grants,University of York,99749045,22611.51,Research Grant Expenditure
BEIS,UKRI - AHRC,20/06/2022,Research Grant Expenditure,Towards a National Collection (SPF),Historic Environment Scotland (GRANT),99749046,91043.78,Research Grant Expenditure
BEIS,UKRI - AHRC,20/06/2022,Research Grant Expenditure,Research Grants,University of Wolverhampton,99749047,40161.01,Research Grant Expenditure
BEIS,UKRI - AHRC,20/06/2022,Research Grant Expenditure,RCUK Global Challenges Research Fund (RCUK GCRF),University of Liverpool,99749048,16890.91,Research Grant Expenditure
BEIS,UKRI - AHRC,20/06/2022,Research Grant Expenditure,Commissioned Research,Royal Botanic Gardens Kew,99749049,33340.93,Research Grant Expenditure
BEIS,UKRI - AHRC,20/06/2022,Research Grant Expenditure,RCUK Global Challenges Research Fund (RCUK GCRF),University of Stirling,99749050,85356.10,Research Grant Expenditure
BEIS,UKRI - AHRC,20/06/2022,Research Grant Expenditure,RCUK Global Challenges Research Fund (RCUK GCRF),Institute of Development Studies,99749051,21387.34,Research Grant Expenditure
BEIS,UKRI - AHRC,20/06/2022,Research Grant Expenditure,Research Grants,University of Oxford,99749052,67936.46,Research Grant Expenditure
BEIS,UKRI - AHRC,20/06/2022,Research Grant Expenditure,Creative Economy,Loughborough University,99749053,68586.58,Research Grant Expenditure
BEIS,UKRI - AHRC,20/06/2022,Research Grant Expenditure,Networks & Workshops,Queen Mary University of London,99749054,7263.02,Research Grant Expenditure
BEIS,UKRI - AHRC,20/06/2022,Research Grant Expenditure,Research Grants,University of Birmingham GRANT,99749055,19770.65,Research Grant Expenditure
BEIS,UKRI - AHRC,20/06/2022,Research Grant Expenditure,Research Grants,University of Cambridge,99749056,86987.06,Research Grant Expenditure
BEIS,UKRI - AHRC,20/06/2022,Research Grant Expenditure,Research Grants,University of Sheffield,99749057,47513.57,Research Grant Expenditure
BEIS,UKRI - AHRC,20/06/2022,Research Grant Expenditure,Research Grants,University of York,99749058,41505.19,Research Grant Expenditure
BEIS,UKRI - AHRC,20/06/2022,Research Grant Expenditure,AHRC - DFG Collaborative Research Grant,University of Oxford,99749059,56972.78,Research Grant Expenditure
BEIS,UKRI - AHRC,20/06/2022,Research Grant Expenditure,Research Grants,The University of Manchester,99749060,66338.80,Research Grant Expenditure
BEIS,UKRI - AHRC,20/06/2022,Research Grant Expenditure,Networks & Workshops,University of Birmingham GRANT,99749061,4486.71,Research Grant Expenditure
BEIS,UKRI - AHRC,20/06/2022,Research Grant Expenditure,Research Grants,The University of Manchester,99749062,19992.56,Research Grant Expenditure
BEIS,UKRI - AHRC,20/06/2022,Research Grant Expenditure,Modern Slavery and Human Rights (SPF),British Institute Of International And Comparative Law,99749063,217933.71,Research Grant Expenditure
BEIS,UKRI - AHRC,20/06/2022,Research Grant Expenditure,Research Grants,National Museums of Scotland,99749064,74187.68,Research Grant Expenditure
BEIS,UKRI - AHRC,20/06/2022,Research Grant Expenditure,Commissioned Research,University of Newcastle Upon Tyne,99749065,61422.91,Research Grant Expenditure
BEIS,UKRI - AHRC,20/06/2022,Research Grant Expenditure,Funds for International Collaboration (FIC 20 US),Brunel University London,99749066,41738.08,Research Grant Expenditure
BEIS,UKRI - AHRC,20/06/2022,Research Grant Expenditure,Funds for International Collaboration (FIC 20 US),University College London,99749067,36234.42,Research Grant Expenditure
BEIS,UKRI - AHRC,20/06/2022,Research Grant Expenditure,Research Grants,University of Huddersfield,99749068,16658.01,Research Grant Expenditure
BEIS,UKRI - AHRC,20/06/2022,Research Grant Expenditure,Research Grants,University of Edinburgh,99749069,25145.76,Research Grant Expenditure
BEIS,UKRI - AHRC,20/06/2022,Research Grant Expenditure,Research Grants,University of Newcastle Upon Tyne,99749070,53096.40,Research Grant Expenditure
BEIS,UKRI - AHRC,20/06/2022,Research Grant Expenditure,Research Grants,University of Nottingham,99749071,43597.81,Research Grant Expenditure
BEIS,UKRI - AHRC,20/06/2022,Research Grant Expenditure,Research Grants,University of Salford,99749072,17497.25,Research Grant Expenditure
BEIS,UKRI - AHRC,20/06/2022,Research Grant Expenditure,RCUK Global Challenges Research Fund (RCUK GCRF),University of Exeter,99749073,118581.45,Research Grant Expenditure
BEIS,UKRI - AHRC,20/06/2022,Research Grant Expenditure,RCUK Global Challenges Research Fund (RCUK GCRF),University of Lincoln,99749074,117826.37,Research Grant Expenditure
BEIS,UKRI - AHRC,20/06/2022,Research Grant Expenditure,RCUK Global Challenges Research Fund (RCUK GCRF),The Open University,99749075,126733.67,Research Grant Expenditure
BEIS,UKRI - AHRC,20/06/2022,Research Grant Expenditure,RCUK Global Challenges Research Fund (RCUK GCRF),University of Birmingham GRANT,99749076,117193.76,Research Grant Expenditure
BEIS,UKRI - AHRC,20/06/2022,Research Grant Expenditure,RCUK Global Challenges Research Fund (RCUK GCRF),UNIVERSITY OF ULSTER,99749077,132545.11,Research Grant Expenditure
BEIS,UKRI - AHRC,20/06/2022,Research Grant Expenditure,RCUK Global Challenges Research Fund (RCUK GCRF),University of Bath,99749078,115530.44,Research Grant Expenditure
BEIS,UKRI - AHRC,20/06/2022,Research Grant Expenditure,RCUK Global Challenges Research Fund (RCUK GCRF),Aberystwyth University,99749079,117482.26,Research Grant Expenditure
BEIS,UKRI - AHRC,20/06/2022,Research Grant Expenditure,RCUK Global Challenges Research Fund (RCUK GCRF),Keele University,99749080,117447.75,Research Grant Expenditure
BEIS,UKRI - AHRC,20/06/2022,Research Grant Expenditure,RCUK Global Challenges Research Fund (RCUK GCRF),University of Glasgow,99749081,136908.83,Research Grant Expenditure
BEIS,UKRI - AHRC,20/06/2022,Research Grant Expenditure,RCUK Global Challenges Research Fund (RCUK GCRF),University of Bristol GRANT,99749082,116491.04,Research Grant Expenditure
BEIS,UKRI - AHRC,20/06/2022,Research Grant Expenditure,Research Grants,UNIVERSITY OF ULSTER,99749083,16562.32,Research Grant Expenditure
BEIS,UKRI - AHRC,20/06/2022,Research Grant Expenditure,RCUK Global Challenges Research Fund (RCUK GCRF),University of Birmingham GRANT,99749084,109098.00,Research Grant Expenditure
BEIS,UKRI - AHRC,20/06/2022,Research Grant Expenditure,Research Grants,University of Oxford,99749085,47599.79,Research Grant Expenditure
BEIS,UKRI - AHRC,20/06/2022,Research Grant Expenditure,Networks & Workshops,University of Edinburgh,99749086,4721.19,Research Grant Expenditure
BEIS,UKRI - AHRC,20/06/2022,Research Grant Expenditure,DFID Collaborative Humanitarian Protection Research Programme (CHPRP),Queen's University Belfast GRANT,99749087,113454.48,Research Grant Expenditure
BEIS,UKRI - AHRC,20/06/2022,Research Grant Expenditure,DFID Collaborative Humanitarian Protection Research Programme (CHPRP),London School of Economics and Political Science,99749088,61420.16,Research Grant Expenditure
BEIS,UKRI - AHRC,20/06/2022,Research Grant Expenditure,DFID Collaborative Humanitarian Protection Research Programme (CHPRP),University of Warwick,99749089,57375.33,Research Grant Expenditure
BEIS,UKRI - AHRC,20/06/2022,Research Grant Expenditure,DFID Collaborative Humanitarian Protection Research Programme (CHPRP),Institute of Development Studies,99749090,65576.42,Research Grant Expenditure
BEIS,UKRI - AHRC,20/06/2022,Research Grant Expenditure,DFID Collaborative Humanitarian Protection Research Programme (CHPRP),University of Durham,99749091,50308.32,Research Grant Expenditure
BEIS,UKRI - AHRC,20/06/2022,Research Grant Expenditure,DFID Collaborative Humanitarian Protection Research Programme (CHPRP),University of Portsmouth,99749094,65061.65,Research Grant Expenditure
BEIS,UKRI - AHRC,20/06/2022,Research Grant Expenditure,Research Grants,Oxford Brookes University,99749095,75884.68,Research Grant Expenditure
BEIS,UKRI - AHRC,20/06/2022,Research Grant Expenditure,Research Grants,The British Museum,99749096,18217.81,Research Grant Expenditure
BEIS,UKRI - AHRC,20/06/2022,Research Grant Expenditure,Research Grants,Bangor University,99749097,25054.44,Research Grant Expenditure
BEIS,UKRI - AHRC,20/06/2022,Research Grant Expenditure,Research Grants,University of Glasgow,99749098,59906.61,Research Grant Expenditure
BEIS,UKRI - AHRC,20/06/2022,Research Grant Expenditure,Research Grants,Birmingham City University,99749099,45923.42,Research Grant Expenditure
BEIS,UKRI - AHRC,20/06/2022,Research Grant Expenditure,Research Grants,University of Leicester,99749100,35576.11,Research Grant Expenditure
BEIS,UKRI - AHRC,20/06/2022,Research Grant Expenditure,Research Grants,Cardiff University,99749101,17101.45,Research Grant Expenditure
BEIS,UKRI - AHRC,20/06/2022,Research Grant Expenditure,Networks & Workshops,The University of Manchester,99749102,5092.43,Research Grant Expenditure
BEIS,UKRI - AHRC,20/06/2022,Research Grant Expenditure,Research Grants,Anglia Ruskin University,99749103,85137.65,Research Grant Expenditure
BEIS,UKRI - AHRC,20/06/2022,Research Grant Expenditure,Research Grants,Anglia Ruskin University,99749103,84453.55,Research Grant Expenditure
BEIS,UKRI - AHRC,20/06/2022,Research Grant Expenditure,Research Grants,Loughborough University,99749104,40995.03,Research Grant Expenditure
BEIS,UKRI - AHRC,20/06/2022,Research Grant Expenditure,Research Grants,University of Nottingham,99749105,73206.74,Research Grant Expenditure
BEIS,UKRI - AHRC,20/06/2022,Research Grant Expenditure,Research Grants,Cardiff University,99749106,25792.07,Research Grant Expenditure
BEIS,UKRI - AHRC,20/06/2022,Research Grant Expenditure,Research Grants,University of East Anglia,99749107,38154.56,Research Grant Expenditure
BEIS,UKRI - AHRC,20/06/2022,Research Grant Expenditure,Research Grants,The University of Manchester,99749108,26584.59,Research Grant Expenditure
BEIS,UKRI - AHRC,20/06/2022,Research Grant Expenditure,Research Grants,Loughborough University,99749109,18929.67,Research Grant Expenditure
BEIS,UKRI - AHRC,20/06/2022,Research Grant Expenditure,Research Grants,University of Hull,99749110,66349.64,Research Grant Expenditure
BEIS,UKRI - AHRC,20/06/2022,Research Grant Expenditure,Networks & Workshops,University of Leeds,99749111,4663.85,Research Grant Expenditure
BEIS,UKRI - AHRC,20/06/2022,Research Grant Expenditure,Networks & Workshops,University of Hull,99749112,4514.68,Research Grant Expenditure
BEIS,UKRI - AHRC,20/06/2022,Research Grant Expenditure,Networks & Workshops,Leeds Beckett University,99749113,3039.94,Research Grant Expenditure
BEIS,UKRI - AHRC,20/06/2022,Research Grant Expenditure,Research Grants,University of Southampton GRANT,99749114,38595.86,Research Grant Expenditure
BEIS,UKRI - AHRC,20/06/2022,Research Grant Expenditure,Research Grants,University of Bristol GRANT,99749115,69938.47,Research Grant Expenditure
BEIS,UKRI - AHRC,20/06/2022,Research Grant Expenditure,Research Grants,The University of Manchester,99749116,63273.11,Research Grant Expenditure
BEIS,UKRI - AHRC,20/06/2022,Research Grant Expenditure,Research Grants,Keele University,99749117,33544.26,Research Grant Expenditure
BEIS,UKRI - AHRC,20/06/2022,Research Grant Expenditure,RCUK Global Challenges Research Fund (RCUK GCRF),University of Sheffield,99749118,0.02,Research Grant Expenditure
BEIS,UKRI - AHRC,20/06/2022,Research Grant Expenditure,Research Grants,University of Sussex,99749119,52716.93,Research Grant Expenditure
BEIS,UKRI - AHRC,20/06/2022,Research Grant Expenditure,Networks & Workshops,University of Birmingham GRANT,99749120,5233.92,Research Grant Expenditure
BEIS,UKRI - AHRC,20/06/2022,Research Grant Expenditure,Research Grants,University of Stirling,99749121,68877.94,Research Grant Expenditure
BEIS,UKRI - AHRC,20/06/2022,Research Grant Expenditure,Research Grants,University of Durham,99749122,63129.22,Research Grant Expenditure
BEIS,UKRI - AHRC,20/06/2022,Research Grant Expenditure,Research Grants,University of Sussex,99749123,12563.23,Research Grant Expenditure
BEIS,UKRI - AHRC,20/06/2022,Research Grant Expenditure,Research Grants,University of Kent,99749124,22224.94,Research Grant Expenditure
BEIS,UKRI - AHRC,20/06/2022,Research Grant Expenditure,Research Grants,University of Sheffield,99749125,66177.63,Research Grant Expenditure
BEIS,UKRI - AHRC,20/06/2022,Research Grant Expenditure,Research Grants,University of Stirling,99749126,61476.97,Research Grant Expenditure
BEIS,UKRI - AHRC,20/06/2022,Research Grant Expenditure,Research Grants,University of Leicester,99749127,43759.03,Research Grant Expenditure
BEIS,UKRI - AHRC,20/06/2022,Research Grant Expenditure,Research Grants,University of Leeds,99749128,42287.35,Research Grant Expenditure
BEIS,UKRI - AHRC,20/06/2022,Research Grant Expenditure,Research Grants,The British Museum,99749129,51675.69,Research Grant Expenditure
BEIS,UKRI - AHRC,20/06/2022,Research Grant Expenditure,Research Grants,Manchester Metropolitan University,99749130,63619.48,Research Grant Expenditure
BEIS,UKRI - AHRC,20/06/2022,Research Grant Expenditure,Research Grants,University of Leicester,99749131,67070.27,Research Grant Expenditure
BEIS,UKRI - AHRC,20/06/2022,Research Grant Expenditure,Research Grants,University College London,99749132,20447.06,Research Grant Expenditure
BEIS,UKRI - AHRC,20/06/2022,Research Grant Expenditure,Research Grants,University of Newcastle Upon Tyne,99749133,61895.26,Research Grant Expenditure
BEIS,UKRI - AHRC,20/06/2022,Research Grant Expenditure,Research Grants,University of Oxford,99749134,53278.31,Research Grant Expenditure
BEIS,UKRI - AHRC,20/06/2022,Research Grant Expenditure,Research Grants,University of York,99749135,55798.71,Research Grant Expenditure
BEIS,UKRI - AHRC,20/06/2022,Research Grant Expenditure,Research Grants,University of Leeds,99749136,49581.46,Research Grant Expenditure
BEIS,UKRI - AHRC,20/06/2022,Research Grant Expenditure,Research Grants,University of Newcastle Upon Tyne,99749137,62732.66,Research Grant Expenditure
BEIS,UKRI - AHRC,20/06/2022,Research Grant Expenditure,Research Grants,Royal College of Music,99749138,63882.55,Research Grant Expenditure
BEIS,UKRI - AHRC,20/06/2022,Research Grant Expenditure,Research Grants,The University of Manchester,99749139,16928.05,Research Grant Expenditure
BEIS,UKRI - AHRC,20/06/2022,Research Grant Expenditure,Cultural Values Project,University of Leeds,99749140,102449.58,Research Grant Expenditure
BEIS,UKRI - AHRC,20/06/2022,Research Grant Expenditure,Living with Machines (SPF),The Alan Turing Institute,99749141,417124.04,Research Grant Expenditure
BEIS,UKRI - AHRC,20/06/2022,Research Grant Expenditure,Research Grants,University of Reading,99749142,65283.92,Research Grant Expenditure
BEIS,UKRI - AHRC,20/06/2022,Research Grant Expenditure,Research Grants,University of Glasgow,99749143,58180.40,Research Grant Expenditure
BEIS,UKRI - AHRC,20/06/2022,Research Grant Expenditure,Research Grants,University of Oxford,99749144,45821.29,Research Grant Expenditure
BEIS,UKRI - AHRC,20/06/2022,Research Grant Expenditure,Research Grants,University of Newcastle Upon Tyne,99749145,66896.79,Research Grant Expenditure
BEIS,UKRI - AHRC,20/06/2022,Research Grant Expenditure,Research Grants,University of Southampton GRANT,99749146,56033.16,Research Grant Expenditure
BEIS,UKRI - AHRC,20/06/2022,Research Grant Expenditure,Research Grants,The University of Manchester,99749147,61467.64,Research Grant Expenditure
BEIS,UKRI - AHRC,20/06/2022,Research Grant Expenditure,Research Grants,University of Liverpool,99749148,70793.00,Research Grant Expenditure
BEIS,UKRI - AHRC,20/06/2022,Research Grant Expenditure,Research Grants,King's College London,99749149,67614.92,Research Grant Expenditure
BEIS,UKRI - AHRC,20/06/2022,Research Grant Expenditure,Research Grants,University of Cambridge,99749150,53459.01,Research Grant Expenditure
BEIS,UKRI - AHRC,20/06/2022,Research Grant Expenditure,Research Grants,University of Oxford,99749151,55925.10,Research Grant Expenditure
BEIS,UKRI - AHRC,20/06/2022,Research Grant Expenditure,Research Grants,University of York,99749152,64235.32,Research Grant Expenditure
BEIS,UKRI - AHRC,20/06/2022,Research Grant Expenditure,Research Grants,Cardiff University,99749153,46878.81,Research Grant Expenditure
BEIS,UKRI - AHRC,20/06/2022,Research Grant Expenditure,Research Grants,Lancaster University,99749154,52080.45,Research Grant Expenditure
BEIS,UKRI - AHRC,20/06/2022,Research Grant Expenditure,Research Grants,University College London,99749155,30687.80,Research Grant Expenditure
BEIS,UKRI - AHRC,20/06/2022,Research Grant Expenditure,Research Grants,University of Bristol GRANT,99749156,74451.89,Research Grant Expenditure
BEIS,UKRI - AHRC,20/06/2022,Research Grant Expenditure,Research Grants,Guildhall School of Music and Drama,99749157,70557.84,Research Grant Expenditure
BEIS,UKRI - AHRC,20/06/2022,Research Grant Expenditure,Research Grants,University of Oxford,99749158,72886.95,Research Grant Expenditure
BEIS,UKRI - AHRC,20/06/2022,Research Grant Expenditure,Research Grants,Birmingham City University,99749159,14583.82,Research Grant Expenditure
BEIS,UKRI - AHRC,20/06/2022,Research Grant Expenditure,Research Grants,The University of Manchester,99749160,51464.02,Research Grant Expenditure
BEIS,UKRI - AHRC,20/06/2022,Research Grant Expenditure,RCUK Global Challenges Research Fund (RCUK GCRF),London School of Economics and Political Science,99749161,769179.61,Research Grant Expenditure
BEIS,UKRI - AHRC,20/06/2022,Research Grant Expenditure,Industrial Strategy Challenge Fund (ISCF) - Creative Clusters,University of the West of England,99749162,133364.92,Research Grant Expenditure
BEIS,UKRI - AHRC,20/06/2022,Research Grant Expenditure,Industrial Strategy Challenge Fund (ISCF) - Creative Clusters,Abertay University,99749163,125089.36,Research Grant Expenditure
BEIS,UKRI - AHRC,20/06/2022,Research Grant Expenditure,Industrial Strategy Challenge Fund (ISCF) - Creative Clusters,UNIVERSITY OF ULSTER,99749164,133991.27,Research Grant Expenditure
BEIS,UKRI - AHRC,20/06/2022,Research Grant Expenditure,Industrial Strategy Challenge Fund (ISCF) - Creative Clusters,University of York,99749165,131944.88,Research Grant Expenditure
BEIS,UKRI - AHRC,20/06/2022,Research Grant Expenditure,Industrial Strategy Challenge Fund (ISCF) - Creative Clusters,University of York,99749165,50000.00,Research Grant Expenditure
BEIS,UKRI - AHRC,20/06/2022,Research Grant Expenditure,Industrial Strategy Challenge Fund (ISCF) - Creative Clusters,University of Leeds,99749166,130769.68,Research Grant Expenditure
BEIS,UKRI - AHRC,20/06/2022,Research Grant Expenditure,Industrial Strategy Challenge Fund (ISCF) - Creative Clusters,University of the Arts London,99749167,130655.03,Research Grant Expenditure
BEIS,UKRI - AHRC,20/06/2022,Research Grant Expenditure,Industrial Strategy Challenge Fund (ISCF) - Creative Clusters,Cardiff University,99749168,126700.31,Research Grant Expenditure
BEIS,UKRI - AHRC,20/06/2022,Research Grant Expenditure,Industrial Strategy Challenge Fund (ISCF) - Creative Clusters,University of Edinburgh,99749169,133210.87,Research Grant Expenditure
BEIS,UKRI - AHRC,20/06/2022,Research Grant Expenditure,Industrial Strategy Challenge Fund (ISCF) - Creative Clusters,"Royal Holloway, University of London",99749170,133855.38,Research Grant Expenditure
BEIS,UKRI - AHRC,20/06/2022,Research Grant Expenditure,Research Grants,University of Oxford,99749171,41502.25,Research Grant Expenditure
BEIS,UKRI - AHRC,20/06/2022,Research Grant Expenditure,Research Grants,University of Newcastle Upon Tyne,99749172,51384.91,Research Grant Expenditure
BEIS,UKRI - AHRC,20/06/2022,Research Grant Expenditure,Research Grants,University of Reading,99749173,67123.16,Research Grant Expenditure
BEIS,UKRI - AHRC,20/06/2022,Research Grant Expenditure,Industrial Strategy Challenge Fund (ISCF) - Creative Clusters,NESTA,99749174,314454.96,Research Grant Expenditure
BEIS,UKRI - AHRC,20/06/2022,Research Grant Expenditure,Research Grants,University of Reading,99749175,48293.25,Research Grant Expenditure
BEIS,UKRI - AHRC,20/06/2022,Research Grant Expenditure,Research Grants,University of East Anglia,99749176,34766.46,Research Grant Expenditure
BEIS,UKRI - AHRC,20/06/2022,Research Grant Expenditure,Research Grants,University of Glasgow,99749177,34785.08,Research Grant Expenditure
BEIS,UKRI - AHRC,20/06/2022,Research Grant Expenditure,Science and Heritage Programme,University College London,99749178,12043.54,Research Grant Expenditure
BEIS,UKRI - AHRC,20/06/2022,Research Grant Expenditure,Research Grants,University of Oxford,99749179,26267.45,Research Grant Expenditure
BEIS,UKRI - AHRC,20/06/2022,Research Grant Expenditure,Research Grants,University of Aberdeen,99749180,25640.06,Research Grant Expenditure
BEIS,UKRI - AHRC,20/06/2022,Research Grant Expenditure,DEDEFI Capital Grants,University of Sussex,99749181,40678.23,Research Grant Expenditure
BEIS,UKRI - AHRC,20/06/2022,Research Grant Expenditure,Design: Strategic Initiatives,University of Kent,99749182,19381.46,Research Grant Expenditure
BEIS,UKRI - AHRC,20/06/2022,Research Grant Expenditure,Design: Strategic Initiatives,Brunel University London,99749183,20161.99,Research Grant Expenditure
BEIS,UKRI - AHRC,20/06/2022,Research Grant Expenditure,Design: Strategic Initiatives,University of the Arts London,99749184,19701.50,Research Grant Expenditure
BEIS,UKRI - AHRC,20/06/2022,Research Grant Expenditure,Public and Stakeholder Engagement,Queen Mary University of London,99749185,10081.00,Research Grant Expenditure
BEIS,UKRI - AHRC,20/06/2022,Research Grant Expenditure,Public and Stakeholder Engagement,University of Warwick,99749186,8619.00,Research Grant Expenditure
BEIS,UKRI - AHRC,20/06/2022,Research Grant Expenditure,Public and Stakeholder Engagement,University of East Anglia,99749187,9081.95,Research Grant Expenditure
BEIS,UKRI - AHRC,20/06/2022,Research Grant Expenditure,Public and Stakeholder Engagement,University of Exeter,99749188,-3768.67,Research Grant Expenditure
BEIS,UKRI - AHRC,20/06/2022,Research Grant Expenditure,Public and Stakeholder Engagement,University of Edinburgh,99749189,10074.95,Research Grant Expenditure
BEIS,UKRI - AHRC,20/06/2022,Research Grant Expenditure,Public and Stakeholder Engagement,Manchester Metropolitan University,99749190,-2473.20,Research Grant Expenditure
BEIS,UKRI - AHRC,20/06/2022,Research Grant Expenditure,Public and Stakeholder Engagement,University of Cambridge,99749191,7594.09,Research Grant Expenditure
BEIS,UKRI - AHRC,20/06/2022,Research Grant Expenditure,Public and Stakeholder Engagement,University of Glasgow,99749192,9606.46,Research Grant Expenditure
BEIS,UKRI - AHRC,20/06/2022,Research Grant Expenditure,COVID-19 (AHRC funded),University of Exeter,99749193,-5132.44,Research Grant Expenditure
BEIS,UKRI - AHRC,20/06/2022,Research Grant Expenditure,Follow-on Fund,University of Warwick,99749194,67374.77,Research Grant Expenditure
BEIS,UKRI - AHRC,20/06/2022,Research Grant Expenditure,COVID-19 (AHRC funded),University of Strathclyde,99749195,-13543.01,Research Grant Expenditure
BEIS,UKRI - AHRC,20/06/2022,Research Grant Expenditure,COVID-19 (AHRC funded),University of Exeter,99749196,-2184.15,Research Grant Expenditure
BEIS,UKRI - AHRC,20/06/2022,Research Grant Expenditure,COVID-19 (AHRC funded),University of Southampton GRANT,99749197,-738.16,Research Grant Expenditure
BEIS,UKRI - AHRC,20/06/2022,Research Grant Expenditure,COVID-19,University of Strathclyde,99749198,22191.91,Research Grant Expenditure
BEIS,UKRI - AHRC,20/06/2022,Research Grant Expenditure,Global Challenges Research Fund (GCRF),University College London,99749199,-1193.52,Research Grant Expenditure
BEIS,UKRI - AHRC,20/06/2022,Research Grant Expenditure,Global Challenges Research Fund (GCRF),University of Bristol GRANT,99749200,-46.15,Research Grant Expenditure
BEIS,UKRI - AHRC,20/06/2022,Research Grant Expenditure,COVID-19,University of Brighton,99749201,18712.28,Research Grant Expenditure
BEIS,UKRI - AHRC,20/06/2022,Research Grant Expenditure,COVID-19,University of Kent,99749202,29255.59,Research Grant Expenditure
BEIS,UKRI - AHRC,20/06/2022,Research Grant Expenditure,COVID-19,University of London,99749203,17704.65,Research Grant Expenditure
BEIS,UKRI - AHRC,20/06/2022,Research Grant Expenditure,Follow-on Fund,Queen Mary University of London,99749204,-14.26,Research Grant Expenditure
BEIS,UKRI - AHRC,20/06/2022,Research Grant Expenditure,Commissioned Research,Cardiff Metropolitan University,99749205,29013.00,Research Grant Expenditure
BEIS,UKRI - AHRC,20/06/2022,Capital Grants & Equipment to HEIs,Commissioned Research,Cardiff University,99749206,20599.41,Capital Grants & Equipment to HEIs
BEIS,UKRI - AHRC,20/06/2022,Research Grant Expenditure,Follow-on Fund,University of Stirling,99749207,-17844.56,Research Grant Expenditure
BEIS,UKRI - AHRC,20/06/2022,Research Grant Expenditure,COVID-19 (AHRC funded),Goldsmiths College University of London,99749208,13625.85,Research Grant Expenditure
BEIS,UKRI - AHRC,20/06/2022,Research Grant Expenditure,Modern Slavery and Human Rights (SPF),University of Aberdeen,99749209,-9818.83,Research Grant Expenditure
BEIS,UKRI - AHRC,20/06/2022,Research Grant Expenditure,Follow-on Fund,University of Newcastle Upon Tyne,99749210,-160.81,Research Grant Expenditure
BEIS,UKRI - AHRC,20/06/2022,Research Grant Expenditure,COVID-19,Keele University,99749211,-20741.26,Research Grant Expenditure
BEIS,UKRI - AHRC,20/06/2022,Research Grant Expenditure,Global Challenges Research Fund (GCRF),University of Leicester,99749212,-25248.89,Research Grant Expenditure
BEIS,UKRI - AHRC,20/06/2022,Research Grant Expenditure,Follow-on Fund,University of Oxford,99749213,-96.90,Research Grant Expenditure
BEIS,UKRI - AHRC,20/06/2022,Research Grant Expenditure,Commissioned Research,"Royal Holloway, University of London",99749214,-2709.03,Research Grant Expenditure
BEIS,UKRI - AHRC,20/06/2022,Research Grant Expenditure,Commissioned Research,Roehampton University (University of Roehampton),99749215,-9763.60,Research Grant Expenditure
BEIS,UKRI - AHRC,20/06/2022,Research Grant Expenditure,Commissioned Research,University of Durham,99749216,-36143.05,Research Grant Expenditure
BEIS,UKRI - AHRC,20/06/2022,Research Grant Expenditure,Commissioned Research,Royal College of Art,99749217,-17466.71,Research Grant Expenditure
BEIS,UKRI - AHRC,20/06/2022,Research Grant Expenditure,Global Challenges Research Fund (GCRF),Coventry University,99749218,-22447.92,Research Grant Expenditure
BEIS,UKRI - AHRC,20/06/2022,Research Grant Expenditure,Funds for International Collaboration (FIC 20 US),Loughborough University,99749219,-396.22,Research Grant Expenditure
BEIS,UKRI - AHRC,20/06/2022,Research Grant Expenditure,Funds for International Collaboration (FIC 20 US),University of Oxford,99749220,-2056.30,Research Grant Expenditure
BEIS,UKRI - AHRC,20/06/2022,Research Grant Expenditure,Funds for International Collaboration (FIC 20 US),University of Oxford,99749221,-0.54,Research Grant Expenditure
BEIS,UKRI - AHRC,20/06/2022,Research Grant Expenditure,Funds for International Collaboration (FIC 20 US),University of London,99749222,-10237.06,Research Grant Expenditure
BEIS,UKRI - AHRC,20/06/2022,Research Grant Expenditure,Follow-on Fund,Glasgow School of Art,99749223,-2181.19,Research Grant Expenditure
BEIS,UKRI - AHRC,20/06/2022,Research Grant Expenditure,Follow-on Fund,University of Newcastle Upon Tyne,99749224,-4219.63,Research Grant Expenditure
BEIS,UKRI - AHRC,20/06/2022,Research Grant Expenditure,Funds for International Collaboration (FIC 20 US),Nottingham Trent University,99749225,-7.79,Research Grant Expenditure
BEIS,UKRI - AHRC,20/06/2022,Research Grant Expenditure,Networks & Workshops,University of Lincoln,99749226,-3300.96,Research Grant Expenditure
BEIS,UKRI - AHRC,20/06/2022,Research Grant Expenditure,Follow-on Fund,The University of Manchester,99749227,20066.34,Research Grant Expenditure
BEIS,UKRI - AHRC,20/06/2022,Research Grant Expenditure,Landscape Decisions (SPF),University of Exeter,99749228,-1124.05,Research Grant Expenditure
BEIS,UKRI - AHRC,20/06/2022,Research Grant Expenditure,Networks & Workshops,University of Stirling,99749229,5376.66,Research Grant Expenditure
BEIS,UKRI - AHRC,20/06/2022,Research Grant Expenditure,Global Challenges Research Fund (GCRF),University of Leeds,99749230,-2296.90,Research Grant Expenditure
BEIS,UKRI - AHRC,20/06/2022,Research Grant Expenditure,Global Challenges Research Fund (GCRF),University of Liverpool,99749231,-1366.30,Research Grant Expenditure
BEIS,UKRI - AHRC,20/06/2022,Research Grant Expenditure,Global Challenges Research Fund (GCRF),University of Birmingham GRANT,99749232,-2569.96,Research Grant Expenditure
BEIS,UKRI - AHRC,20/06/2022,Research Grant Expenditure,Follow-on Fund,University of East Anglia,99749233,-10293.02,Research Grant Expenditure
BEIS,UKRI - AHRC,20/06/2022,Research Grant Expenditure,Global Challenges Research Fund (GCRF),UNIVERSITY OF ULSTER,99749235,-4591.29,Research Grant Expenditure
BEIS,UKRI - AHRC,20/06/2022,Research Grant Expenditure,Newton Programme,University of the Arts London,99749236,13297.32,Research Grant Expenditure
BEIS,UKRI - AHRC,20/06/2022,Research Grant Expenditure,Newton Programme,University of Sussex,99749237,-31.32,Research Grant Expenditure
BEIS,UKRI - AHRC,20/06/2022,Research Grant Expenditure,Newton Programme,University of Exeter,99749238,-13443.38,Research Grant Expenditure
BEIS,UKRI - AHRC,20/06/2022,Research Grant Expenditure,RCUK Global Challenges Research Fund (RCUK GCRF),International Institute For Environment And Development,99749239,15413.98,Research Grant Expenditure
BEIS,UKRI - AHRC,20/06/2022,Research Grant Expenditure,RCUK Global Challenges Research Fund (RCUK GCRF),University of York,99749240,-69017.85,Research Grant Expenditure
BEIS,UKRI - AHRC,20/06/2022,Research Grant Expenditure,Research Grants,Loughborough University,99749241,21668.84,Research Grant Expenditure
BEIS,UKRI - AHRC,20/06/2022,Research Grant Expenditure,Follow-on Fund,The Open University,99749242,13628.65,Research Grant Expenditure
BEIS,UKRI - AHRC,20/06/2022,Research Grant Expenditure,Funds for International Collaboration (FIC 20 US),University of Birmingham GRANT,99749243,-2709.39,Research Grant Expenditure
BEIS,UKRI - AHRC,20/06/2022,Research Grant Expenditure,Funds for International Collaboration (FIC 20 US),University of Cambridge,99749244,-9691.74,Research Grant Expenditure
BEIS,UKRI - AHRC,20/06/2022,Research Grant Expenditure,Networks & Workshops,Nottingham Trent University,99749245,-2560.42,Research Grant Expenditure
BEIS,UKRI - AHRC,20/06/2022,Research Grant Expenditure,Newton Programme,University of Durham,99749246,-2706.42,Research Grant Expenditure
BEIS,UKRI - AHRC,20/06/2022,Research Grant Expenditure,Follow-on Fund,King's College London,99749247,-1125.39,Research Grant Expenditure
BEIS,UKRI - AHRC,20/06/2022,Research Grant Expenditure,Networks & Workshops,University of Westminster,99749248,-6971.37,Research Grant Expenditure
BEIS,UKRI - AHRC,20/06/2022,Research Grant Expenditure,Networks & Workshops,University College London,99749249,-8496.53,Research Grant Expenditure
BEIS,UKRI - AHRC,20/06/2022,Research Grant Expenditure,Global Challenges Research Fund (GCRF),Loughborough University,99749250,-24.61,Research Grant Expenditure
BEIS,UKRI - AHRC,20/06/2022,Research Grant Expenditure,Research Grants,University of the Arts London,99749251,106.17,Research Grant Expenditure
BEIS,UKRI - AHRC,20/06/2022,Research Grant Expenditure,Newton Programme,University of Leeds,99749252,-26700.98,Research Grant Expenditure
BEIS,UKRI - AHRC,20/06/2022,Research Grant Expenditure,Research Grants,University of Oxford,99749253,42082.53,Research Grant Expenditure
BEIS,UKRI - AHRC,20/06/2022,Research Grant Expenditure,Research Grants,University of York,99749254,60051.74,Research Grant Expenditure
BEIS,UKRI - AHRC,20/06/2022,Research Grant Expenditure,Networks & Workshops,Birmingham City University,99749255,2297.10,Research Grant Expenditure
BEIS,UKRI - AHRC,20/06/2022,Research Grant Expenditure,JPI Cultural Heritage,De Montfort University,99749256,-52290.04,Research Grant Expenditure
BEIS,UKRI - AHRC,20/06/2022,Research Grant Expenditure,Research Grants,University of Oxford,99749257,67686.51,Research Grant Expenditure
BEIS,UKRI - AHRC,20/06/2022,Research Grant Expenditure,Networks & Workshops,Queen's University Belfast GRANT,99749258,-17058.07,Research Grant Expenditure
BEIS,UKRI - AHRC,20/06/2022,Research Grant Expenditure,Research Grants,University of Leeds,99749259,24360.06,Research Grant Expenditure
BEIS,UKRI - AHRC,20/06/2022,Research Grant Expenditure,Newton Programme,"City, University of London",99749260,-7127.46,Research Grant Expenditure
BEIS,UKRI - AHRC,20/06/2022,Research Grant Expenditure,Research Grants,London School of Economics and Political Science,99749261,51876.51,Research Grant Expenditure
BEIS,UKRI - AHRC,20/06/2022,Research Grant Expenditure,Research Grants,Cardiff University,99749262,-2690.52,Research Grant Expenditure
BEIS,UKRI - AHRC,20/06/2022,Research Grant Expenditure,Global Challenges Research Fund (GCRF),Coventry University,99749263,-755.56,Research Grant Expenditure
BEIS,UKRI - AHRC,20/06/2022,Research Grant Expenditure,Research Grants,Keele University,99749264,62181.05,Research Grant Expenditure
BEIS,UKRI - AHRC,20/06/2022,Research Grant Expenditure,Research Grants,University of the West of England,99749265,11644.05,Research Grant Expenditure
BEIS,UKRI - AHRC,20/06/2022,Research Grant Expenditure,Design: Strategic Initiatives,University of Strathclyde,99749266,86812.54,Research Grant Expenditure
BEIS,UKRI - AHRC,20/06/2022,Research Grant Expenditure,Research Grants,University of Exeter,99749267,66331.29,Research Grant Expenditure
BEIS,UKRI - AHRC,20/06/2022,Research Grant Expenditure,Global Uncertainties Programme,University of Oxford,99749268,30996.72,Research Grant Expenditure
BEIS,UKRI - AHRC,20/06/2022,Research Grant Expenditure,Global Challenges Research Fund (GCRF),University College London,99749269,-7487.11,Research Grant Expenditure
BEIS,UKRI - AHRC,20/06/2022,Research Grant Expenditure,Research Grants,Historic Environment Scotland (GRANT),99749270,41439.26,Research Grant Expenditure
BEIS,UKRI - AHRC,20/06/2022,Research Grant Expenditure,Research Grants,Lancaster University,99749271,24734.75,Research Grant Expenditure
BEIS,UKRI - AHRC,20/06/2022,Research Grant Expenditure,Open World Research Initiative (OWRI).,King's College London,99749272,127118.29,Research Grant Expenditure
BEIS,UKRI - AHRC,20/06/2022,Research Grant Expenditure,Research Grants,University of Exeter,99749273,-1266.59,Research Grant Expenditure
BEIS,UKRI - AHRC,20/06/2022,Research Grant Expenditure,Research Grants,University of Reading,99749274,21961.12,Research Grant Expenditure
BEIS,UKRI - AHRC,20/06/2022,Research Grant Expenditure,Research Grants,University of Warwick,99749275,9865.57,Research Grant Expenditure
BEIS,UKRI - AHRC,20/06/2022,Research Grant Expenditure,Follow-on Fund,University of East Anglia,99749276,-7152.68,Research Grant Expenditure
BEIS,UKRI - AHRC,20/06/2022,Research Grant Expenditure,Newton Programme,"City, University of London",99749277,-39960.40,Research Grant Expenditure
BEIS,UKRI - AHRC,20/06/2022,Fellowships,Commissioned Research,University of the West of England,99749278,-2938.98,Fellowships
BEIS,UKRI - AHRC,20/06/2022,Fellowships,Commissioned Research,"Royal Holloway, University of London",99749279,-20876.18,Fellowships
BEIS,UKRI - AHRC,20/06/2022,Fellowships,Commissioned Research,University of Birmingham GRANT,99749280,-14540.22,Fellowships
BEIS,UKRI - AHRC,20/06/2022,Fellowships,Research Fellowships,University of Southampton GRANT,99749281,28381.43,Fellowships
BEIS,UKRI - AHRC,20/06/2022,Fellowships,Research Fellowships,University of Dundee,99749282,30343.55,Fellowships
BEIS,UKRI - AHRC,20/06/2022,Fellowships,Research Fellowships,The University of Manchester,99749283,15925.22,Fellowships
BEIS,UKRI - AHRC,20/06/2022,Fellowships,Research Fellowships,University of Edinburgh,99749284,22050.44,Fellowships
BEIS,UKRI - AHRC,20/06/2022,Fellowships,Research Fellowships,University of Leicester,99749285,-58649.00,Fellowships
BEIS,UKRI - AHRC,20/06/2022,Fellowships,Research Fellowships,The Royal Central School of Speech and Drama,99749286,30927.27,Fellowships
BEIS,UKRI - AHRC,20/06/2022,Fellowships,Research Fellowships,University of Birmingham GRANT,99749287,22995.55,Fellowships
BEIS,UKRI - AHRC,20/06/2022,Fellowships,NPIF Research Talent (RCUK Innovation Fellowships),University of the West of England,99749288,-4844.88,Fellowships
BEIS,UKRI - AHRC,20/06/2022,Fellowships,Research Fellowships,University of Bristol GRANT,99749289,33428.89,Fellowships
BEIS,UKRI - AHRC,20/06/2022,Fellowships,Research Fellowships,University of Edinburgh,99749290,16936.04,Fellowships
BEIS,UKRI - AHRC,20/06/2022,Fellowships,Research Fellowships,King's College London,99749291,0.04,Fellowships
BEIS,UKRI - AHRC,20/06/2022,Unspecified,Infrastruture Roadmap,Alexander Mann Solutions Ltd,99755857,1559.39,Legal & Professional Services
BEIS,UKRI - AHRC,20/06/2022,T&S UK - Public Transport,Public and Stakeholder Engagement,Unspecified,99756034,23.90,T&S UK - Public Transport
BEIS,UKRI - AHRC,20/06/2022,T&S UK - Subsistence,Public and Stakeholder Engagement,Unspecified,99756034,3.05,T&S UK - Subsistence
BEIS,UKRI - AHRC,21/06/2022,Research Grant Expenditure,Towards a National Collection (SPF),Historic Buildings and Monuments Commission for England T/A Historic England,99748882,239579.87,Research Grant Expenditure
BEIS,UKRI - AHRC,21/06/2022,Research Grant Expenditure,DFID Collaborative Humanitarian Protection Research Programme (CHPRP),Global Public Policy Institute,99749092,73519.91,Research Grant Expenditure
BEIS,UKRI - AHRC,21/06/2022,Research Grant Expenditure,DFID Collaborative Humanitarian Protection Research Programme (CHPRP),American University of Beirut,99749093,60939.30,Research Grant Expenditure
BEIS,UKRI - AHRC,21/06/2022,Research Grant Expenditure,Landscape Decisions (SPF),Historic Buildings and Monuments Commission for England T/A Historic England,99749234,-12117.74,Research Grant Expenditure
BEIS,UKRI - AHRC,21/06/2022,T&S UK - Subsistence,SMT,Unspecified,99755350,25.00,T&S UK - Subsistence
BEIS,UKRI - AHRC,21/06/2022,T&S UK - Public Transport,AI&Design,Unspecified,99755351,28.80,T&S UK - Public Transport
BEIS,UKRI - AHRC,21/06/2022,T&S UK - Subsistence,AI&Design,Unspecified,99755351,7.50,T&S UK - Subsistence
BEIS,UKRI - AHRC,21/06/2022,T&S UK - Subsistence,AI&Design,Unspecified,99755351,5.10,T&S UK - Subsistence
BEIS,UKRI - AHRC,21/06/2022,T&S UK - Subsistence,AI&Design,Unspecified,99755351,40.00,T&S UK - Subsistence
BEIS,UKRI - AHRC,21/06/2022,T&S UK - Subsistence,AI&Design,Unspecified,99755351,4.50,T&S UK - Subsistence
BEIS,UKRI - AHRC,21/06/2022,Research Grant Expenditure,Digital Economy,UKRI - Engineering & Physical Sciences Research Council,99755652,7297.06,Research Grant Expenditure
BEIS,UKRI - AHRC,21/06/2022,Research Grant Expenditure,Digital Economy,UKRI - Engineering & Physical Sciences Research Council,99755652,17733.62,Research Grant Expenditure
BEIS,UKRI - AHRC,21/06/2022,Non-staff travel and subsistance,International Partnership and Engagement,Unspecified,99756133,21.55,Non-staff travel and subsistance
BEIS,UKRI - AHRC,22/06/2022,Fees (Including College Members),Operations,Unspecified,99756558,170.00,Fees (Including College Members)
BEIS,UKRI - AHRC,23/06/2022,Unspecified,Public Engagement,Giggabox Ltd,99734959,5333.80,Legal & Professional Services
BEIS,UKRI - AHRC,23/06/2022,Unspecified,Public Engagement,Giggabox Ltd,99734959,54.50,Legal & Professional Services
BEIS,UKRI - AHRC,23/06/2022,T&S UK - Public Transport,Operations,Unspecified,99757232,19.00,T&S UK - Public Transport
BEIS,UKRI - AHRC,23/06/2022,T&S UK - Subsistence,Operations,Unspecified,99757232,87.34,T&S UK - Subsistence
BEIS,UKRI - AHRC,23/06/2022,T&S UK - Subsistence,Operations,Unspecified,99757232,20.97,T&S UK - Subsistence
BEIS,UKRI - AHRC,23/06/2022,T&S UK - Subsistence,Operations,Unspecified,99757232,50.00,T&S UK - Subsistence
BEIS,UKRI - AHRC,24/06/2022,Meetings & Catering,Secretariat,CH and Co Catering Ltd,99739761,601.92,Meetings & Catering
BEIS,UKRI - AHRC,24/06/2022,Meetings & Catering,Secretariat,CH and Co Catering Ltd,99739791,90.88,Meetings & Catering
BEIS,UKRI - AHRC,24/06/2022,Fees (Including College Members),Executive Office,Unspecified,99758147,170.00,Fees (Including College Members)
BEIS,UKRI - AHRC,24/06/2022,Non-staff travel and subsistance,Operations,Unspecified,99758148,10.00,Non-staff travel and subsistance
BEIS,UKRI - AHRC,24/06/2022,T&S UK - Mileage,AHRC - Creative Industries,Unspecified,99758349,174.60,T&S UK - Mileage
BEIS,UKRI - AHRC,24/06/2022,T&S UK - Public Transport,AHRC - Creative Industries,Unspecified,99758349,39.60,T&S UK - Public Transport
BEIS,UKRI - AHRC,24/06/2022,T&S UK - Subsistence,AHRC - Creative Industries,Unspecified,99758349,23.00,T&S UK - Subsistence
BEIS,UKRI - AHRC,24/06/2022,T&S UK - Subsistence,AHRC - Creative Industries,Unspecified,99758349,10.50,T&S UK - Subsistence
BEIS,UKRI - AHRC,24/06/2022,T&S UK - Subsistence,AHRC - Creative Industries,Unspecified,99758349,32.85,T&S UK - Subsistence
BEIS,UKRI - AHRC,24/06/2022,T&S UK - Subsistence,AHRC - Creative Industries,Unspecified,99758349,15.00,T&S UK - Subsistence
BEIS,UKRI - AHRC,27/06/2022,Fees (Including College Members),Operations,Unspecified,99757684,170.00,Fees (Including College Members)
BEIS,UKRI - AHRC,27/06/2022,Research Grant Expenditure,Artificial Intelligence,The Nuffield Foundation,99758475,26000.00,Research Grant Expenditure
BEIS,UKRI - AHRC,28/06/2022,Fellowships,Public Policy,UKRI - Economic & Social Research Council,99758998,2583.30,Fellowships
BEIS,UKRI - AHRC,28/06/2022,Fellowships,Public Policy,UKRI - Economic & Social Research Council,99758998,13553.50,Fellowships
BEIS,UKRI - AHRC,28/06/2022,Fellowships,Public Policy,UKRI - Economic & Social Research Council,99758998,9961.45,Fellowships
BEIS,UKRI - AHRC,28/06/2022,Fellowships,Public Policy,UKRI - Economic & Social Research Council,99758998,25674.28,Fellowships
BEIS,UKRI - AHRC,28/06/2022,Fellowships,Public Policy,UKRI - Economic & Social Research Council,99758998,13442.59,Fellowships
BEIS,UKRI - AHRC,28/06/2022,Research Grant Expenditure,Commissioned Research,UKRI - Economic & Social Research Council,99758999,5967.22,Research Grant Expenditure
BEIS,UKRI - AHRC,28/06/2022,Research Grant Expenditure,Commissioned Research,UKRI - Economic & Social Research Council,99758999,6627.46,Research Grant Expenditure
BEIS,UKRI - AHRC,28/06/2022,Research Grant Expenditure,Commissioned Research,UKRI - Economic & Social Research Council,99758999,6892.33,Research Grant Expenditure
BEIS,UKRI - AHRC,28/06/2022,Research Grant Expenditure,Commissioned Research,UKRI - Economic & Social Research Council,99758999,6907.05,Research Grant Expenditure
BEIS,UKRI - AHRC,28/06/2022,Research Grant Expenditure,Commissioned Research,UKRI - Economic & Social Research Council,99758999,7230.09,Research Grant Expenditure
BEIS,UKRI - AHRC,28/06/2022,Research Grant Expenditure,Commissioned Research,UKRI - Economic & Social Research Council,99758999,11751.14,Research Grant Expenditure
BEIS,UKRI - AHRC,28/06/2022,Research Grant Expenditure,Urban Living,UKRI - Economic & Social Research Council,99759002,1814.11,Research Grant Expenditure
BEIS,UKRI - AHRC,28/06/2022,Research Grant Expenditure,Urban Living,UKRI - Economic & Social Research Council,99759002,6761.39,Research Grant Expenditure
BEIS,UKRI - AHRC,28/06/2022,Research Grant Expenditure,Urban Living,UKRI - Economic & Social Research Council,99759002,1671.24,Research Grant Expenditure
BEIS,UKRI - AHRC,28/06/2022,Non-staff travel and subsistance,Operations,Unspecified,99759118,17.30,Non-staff travel and subsistance
BEIS,UKRI - AHRC,28/06/2022,Non-staff travel and subsistance,Operations,Unspecified,99759119,39.30,Non-staff travel and subsistance
BEIS,UKRI - AHRC,30/06/2022,Unspecified,Skills Strategy,Melian Dialogue Research Ltd,99757100,25980.00,Legal & Professional Services
BEIS,UKRI - AHRC,30/06/2022,Non-staff travel and subsistance,Operations,Unspecified,99759510,193.85,Non-staff travel and subsistance
BEIS,UKRI - AHRC,30/06/2022,Fees (Including College Members),Operations,Unspecified,99759511,230.00,Fees (Including College Members)
BEIS,UKRI - AHRC,30/06/2022,Unspecified,Skills Strategy,Melian Dialogue Research Ltd,99760699,60.00,Legal & Professional Services
BEIS,UKRI - BBSRC,01/06/2022,Unspecified,Innovation and Skills Group,Holland Square Ltd,99736146,6000.00,Legal & Professional Services
BEIS,UKRI - BBSRC,01/06/2022,Fees (Including College Members),Science Group - Delivery Function,Unspecified,99736372,340.06,Fees (Including College Members)
BEIS,UKRI - BBSRC,01/06/2022,Unspecified,CE - IRU,Unspecified,99736515,36550.12,Legal & Professional Services
BEIS,UKRI - BBSRC,01/06/2022,Unspecified,CIMG - External Relations,Unspecified,99739082,4083.00,Other Income
BEIS,UKRI - BBSRC,01/06/2022,Meetings & Catering,CE - IRU,CH and Co Catering Ltd,99739788,322.36,Meetings & Catering
BEIS,UKRI - BBSRC,01/06/2022,T&S UK - Mileage,Science Group,Unspecified,99739835,19.80,T&S UK - Mileage
BEIS,UKRI - BBSRC,06/06/2022,T&S UK - Other Charges,Science Group,Unspecified,99736906,25.33,T&S UK - Other Charges
BEIS,UKRI - BBSRC,06/06/2022,T&S UK - Other Charges,Science Group,Unspecified,99738170,25.33,T&S UK - Other Charges
BEIS,UKRI - BBSRC,06/06/2022,Marketing & PR,CE - CPS,Unspecified,99739187,800.00,Marketing & PR
BEIS,UKRI - BBSRC,06/06/2022,T&S UK - Public Transport,CE - IRU,Unspecified,99740109,11.06,T&S UK - Public Transport
BEIS,UKRI - BBSRC,06/06/2022,T&S UK - Subsistence,CE - IRU,Unspecified,99740109,7.70,T&S UK - Subsistence
BEIS,UKRI - BBSRC,08/06/2022,T&S UK - Public Transport,Science Group,Enterprise Rent-A-Car UK Ltd,99744896,33.00,T&S UK - Public Transport
BEIS,UKRI - BBSRC,08/06/2022,T&S UK - Public Transport,Science Group,Enterprise Rent-A-Car UK Ltd,99744896,6.60,T&S UK - Public Transport
BEIS,UKRI - BBSRC,09/06/2022,Unspecified,Innovation and Skills Group,Bioindustry Association (BIA),99506720,1332.00,Legal & Professional Services
BEIS,UKRI - BBSRC,10/06/2022,UK - Professional Memberships & Subscriptions,CE - Chief Executive,The Society of Biology / The Royal Society of Biology,99745292,20000.00,UK - Professional Memberships & Subscriptions
BEIS,UKRI - BBSRC,10/06/2022,T&S UK - Other Charges,Science Group,Unspecified,99745687,81.20,T&S UK - Other Charges
BEIS,UKRI - BBSRC,13/06/2022,Research Institutes - Capital Grants: Minor Works,Rothamsted Research,Rothamsted Research Ltd,99738154,8250.00,Research Institutes - Capital Grants: Minor Works
BEIS,UKRI - BBSRC,13/06/2022,Research Institutes - Capital Grants: Minor Works,Rothamsted Research,Rothamsted Research Ltd,99739062,-15285.53,Research Institutes - Capital Grants: Minor Works
BEIS,UKRI - BBSRC,13/06/2022,Research Institutes - Capital Grants: Minor Works,Rothamsted Research,Rothamsted Research Ltd,99747944,12067.50,Research Institutes - Capital Grants: Minor Works
BEIS,UKRI - BBSRC,14/06/2022,Unspecified,Balance Sheet,HM Revenue & Customs,99744123,2204.31,PAYE Payable Salaries
BEIS,UKRI - BBSRC,14/06/2022,Unspecified,FG - Accounts & Business Planning,HM Revenue & Customs,99744124,34.00,Apprenticeship Levy
BEIS,UKRI - BBSRC,14/06/2022,Unspecified,Balance Sheet,HM Revenue & Customs,99745218,80182.81,PAYE Payable Salaries
BEIS,UKRI - BBSRC,14/06/2022,Unspecified,Balance Sheet,HM Revenue & Customs,99745219,7271.00,Student Loans
BEIS,UKRI - BBSRC,14/06/2022,Unspecified,Balance Sheet,HM Revenue & Customs,99745220,116872.68,NI Payable Salaries
BEIS,UKRI - BBSRC,14/06/2022,Unspecified,FG - Accounts & Business Planning,HM Revenue & Customs,99745221,2810.00,Apprenticeship Levy
BEIS,UKRI - BBSRC,14/06/2022,Unspecified,FG - Accounts & Business Planning,HM Revenue & Customs,99746199,36.00,Apprenticeship Levy
BEIS,UKRI - BBSRC,14/06/2022,Unspecified,FG - Estates,Womble Bond Dickinson LLP,99746242,6388.20,Legal & Professional Services
BEIS,UKRI - BBSRC,14/06/2022,Unspecified,FG - Estates,Womble Bond Dickinson LLP,99746243,361.80,Legal & Professional Services
BEIS,UKRI - BBSRC,14/06/2022,T&S UK - Vehicle Hire,FG - Estates,Enterprise Rent-A-Car UK Ltd,99751023,63.27,T&S UK - Vehicle Hire
BEIS,UKRI - BBSRC,14/06/2022,T&S UK - Vehicle Hire,FG - Estates,Enterprise Rent-A-Car UK Ltd,99751023,12.65,T&S UK - Vehicle Hire
BEIS,UKRI - BBSRC,14/06/2022,T&S UK - Vehicle Hire,Innovation and Skills Group,Enterprise Rent-A-Car UK Ltd,99751023,65.16,T&S UK - Vehicle Hire
BEIS,UKRI - BBSRC,14/06/2022,T&S UK - Vehicle Hire,Innovation and Skills Group,Enterprise Rent-A-Car UK Ltd,99751023,13.03,T&S UK - Vehicle Hire
BEIS,UKRI - BBSRC,15/06/2022,Other Staff Benefits,PDG - Director,UKRI - Engineering & Physical Sciences Research Council,99380763,70.00,Other Staff Benefits
BEIS,UKRI - BBSRC,15/06/2022,Other Staff Benefits,PDG - Director,UKRI - Engineering & Physical Sciences Research Council,99380763,70.00,Other Staff Benefits
BEIS,UKRI - BBSRC,15/06/2022,Other Staff Benefits,PDG - Director,UKRI - Engineering & Physical Sciences Research Council,99380763,560.00,Other Staff Benefits
BEIS,UKRI - BBSRC,15/06/2022,Nursery Deductions,Balance Sheet,UKRI - Engineering & Physical Sciences Research Council,99654751,1270.00,Nursery Deductions
BEIS,UKRI - BBSRC,15/06/2022,Employee Advances,Balance Sheet,UKRI - Engineering & Physical Sciences Research Council,99736880,1000.00,Employee Advances
BEIS,UKRI - BBSRC,15/06/2022,Reward & Recognition Team Advances,Balance Sheet,UKRI - Engineering & Physical Sciences Research Council,99736881,284.45,Reward & Recognition Team Advances
BEIS,UKRI - BBSRC,15/06/2022,Union Deductions,Balance Sheet,PCS Union,99745222,45.21,Union Deductions
BEIS,UKRI - BBSRC,15/06/2022,Voluntary Deductions,Balance Sheet,Swindon Office Sports and Social Club,99745223,46.00,Voluntary Deductions
BEIS,UKRI - BBSRC,15/06/2022,Unspecified,Balance Sheet,Unspecified,99745224,20016.57,Ees Pension Deductions - JSS
BEIS,UKRI - BBSRC,15/06/2022,Unspecified,Balance Sheet,Unspecified,99745225,82750.94,Ers Pension Deductions - JSS
BEIS,UKRI - BBSRC,15/06/2022,Unspecified,Balance Sheet,Scottish Widows Life Assurance,99745226,447.16,Partnership Pension Deductions
BEIS,UKRI - BBSRC,15/06/2022,Unspecified,Balance Sheet,Scottish Widows Life Assurance,99745227,10.00,Other Pension Deductions
BEIS,UKRI - BBSRC,15/06/2022,Unspecified,Balance Sheet,Cabinet Office RM Shared Services,99745228,13.30,Ers Pension Deductions - JSS
BEIS,UKRI - BBSRC,15/06/2022,Unspecified,Balance Sheet,Cabinet Office RM Shared Services,99745229,13680.34,Ees Pension Deductions - MyCSP
BEIS,UKRI - BBSRC,15/06/2022,Unspecified,Balance Sheet,Cabinet Office RM Shared Services,99745230,68689.88,Ers Pension Deductions - MyCSP
BEIS,UKRI - BBSRC,15/06/2022,Nursery Deductions,Balance Sheet,UKRI - Engineering & Physical Sciences Research Council,99745231,1390.00,Nursery Deductions
BEIS,UKRI - BBSRC,15/06/2022,Unspecified,Balance Sheet,Unspecified,99745232,388.26,Ees Pension Deductions - MRC
BEIS,UKRI - BBSRC,15/06/2022,Unspecified,Balance Sheet,Unspecified,99745233,955.72,Ers Pension Deductions - MRC
BEIS,UKRI - BBSRC,15/06/2022,T&S Overseas - Flights,CE - Chief Executive,Corporate Travel Management (North) Ltd,99751191,2.50,T&S Overseas - Flights
BEIS,UKRI - BBSRC,15/06/2022,T&S Overseas - Flights,CE - Chief Executive,Corporate Travel Management (North) Ltd,99751191,36.99,T&S Overseas - Flights
BEIS,UKRI - BBSRC,15/06/2022,T&S Overseas - Flights,CE - Chief Executive,Corporate Travel Management (North) Ltd,99751191,2.50,T&S Overseas - Flights
BEIS,UKRI - BBSRC,15/06/2022,T&S Overseas - Flights,CE - Chief Executive,Corporate Travel Management (North) Ltd,99751191,102.64,T&S Overseas - Flights
BEIS,UKRI - BBSRC,15/06/2022,T&S Overseas - Flights,CE - IRU,Corporate Travel Management (North) Ltd,99751191,9.50,T&S Overseas - Flights
BEIS,UKRI - BBSRC,15/06/2022,T&S Overseas - Flights,CE - IRU,Corporate Travel Management (North) Ltd,99751191,1203.00,T&S Overseas - Flights
BEIS,UKRI - BBSRC,15/06/2022,T&S Overseas - Flights,CE - IRU,Corporate Travel Management (North) Ltd,99751191,7.00,T&S Overseas - Flights
BEIS,UKRI - BBSRC,15/06/2022,T&S Overseas - Flights,CE - IRU,Corporate Travel Management (North) Ltd,99751191,234.00,T&S Overseas - Flights
BEIS,UKRI - BBSRC,15/06/2022,T&S Overseas - Public Transport,Science Group,Corporate Travel Management (North) Ltd,99751191,4.50,T&S Overseas - Public Transport
BEIS,UKRI - BBSRC,15/06/2022,T&S Overseas - Public Transport,Science Group,Corporate Travel Management (North) Ltd,99751191,229.00,T&S Overseas - Public Transport
BEIS,UKRI - BBSRC,15/06/2022,T&S UK - Accommodation,CE - Chief Executive,Corporate Travel Management (North) Ltd,99751191,0.80,T&S UK - Accommodation
BEIS,UKRI - BBSRC,15/06/2022,T&S UK - Accommodation,CE - Chief Executive,Corporate Travel Management (North) Ltd,99751191,0.80,T&S UK - Accommodation
BEIS,UKRI - BBSRC,15/06/2022,T&S UK - Accommodation,CE - Chief Executive,Corporate Travel Management (North) Ltd,99751191,142.50,T&S UK - Accommodation
BEIS,UKRI - BBSRC,15/06/2022,T&S UK - Accommodation,CE - Chief Executive,Corporate Travel Management (North) Ltd,99751191,0.32,T&S UK - Accommodation
BEIS,UKRI - BBSRC,15/06/2022,T&S UK - Accommodation,CE - IRU,Corporate Travel Management (North) Ltd,99751191,2.00,T&S UK - Accommodation
BEIS,UKRI - BBSRC,15/06/2022,T&S UK - Accommodation,CE - IRU,Corporate Travel Management (North) Ltd,99751191,218.55,T&S UK - Accommodation
BEIS,UKRI - BBSRC,15/06/2022,T&S UK - Accommodation,CE - IRU,Corporate Travel Management (North) Ltd,99751191,0.40,T&S UK - Accommodation
BEIS,UKRI - BBSRC,15/06/2022,T&S UK - Accommodation,Innovation and Skills Group,Corporate Travel Management (North) Ltd,99751191,0.80,T&S UK - Accommodation
BEIS,UKRI - BBSRC,15/06/2022,T&S UK - Accommodation,Innovation and Skills Group,Corporate Travel Management (North) Ltd,99751191,103.50,T&S UK - Accommodation
BEIS,UKRI - BBSRC,15/06/2022,T&S UK - Accommodation,Innovation and Skills Group,Corporate Travel Management (North) Ltd,99751191,1.60,T&S UK - Accommodation
BEIS,UKRI - BBSRC,15/06/2022,T&S UK - Accommodation,Innovation and Skills Group,Corporate Travel Management (North) Ltd,99751191,189.96,T&S UK - Accommodation
BEIS,UKRI - BBSRC,15/06/2022,T&S UK - Accommodation,Innovation and Skills Group,Corporate Travel Management (North) Ltd,99751191,0.80,T&S UK - Accommodation
BEIS,UKRI - BBSRC,15/06/2022,T&S UK - Accommodation,Innovation and Skills Group,Corporate Travel Management (North) Ltd,99751191,184.00,T&S UK - Accommodation
BEIS,UKRI - BBSRC,15/06/2022,T&S UK - Accommodation,Innovation and Skills Group,Corporate Travel Management (North) Ltd,99751191,0.80,T&S UK - Accommodation
BEIS,UKRI - BBSRC,15/06/2022,T&S UK - Accommodation,Innovation and Skills Group,Corporate Travel Management (North) Ltd,99751191,184.00,T&S UK - Accommodation
BEIS,UKRI - BBSRC,15/06/2022,T&S UK - Accommodation,Innovation and Skills Group,Corporate Travel Management (North) Ltd,99751191,0.80,T&S UK - Accommodation
BEIS,UKRI - BBSRC,15/06/2022,T&S UK - Accommodation,Innovation and Skills Group,Corporate Travel Management (North) Ltd,99751191,184.00,T&S UK - Accommodation
BEIS,UKRI - BBSRC,15/06/2022,T&S UK - Accommodation,Innovation and Skills Group,Corporate Travel Management (North) Ltd,99751191,0.80,T&S UK - Accommodation
BEIS,UKRI - BBSRC,15/06/2022,T&S UK - Accommodation,Innovation and Skills Group,Corporate Travel Management (North) Ltd,99751191,184.00,T&S UK - Accommodation
BEIS,UKRI - BBSRC,15/06/2022,T&S UK - Accommodation,Innovation and Skills Group,Corporate Travel Management (North) Ltd,99751191,0.80,T&S UK - Accommodation
BEIS,UKRI - BBSRC,15/06/2022,T&S UK - Accommodation,Innovation and Skills Group,Corporate Travel Management (North) Ltd,99751191,184.00,T&S UK - Accommodation
BEIS,UKRI - BBSRC,15/06/2022,T&S UK - Accommodation,Innovation and Skills Group,Corporate Travel Management (North) Ltd,99751191,0.16,T&S UK - Accommodation
BEIS,UKRI - BBSRC,15/06/2022,T&S UK - Accommodation,Innovation and Skills Group,Corporate Travel Management (North) Ltd,99751191,1.12,T&S UK - Accommodation
BEIS,UKRI - BBSRC,15/06/2022,T&S UK - Accommodation,Science Group,Corporate Travel Management (North) Ltd,99751191,0.80,T&S UK - Accommodation
BEIS,UKRI - BBSRC,15/06/2022,T&S UK - Accommodation,Science Group,Corporate Travel Management (North) Ltd,99751191,72.00,T&S UK - Accommodation
BEIS,UKRI - BBSRC,15/06/2022,T&S UK - Accommodation,Science Group,Corporate Travel Management (North) Ltd,99751191,0.80,T&S UK - Accommodation
BEIS,UKRI - BBSRC,15/06/2022,T&S UK - Accommodation,Science Group,Corporate Travel Management (North) Ltd,99751191,77.98,T&S UK - Accommodation
BEIS,UKRI - BBSRC,15/06/2022,T&S UK - Accommodation,Science Group,Corporate Travel Management (North) Ltd,99751191,0.32,T&S UK - Accommodation
BEIS,UKRI - BBSRC,15/06/2022,T&S UK - Accommodation,Science Group – Admin Function,Corporate Travel Management (North) Ltd,99751191,0.80,T&S UK - Accommodation
BEIS,UKRI - BBSRC,15/06/2022,T&S UK - Accommodation,Science Group – Admin Function,Corporate Travel Management (North) Ltd,99751191,0.16,T&S UK - Accommodation
BEIS,UKRI - BBSRC,15/06/2022,T&S UK - Public Transport,CE - CPS,Corporate Travel Management (North) Ltd,99751191,0.25,T&S UK - Public Transport
BEIS,UKRI - BBSRC,15/06/2022,T&S UK - Public Transport,CE - CPS,Corporate Travel Management (North) Ltd,99751191,37.90,T&S UK - Public Transport
BEIS,UKRI - BBSRC,15/06/2022,T&S UK - Public Transport,CE - Chief Executive,Corporate Travel Management (North) Ltd,99751191,10.00,T&S UK - Public Transport
BEIS,UKRI - BBSRC,15/06/2022,T&S UK - Public Transport,CE - Chief Executive,Corporate Travel Management (North) Ltd,99751191,-114.80,T&S UK - Public Transport
BEIS,UKRI - BBSRC,15/06/2022,T&S UK - Public Transport,CE - Chief Executive,Corporate Travel Management (North) Ltd,99751191,0.25,T&S UK - Public Transport
BEIS,UKRI - BBSRC,15/06/2022,T&S UK - Public Transport,CE - Chief Executive,Corporate Travel Management (North) Ltd,99751191,132.20,T&S UK - Public Transport
BEIS,UKRI - BBSRC,15/06/2022,T&S UK - Public Transport,CE - Chief Executive,Corporate Travel Management (North) Ltd,99751191,0.25,T&S UK - Public Transport
BEIS,UKRI - BBSRC,15/06/2022,T&S UK - Public Transport,CE - Chief Executive,Corporate Travel Management (North) Ltd,99751191,195.00,T&S UK - Public Transport
BEIS,UKRI - BBSRC,15/06/2022,T&S UK - Public Transport,CE - Chief Executive,Corporate Travel Management (North) Ltd,99751191,0.50,T&S UK - Public Transport
BEIS,UKRI - BBSRC,15/06/2022,T&S UK - Public Transport,CE - Chief Executive,Corporate Travel Management (North) Ltd,99751191,195.00,T&S UK - Public Transport
BEIS,UKRI - BBSRC,15/06/2022,T&S UK - Public Transport,CE - Chief Executive,Corporate Travel Management (North) Ltd,99751191,62.10,T&S UK - Public Transport
BEIS,UKRI - BBSRC,15/06/2022,T&S UK - Public Transport,CE - Chief Executive,Corporate Travel Management (North) Ltd,99751191,0.25,T&S UK - Public Transport
BEIS,UKRI - BBSRC,15/06/2022,T&S UK - Public Transport,CE - Chief Executive,Corporate Travel Management (North) Ltd,99751191,97.50,T&S UK - Public Transport
BEIS,UKRI - BBSRC,15/06/2022,T&S UK - Public Transport,CE - Chief Executive,Corporate Travel Management (North) Ltd,99751191,0.25,T&S UK - Public Transport
BEIS,UKRI - BBSRC,15/06/2022,T&S UK - Public Transport,CE - Chief Executive,Corporate Travel Management (North) Ltd,99751191,31.60,T&S UK - Public Transport
BEIS,UKRI - BBSRC,15/06/2022,T&S UK - Public Transport,CE - Chief Executive,Corporate Travel Management (North) Ltd,99751191,0.25,T&S UK - Public Transport
BEIS,UKRI - BBSRC,15/06/2022,T&S UK - Public Transport,CE - Chief Executive,Corporate Travel Management (North) Ltd,99751191,25.20,T&S UK - Public Transport
BEIS,UKRI - BBSRC,15/06/2022,T&S UK - Public Transport,CE - Chief Executive,Corporate Travel Management (North) Ltd,99751191,0.25,T&S UK - Public Transport
BEIS,UKRI - BBSRC,15/06/2022,T&S UK - Public Transport,CE - Chief Executive,Corporate Travel Management (North) Ltd,99751191,81.70,T&S UK - Public Transport
BEIS,UKRI - BBSRC,15/06/2022,T&S UK - Public Transport,CE - IRU,Corporate Travel Management (North) Ltd,99751191,0.25,T&S UK - Public Transport
BEIS,UKRI - BBSRC,15/06/2022,T&S UK - Public Transport,CE - IRU,Corporate Travel Management (North) Ltd,99751191,70.80,T&S UK - Public Transport
BEIS,UKRI - BBSRC,15/06/2022,T&S UK - Public Transport,CE - IRU,Corporate Travel Management (North) Ltd,99751191,0.13,T&S UK - Public Transport
BEIS,UKRI - BBSRC,15/06/2022,T&S UK - Public Transport,CE - IRU,Corporate Travel Management (North) Ltd,99751191,157.60,T&S UK - Public Transport
BEIS,UKRI - BBSRC,15/06/2022,T&S UK - Public Transport,CE - IRU,Corporate Travel Management (North) Ltd,99751191,0.12,T&S UK - Public Transport
BEIS,UKRI - BBSRC,15/06/2022,T&S UK - Public Transport,CE - IRU,Corporate Travel Management (North) Ltd,99751191,157.60,T&S UK - Public Transport
BEIS,UKRI - BBSRC,15/06/2022,T&S UK - Public Transport,CE - IRU,Corporate Travel Management (North) Ltd,99751191,0.25,T&S UK - Public Transport
BEIS,UKRI - BBSRC,15/06/2022,T&S UK - Public Transport,CE - IRU,Corporate Travel Management (North) Ltd,99751191,157.20,T&S UK - Public Transport
BEIS,UKRI - BBSRC,15/06/2022,T&S UK - Public Transport,CE - IRU,Corporate Travel Management (North) Ltd,99751191,0.25,T&S UK - Public Transport
BEIS,UKRI - BBSRC,15/06/2022,T&S UK - Public Transport,CE - IRU,Corporate Travel Management (North) Ltd,99751191,157.20,T&S UK - Public Transport
BEIS,UKRI - BBSRC,15/06/2022,T&S UK - Public Transport,CIMG - Director,Corporate Travel Management (North) Ltd,99751191,0.25,T&S UK - Public Transport
BEIS,UKRI - BBSRC,15/06/2022,T&S UK - Public Transport,CIMG - Director,Corporate Travel Management (North) Ltd,99751191,77.70,T&S UK - Public Transport
BEIS,UKRI - BBSRC,15/06/2022,T&S UK - Public Transport,European Initiatives,Corporate Travel Management (North) Ltd,99751191,0.25,T&S UK - Public Transport
BEIS,UKRI - BBSRC,15/06/2022,T&S UK - Public Transport,European Initiatives,Corporate Travel Management (North) Ltd,99751191,244.80,T&S UK - Public Transport
BEIS,UKRI - BBSRC,15/06/2022,T&S UK - Public Transport,Innovation and Skills Group,Corporate Travel Management (North) Ltd,99751191,0.25,T&S UK - Public Transport
BEIS,UKRI - BBSRC,15/06/2022,T&S UK - Public Transport,Innovation and Skills Group,Corporate Travel Management (North) Ltd,99751191,205.60,T&S UK - Public Transport
BEIS,UKRI - BBSRC,15/06/2022,T&S UK - Public Transport,Innovation and Skills Group,Corporate Travel Management (North) Ltd,99751191,0.25,T&S UK - Public Transport
BEIS,UKRI - BBSRC,15/06/2022,T&S UK - Public Transport,Innovation and Skills Group,Corporate Travel Management (North) Ltd,99751191,109.60,T&S UK - Public Transport
BEIS,UKRI - BBSRC,15/06/2022,T&S UK - Public Transport,Innovation and Skills Group,Corporate Travel Management (North) Ltd,99751191,0.12,T&S UK - Public Transport
BEIS,UKRI - BBSRC,15/06/2022,T&S UK - Public Transport,Innovation and Skills Group,Corporate Travel Management (North) Ltd,99751191,448.00,T&S UK - Public Transport
BEIS,UKRI - BBSRC,15/06/2022,T&S UK - Public Transport,Innovation and Skills Group,Corporate Travel Management (North) Ltd,99751191,0.13,T&S UK - Public Transport
BEIS,UKRI - BBSRC,15/06/2022,T&S UK - Public Transport,Innovation and Skills Group,Corporate Travel Management (North) Ltd,99751191,448.00,T&S UK - Public Transport
BEIS,UKRI - BBSRC,15/06/2022,T&S UK - Public Transport,Innovation and Skills Group,Corporate Travel Management (North) Ltd,99751191,0.25,T&S UK - Public Transport
BEIS,UKRI - BBSRC,15/06/2022,T&S UK - Public Transport,Innovation and Skills Group,Corporate Travel Management (North) Ltd,99751191,210.70,T&S UK - Public Transport
BEIS,UKRI - BBSRC,15/06/2022,T&S UK - Public Transport,Innovation and Skills Group,Corporate Travel Management (North) Ltd,99751191,0.25,T&S UK - Public Transport
BEIS,UKRI - BBSRC,15/06/2022,T&S UK - Public Transport,Innovation and Skills Group,Corporate Travel Management (North) Ltd,99751191,113.60,T&S UK - Public Transport
BEIS,UKRI - BBSRC,15/06/2022,T&S UK - Public Transport,Innovation and Skills Group,Corporate Travel Management (North) Ltd,99751191,0.25,T&S UK - Public Transport
BEIS,UKRI - BBSRC,15/06/2022,T&S UK - Public Transport,Innovation and Skills Group,Corporate Travel Management (North) Ltd,99751191,150.00,T&S UK - Public Transport
BEIS,UKRI - BBSRC,15/06/2022,T&S UK - Public Transport,Innovation and Skills Group,Corporate Travel Management (North) Ltd,99751191,0.25,T&S UK - Public Transport
BEIS,UKRI - BBSRC,15/06/2022,T&S UK - Public Transport,Innovation and Skills Group,Corporate Travel Management (North) Ltd,99751191,150.00,T&S UK - Public Transport
BEIS,UKRI - BBSRC,15/06/2022,T&S UK - Public Transport,Innovation and Skills Group,Corporate Travel Management (North) Ltd,99751191,0.25,T&S UK - Public Transport
BEIS,UKRI - BBSRC,15/06/2022,T&S UK - Public Transport,Innovation and Skills Group,Corporate Travel Management (North) Ltd,99751191,174.90,T&S UK - Public Transport
BEIS,UKRI - BBSRC,15/06/2022,T&S UK - Public Transport,Innovation and Skills Group,Corporate Travel Management (North) Ltd,99751191,0.25,T&S UK - Public Transport
BEIS,UKRI - BBSRC,15/06/2022,T&S UK - Public Transport,Innovation and Skills Group,Corporate Travel Management (North) Ltd,99751191,51.70,T&S UK - Public Transport
BEIS,UKRI - BBSRC,15/06/2022,T&S UK - Public Transport,Innovation and Skills Group,Corporate Travel Management (North) Ltd,99751191,0.25,T&S UK - Public Transport
BEIS,UKRI - BBSRC,15/06/2022,T&S UK - Public Transport,Innovation and Skills Group,Corporate Travel Management (North) Ltd,99751191,175.10,T&S UK - Public Transport
BEIS,UKRI - BBSRC,15/06/2022,T&S UK - Public Transport,Innovation and Skills Group,Corporate Travel Management (North) Ltd,99751191,0.25,T&S UK - Public Transport
BEIS,UKRI - BBSRC,15/06/2022,T&S UK - Public Transport,Innovation and Skills Group,Corporate Travel Management (North) Ltd,99751191,145.15,T&S UK - Public Transport
BEIS,UKRI - BBSRC,15/06/2022,T&S UK - Public Transport,Innovation and Skills Group,Corporate Travel Management (North) Ltd,99751191,0.25,T&S UK - Public Transport
BEIS,UKRI - BBSRC,15/06/2022,T&S UK - Public Transport,Innovation and Skills Group,Corporate Travel Management (North) Ltd,99751191,193.80,T&S UK - Public Transport
BEIS,UKRI - BBSRC,15/06/2022,T&S UK - Public Transport,Innovation and Skills Group,Corporate Travel Management (North) Ltd,99751191,0.25,T&S UK - Public Transport
BEIS,UKRI - BBSRC,15/06/2022,T&S UK - Public Transport,Innovation and Skills Group,Corporate Travel Management (North) Ltd,99751191,193.80,T&S UK - Public Transport
BEIS,UKRI - BBSRC,15/06/2022,T&S UK - Public Transport,Innovation and Skills Group,Corporate Travel Management (North) Ltd,99751191,0.50,T&S UK - Public Transport
BEIS,UKRI - BBSRC,15/06/2022,T&S UK - Public Transport,Innovation and Skills Group,Corporate Travel Management (North) Ltd,99751191,80.10,T&S UK - Public Transport
BEIS,UKRI - BBSRC,15/06/2022,T&S UK - Public Transport,Innovation and Skills Group,Corporate Travel Management (North) Ltd,99751191,0.25,T&S UK - Public Transport
BEIS,UKRI - BBSRC,15/06/2022,T&S UK - Public Transport,Innovation and Skills Group,Corporate Travel Management (North) Ltd,99751191,161.55,T&S UK - Public Transport
BEIS,UKRI - BBSRC,15/06/2022,T&S UK - Public Transport,Innovation and Skills Group,Corporate Travel Management (North) Ltd,99751191,0.25,T&S UK - Public Transport
BEIS,UKRI - BBSRC,15/06/2022,T&S UK - Public Transport,Innovation and Skills Group,Corporate Travel Management (North) Ltd,99751191,173.60,T&S UK - Public Transport
BEIS,UKRI - BBSRC,15/06/2022,T&S UK - Public Transport,Science Group,Corporate Travel Management (North) Ltd,99751191,5.00,T&S UK - Public Transport
BEIS,UKRI - BBSRC,15/06/2022,T&S UK - Public Transport,Science Group,Corporate Travel Management (North) Ltd,99751191,-276.20,T&S UK - Public Transport
BEIS,UKRI - BBSRC,15/06/2022,T&S UK - Public Transport,Science Group,Corporate Travel Management (North) Ltd,99751191,5.00,T&S UK - Public Transport
BEIS,UKRI - BBSRC,15/06/2022,T&S UK - Public Transport,Science Group,Corporate Travel Management (North) Ltd,99751191,-34.30,T&S UK - Public Transport
BEIS,UKRI - BBSRC,15/06/2022,T&S UK - Public Transport,Science Group,Corporate Travel Management (North) Ltd,99751191,0.25,T&S UK - Public Transport
BEIS,UKRI - BBSRC,15/06/2022,T&S UK - Public Transport,Science Group,Corporate Travel Management (North) Ltd,99751191,163.20,T&S UK - Public Transport
BEIS,UKRI - BBSRC,15/06/2022,T&S UK - Public Transport,Science Group,Corporate Travel Management (North) Ltd,99751191,0.25,T&S UK - Public Transport
BEIS,UKRI - BBSRC,15/06/2022,T&S UK - Public Transport,Science Group,Corporate Travel Management (North) Ltd,99751191,149.00,T&S UK - Public Transport
BEIS,UKRI - BBSRC,15/06/2022,T&S UK - Public Transport,Science Group,Corporate Travel Management (North) Ltd,99751191,0.25,T&S UK - Public Transport
BEIS,UKRI - BBSRC,15/06/2022,T&S UK - Public Transport,Science Group,Corporate Travel Management (North) Ltd,99751191,374.60,T&S UK - Public Transport
BEIS,UKRI - BBSRC,15/06/2022,T&S UK - Public Transport,Science Group,Corporate Travel Management (North) Ltd,99751191,0.25,T&S UK - Public Transport
BEIS,UKRI - BBSRC,15/06/2022,T&S UK - Public Transport,Science Group,Corporate Travel Management (North) Ltd,99751191,145.00,T&S UK - Public Transport
BEIS,UKRI - BBSRC,15/06/2022,T&S UK - Public Transport,Science Group,Corporate Travel Management (North) Ltd,99751191,0.25,T&S UK - Public Transport
BEIS,UKRI - BBSRC,15/06/2022,T&S UK - Public Transport,Science Group,Corporate Travel Management (North) Ltd,99751191,244.80,T&S UK - Public Transport
BEIS,UKRI - BBSRC,15/06/2022,T&S UK - Public Transport,Science Group,Corporate Travel Management (North) Ltd,99751191,0.25,T&S UK - Public Transport
BEIS,UKRI - BBSRC,15/06/2022,T&S UK - Public Transport,Science Group,Corporate Travel Management (North) Ltd,99751191,66.40,T&S UK - Public Transport
BEIS,UKRI - BBSRC,15/06/2022,T&S UK - Public Transport,Science Group,Corporate Travel Management (North) Ltd,99751191,0.25,T&S UK - Public Transport
BEIS,UKRI - BBSRC,15/06/2022,T&S UK - Public Transport,Science Group,Corporate Travel Management (North) Ltd,99751191,157.20,T&S UK - Public Transport
BEIS,UKRI - BBSRC,15/06/2022,T&S UK - Public Transport,Science Group,Corporate Travel Management (North) Ltd,99751191,0.25,T&S UK - Public Transport
BEIS,UKRI - BBSRC,15/06/2022,T&S UK - Public Transport,Science Group,Corporate Travel Management (North) Ltd,99751191,247.40,T&S UK - Public Transport
BEIS,UKRI - BBSRC,15/06/2022,T&S UK - Public Transport,Science Group,Corporate Travel Management (North) Ltd,99751191,0.25,T&S UK - Public Transport
BEIS,UKRI - BBSRC,15/06/2022,T&S UK - Public Transport,Science Group,Corporate Travel Management (North) Ltd,99751191,193.80,T&S UK - Public Transport
BEIS,UKRI - BBSRC,15/06/2022,T&S UK - Public Transport,Science Group,Corporate Travel Management (North) Ltd,99751191,0.25,T&S UK - Public Transport
BEIS,UKRI - BBSRC,15/06/2022,T&S UK - Public Transport,Science Group,Corporate Travel Management (North) Ltd,99751191,193.80,T&S UK - Public Transport
BEIS,UKRI - BBSRC,15/06/2022,T&S UK - Public Transport,Science Group,Corporate Travel Management (North) Ltd,99751191,0.50,T&S UK - Public Transport
BEIS,UKRI - BBSRC,15/06/2022,T&S UK - Public Transport,Science Group,Corporate Travel Management (North) Ltd,99751191,190.20,T&S UK - Public Transport
BEIS,UKRI - BBSRC,15/06/2022,T&S UK - Public Transport,Science Group,Corporate Travel Management (North) Ltd,99751191,0.25,T&S UK - Public Transport
BEIS,UKRI - BBSRC,15/06/2022,T&S UK - Public Transport,Science Group,Corporate Travel Management (North) Ltd,99751191,157.20,T&S UK - Public Transport
BEIS,UKRI - BBSRC,15/06/2022,T&S UK - Public Transport,Science Group,Corporate Travel Management (North) Ltd,99751191,0.25,T&S UK - Public Transport
BEIS,UKRI - BBSRC,15/06/2022,T&S UK - Public Transport,Science Group,Corporate Travel Management (North) Ltd,99751191,31.70,T&S UK - Public Transport
BEIS,UKRI - BBSRC,15/06/2022,T&S UK - Public Transport,Science Group,Corporate Travel Management (North) Ltd,99751191,0.25,T&S UK - Public Transport
BEIS,UKRI - BBSRC,15/06/2022,T&S UK - Public Transport,Science Group,Corporate Travel Management (North) Ltd,99751191,103.00,T&S UK - Public Transport
BEIS,UKRI - BBSRC,15/06/2022,T&S UK - Public Transport,Science Group,Corporate Travel Management (North) Ltd,99751191,0.25,T&S UK - Public Transport
BEIS,UKRI - BBSRC,15/06/2022,T&S UK - Public Transport,Science Group,Corporate Travel Management (North) Ltd,99751191,59.80,T&S UK - Public Transport
BEIS,UKRI - BBSRC,15/06/2022,T&S UK - Public Transport,Science Group,Corporate Travel Management (North) Ltd,99751191,0.25,T&S UK - Public Transport
BEIS,UKRI - BBSRC,15/06/2022,T&S UK - Public Transport,Science Group,Corporate Travel Management (North) Ltd,99751191,77.30,T&S UK - Public Transport
BEIS,UKRI - BBSRC,15/06/2022,T&S UK - Public Transport,Science Group,Corporate Travel Management (North) Ltd,99751191,0.25,T&S UK - Public Transport
BEIS,UKRI - BBSRC,15/06/2022,T&S UK - Public Transport,Science Group,Corporate Travel Management (North) Ltd,99751191,233.20,T&S UK - Public Transport
BEIS,UKRI - BBSRC,15/06/2022,T&S UK - Public Transport,Science Group – Admin Function,Corporate Travel Management (North) Ltd,99751191,0.25,T&S UK - Public Transport
BEIS,UKRI - BBSRC,15/06/2022,T&S UK - Public Transport,Science Group – Admin Function,Corporate Travel Management (North) Ltd,99751191,213.30,T&S UK - Public Transport
BEIS,UKRI - BBSRC,15/06/2022,T&S UK - Other Charges,FG - Estates,Unspecified,99751679,109.35,T&S UK - Other Charges
BEIS,UKRI - BBSRC,15/06/2022,T&S UK - Vehicle Hire,FG - Estates,Unspecified,99751679,43.15,T&S UK - Vehicle Hire
BEIS,UKRI - BBSRC,16/06/2022,Unspecified,Innovation and Skills Group,Cambridge Network Ltd,99738485,6600.00,Legal & Professional Services
BEIS,UKRI - BBSRC,16/06/2022,Meetings & Catering,CE - IRU,CH and Co Catering Ltd,99753565,324.50,Meetings & Catering
BEIS,UKRI - BBSRC,17/06/2022,Research Grant Expenditure,FG - Accounts & Business Planning,University of Reading,99745361,3364.86,Research Grant Expenditure
BEIS,UKRI - BBSRC,17/06/2022,Capital Grants & Equipment to HEIs,FG - Accounts & Business Planning,The Pirbright Institute,99745362,216782.00,Capital Grants & Equipment to HEIs
BEIS,UKRI - BBSRC,17/06/2022,Research Grant Expenditure,FG - Accounts & Business Planning,The Pirbright Institute,99745362,-0.01,Research Grant Expenditure
BEIS,UKRI - BBSRC,17/06/2022,Research Grant Expenditure,FG - Accounts & Business Planning,University of Bristol GRANT,99745363,-2083.69,Research Grant Expenditure
BEIS,UKRI - BBSRC,17/06/2022,Research Grant Expenditure,FG - Accounts & Business Planning,University of Kent,99745364,47328.00,Research Grant Expenditure
BEIS,UKRI - BBSRC,17/06/2022,Research Grant Expenditure,FG - Accounts & Business Planning,University of Cambridge,99745365,51459.57,Research Grant Expenditure
BEIS,UKRI - BBSRC,17/06/2022,Research Grant Expenditure,FG - Accounts & Business Planning,University College London,99745366,-6278.16,Research Grant Expenditure
BEIS,UKRI - BBSRC,17/06/2022,Research Grant Expenditure,FG - Accounts & Business Planning,London School of Hygiene & Tropical Medicine,99745367,-89243.18,Research Grant Expenditure
BEIS,UKRI - BBSRC,17/06/2022,Research Grant Expenditure,FG - Accounts & Business Planning,University of York,99745368,-24717.34,Research Grant Expenditure
BEIS,UKRI - BBSRC,17/06/2022,Research Grant Expenditure,FG - Accounts & Business Planning,University College London,99745369,2520.25,Research Grant Expenditure
BEIS,UKRI - BBSRC,17/06/2022,Research Grant Expenditure,FG - Accounts & Business Planning,National Trust,99745370,19881.84,Research Grant Expenditure
BEIS,UKRI - BBSRC,17/06/2022,Research Grant Expenditure,FG - Accounts & Business Planning,Swansea University,99745371,19092.66,Research Grant Expenditure
BEIS,UKRI - BBSRC,17/06/2022,Capital Grants & Equipment to HEIs,FG - Accounts & Business Planning,University of Essex,99745372,91140.63,Capital Grants & Equipment to HEIs
BEIS,UKRI - BBSRC,17/06/2022,Capital Grants & Equipment to HEIs,FG - Accounts & Business Planning,University of Liverpool,99745373,34554.83,Capital Grants & Equipment to HEIs
BEIS,UKRI - BBSRC,17/06/2022,Capital Grants & Equipment to HEIs,FG - Accounts & Business Planning,University of Exeter,99745374,112270.88,Capital Grants & Equipment to HEIs
BEIS,UKRI - BBSRC,17/06/2022,Capital Grants & Equipment to HEIs,FG - Accounts & Business Planning,University of Nottingham,99745375,96696.76,Capital Grants & Equipment to HEIs
BEIS,UKRI - BBSRC,17/06/2022,Capital Grants & Equipment to HEIs,FG - Accounts & Business Planning,King's College London,99745376,15976.50,Capital Grants & Equipment to HEIs
BEIS,UKRI - BBSRC,17/06/2022,Research Grant Expenditure,FG - Accounts & Business Planning,University of Strathclyde,99745377,40537.08,Research Grant Expenditure
BEIS,UKRI - BBSRC,17/06/2022,Research Grant Expenditure,FG - Accounts & Business Planning,University of Liverpool,99745378,30285.59,Research Grant Expenditure
BEIS,UKRI - BBSRC,17/06/2022,Research Grant Expenditure,FG - Accounts & Business Planning,University of Newcastle Upon Tyne,99745379,20316.40,Research Grant Expenditure
BEIS,UKRI - BBSRC,17/06/2022,Research Grant Expenditure,FG - Accounts & Business Planning,University of Nottingham,99745380,34962.60,Research Grant Expenditure
BEIS,UKRI - BBSRC,17/06/2022,Research Grant Expenditure,FG - Accounts & Business Planning,University of Strathclyde,99745381,27681.40,Research Grant Expenditure
BEIS,UKRI - BBSRC,17/06/2022,Research Grant Expenditure,FG - Accounts & Business Planning,The Scottish Association for Marine Science (SAMS Group),99745382,25257.92,Research Grant Expenditure
BEIS,UKRI - BBSRC,17/06/2022,Research Grant Expenditure,FG - Accounts & Business Planning,University of Warwick,99745383,9794.07,Research Grant Expenditure
BEIS,UKRI - BBSRC,17/06/2022,Research Grant Expenditure,FG - Accounts & Business Planning,University of Sheffield,99745384,25000.00,Research Grant Expenditure
BEIS,UKRI - BBSRC,17/06/2022,Research Grant Expenditure,FG - Accounts & Business Planning,University of Leeds,99745385,28002.49,Research Grant Expenditure
BEIS,UKRI - BBSRC,17/06/2022,Research Grant Expenditure,FG - Accounts & Business Planning,Earlham Institute,99745386,-271.39,Research Grant Expenditure
BEIS,UKRI - BBSRC,17/06/2022,Research Grant Expenditure,FG - Accounts & Business Planning,University of Surrey,99745387,-8660.64,Research Grant Expenditure
BEIS,UKRI - BBSRC,17/06/2022,Research Grant Expenditure,FG - Accounts & Business Planning,Earlham Institute,99745388,18335.71,Research Grant Expenditure
BEIS,UKRI - BBSRC,17/06/2022,Research Grant Expenditure,FG - Accounts & Business Planning,Keele University,99745389,23325.00,Research Grant Expenditure
BEIS,UKRI - BBSRC,17/06/2022,Research Grant Expenditure,FG - Accounts & Business Planning,Aberystwyth University,99745390,26277.20,Research Grant Expenditure
BEIS,UKRI - BBSRC,17/06/2022,Research Grant Expenditure,FG - Accounts & Business Planning,University of Bristol GRANT,99745391,-16109.51,Research Grant Expenditure
BEIS,UKRI - BBSRC,17/06/2022,Research Grant Expenditure,FG - Accounts & Business Planning,University of East Anglia,99745392,41179.35,Research Grant Expenditure
BEIS,UKRI - BBSRC,17/06/2022,Research Grant Expenditure,FG - Accounts & Business Planning,University of Leeds,99745393,14417.86,Research Grant Expenditure
BEIS,UKRI - BBSRC,17/06/2022,Research Grant Expenditure,FG - Accounts & Business Planning,University of Exeter,99745394,29494.71,Research Grant Expenditure
BEIS,UKRI - BBSRC,17/06/2022,Research Grant Expenditure,FG - Accounts & Business Planning,The Pirbright Institute,99745395,40483.06,Research Grant Expenditure
BEIS,UKRI - BBSRC,17/06/2022,Research Grant Expenditure,FG - Accounts & Business Planning,University of Greenwich,99745396,-33234.84,Research Grant Expenditure
BEIS,UKRI - BBSRC,17/06/2022,Research Grant Expenditure,FG - Accounts & Business Planning,Queen's University Belfast GRANT,99745397,-83028.18,Research Grant Expenditure
BEIS,UKRI - BBSRC,17/06/2022,Research Grant Expenditure,FG - Accounts & Business Planning,University College London,99745398,33349.89,Research Grant Expenditure
BEIS,UKRI - BBSRC,17/06/2022,Research Grant Expenditure,FG - Accounts & Business Planning,University of the West of England,99745399,84219.90,Research Grant Expenditure
BEIS,UKRI - BBSRC,17/06/2022,Research Grant Expenditure,FG - Accounts & Business Planning,University of Cambridge,99745400,-10316.10,Research Grant Expenditure
BEIS,UKRI - BBSRC,17/06/2022,Research Grant Expenditure,FG - Accounts & Business Planning,Royal Veterinary College,99745401,2260.08,Research Grant Expenditure
BEIS,UKRI - BBSRC,17/06/2022,Research Grant Expenditure,FG - Accounts & Business Planning,University of Cambridge,99745402,-136621.46,Research Grant Expenditure
BEIS,UKRI - BBSRC,17/06/2022,Research Grant Expenditure,FG - Accounts & Business Planning,University of Bristol GRANT,99745403,1096.66,Research Grant Expenditure
BEIS,UKRI - BBSRC,17/06/2022,Research Grant Expenditure,FG - Accounts & Business Planning,University of Birmingham GRANT,99745404,18983.35,Research Grant Expenditure
BEIS,UKRI - BBSRC,17/06/2022,Research Grant Expenditure,FG - Accounts & Business Planning,The Pirbright Institute,99745405,8735.39,Research Grant Expenditure
BEIS,UKRI - BBSRC,17/06/2022,Research Grant Expenditure,FG - Accounts & Business Planning,University of Durham,99745406,4032.52,Research Grant Expenditure
BEIS,UKRI - BBSRC,17/06/2022,Research Grant Expenditure,FG - Accounts & Business Planning,University of Bristol GRANT,99745407,2038.32,Research Grant Expenditure
BEIS,UKRI - BBSRC,17/06/2022,Research Grant Expenditure,FG - Accounts & Business Planning,University of Greenwich,99745408,25152.59,Research Grant Expenditure
BEIS,UKRI - BBSRC,17/06/2022,Research Grant Expenditure,FG - Accounts & Business Planning,University of Liverpool,99745409,25793.12,Research Grant Expenditure
BEIS,UKRI - BBSRC,17/06/2022,Research Grant Expenditure,FG - Accounts & Business Planning,University of Birmingham GRANT,99745410,39946.94,Research Grant Expenditure
BEIS,UKRI - BBSRC,17/06/2022,Research Grant Expenditure,FG - Accounts & Business Planning,University of Dundee,99745411,56074.02,Research Grant Expenditure
BEIS,UKRI - BBSRC,17/06/2022,Research Grant Expenditure,FG - Accounts & Business Planning,Imperial College London,99745412,34541.94,Research Grant Expenditure
BEIS,UKRI - BBSRC,17/06/2022,Research Grant Expenditure,FG - Accounts & Business Planning,Queen Mary University of London,99745413,23521.41,Research Grant Expenditure
BEIS,UKRI - BBSRC,17/06/2022,Research Grant Expenditure,FG - Accounts & Business Planning,Imperial College London,99745414,24469.57,Research Grant Expenditure
BEIS,UKRI - BBSRC,17/06/2022,Research Grant Expenditure,FG - Accounts & Business Planning,University of Bristol GRANT,99745415,30605.98,Research Grant Expenditure
BEIS,UKRI - BBSRC,17/06/2022,Research Grant Expenditure,FG - Accounts & Business Planning,Earlham Institute,99745416,-452.24,Research Grant Expenditure
BEIS,UKRI - BBSRC,17/06/2022,Research Grant Expenditure,FG - Accounts & Business Planning,Aston University,99745417,45485.82,Research Grant Expenditure
BEIS,UKRI - BBSRC,17/06/2022,Research Grant Expenditure,FG - Accounts & Business Planning,University of Nottingham,99745418,15010.25,Research Grant Expenditure
BEIS,UKRI - BBSRC,17/06/2022,Research Grant Expenditure,FG - Accounts & Business Planning,University of Leeds,99745419,-4638.74,Research Grant Expenditure
BEIS,UKRI - BBSRC,17/06/2022,Research Grant Expenditure,FG - Accounts & Business Planning,Moredun Research Institute,99745420,74339.84,Research Grant Expenditure
BEIS,UKRI - BBSRC,17/06/2022,Research Grant Expenditure,FG - Accounts & Business Planning,University of Glasgow,99745421,50672.50,Research Grant Expenditure
BEIS,UKRI - BBSRC,17/06/2022,Research Grant Expenditure,FG - Accounts & Business Planning,Rothamsted Research Ltd,99745422,-18379.82,Research Grant Expenditure
BEIS,UKRI - BBSRC,17/06/2022,Research Grant Expenditure,FG - Accounts & Business Planning,University of Glasgow,99745423,73252.42,Research Grant Expenditure
BEIS,UKRI - BBSRC,17/06/2022,Research Grant Expenditure,FG - Accounts & Business Planning,University College London,99745424,34294.67,Research Grant Expenditure
BEIS,UKRI - BBSRC,17/06/2022,Research Grant Expenditure,FG - Accounts & Business Planning,University of Newcastle Upon Tyne,99745425,-9605.06,Research Grant Expenditure
BEIS,UKRI - BBSRC,17/06/2022,Research Grant Expenditure,FG - Accounts & Business Planning,Aberystwyth University,99745426,39034.87,Research Grant Expenditure
BEIS,UKRI - BBSRC,17/06/2022,Capital Grants & Equipment to HEIs,FG - Accounts & Business Planning,King's College London,99745427,-883.30,Capital Grants & Equipment to HEIs
BEIS,UKRI - BBSRC,17/06/2022,Research Grant Expenditure,FG - Accounts & Business Planning,King's College London,99745427,51621.56,Research Grant Expenditure
BEIS,UKRI - BBSRC,17/06/2022,Research Grant Expenditure,FG - Accounts & Business Planning,University of Edinburgh,99745428,17219.34,Research Grant Expenditure
BEIS,UKRI - BBSRC,17/06/2022,Research Grant Expenditure,FG - Accounts & Business Planning,John Innes Centre,99745429,82566.89,Research Grant Expenditure
BEIS,UKRI - BBSRC,17/06/2022,Research Grant Expenditure,FG - Accounts & Business Planning,University of Bristol GRANT,99745430,22758.78,Research Grant Expenditure
BEIS,UKRI - BBSRC,17/06/2022,Research Grant Expenditure,FG - Accounts & Business Planning,University of Birmingham GRANT,99745431,40962.94,Research Grant Expenditure
BEIS,UKRI - BBSRC,17/06/2022,Research Grant Expenditure,FG - Accounts & Business Planning,National Institute For Agricultural Botany (NIAB),99745432,15141.56,Research Grant Expenditure
BEIS,UKRI - BBSRC,17/06/2022,Capital Grants & Equipment to HEIs,FG - Accounts & Business Planning,Imperial College London,99745433,-91.12,Capital Grants & Equipment to HEIs
BEIS,UKRI - BBSRC,17/06/2022,Research Grant Expenditure,FG - Accounts & Business Planning,Imperial College London,99745433,26975.00,Research Grant Expenditure
BEIS,UKRI - BBSRC,17/06/2022,Research Grant Expenditure,FG - Accounts & Business Planning,University of Newcastle Upon Tyne,99745434,35008.06,Research Grant Expenditure
BEIS,UKRI - BBSRC,17/06/2022,Research Grant Expenditure,FG - Accounts & Business Planning,University of Edinburgh,99745435,28392.41,Research Grant Expenditure
BEIS,UKRI - BBSRC,17/06/2022,Research Grant Expenditure,FG - Accounts & Business Planning,European Bioinformatics Institute,99745436,74907.54,Research Grant Expenditure
BEIS,UKRI - BBSRC,17/06/2022,Research Grant Expenditure,FG - Accounts & Business Planning,Queen's University Belfast GRANT,99745437,-2446.56,Research Grant Expenditure
BEIS,UKRI - BBSRC,17/06/2022,Research Grant Expenditure,FG - Accounts & Business Planning,University of Warwick,99745438,-9.24,Research Grant Expenditure
BEIS,UKRI - BBSRC,17/06/2022,Research Grant Expenditure,FG - Accounts & Business Planning,University of Edinburgh,99745439,4573.12,Research Grant Expenditure
BEIS,UKRI - BBSRC,17/06/2022,Capital Grants & Equipment to HEIs,FG - Accounts & Business Planning,Imperial College London,99745440,-91.26,Capital Grants & Equipment to HEIs
BEIS,UKRI - BBSRC,17/06/2022,Research Grant Expenditure,FG - Accounts & Business Planning,Imperial College London,99745440,50433.30,Research Grant Expenditure
BEIS,UKRI - BBSRC,17/06/2022,Research Grant Expenditure,FG - Accounts & Business Planning,University of Aberdeen,99745441,20225.98,Research Grant Expenditure
BEIS,UKRI - BBSRC,17/06/2022,Research Grant Expenditure,FG - Accounts & Business Planning,University of Reading,99745442,32701.17,Research Grant Expenditure
BEIS,UKRI - BBSRC,17/06/2022,Research Grant Expenditure,FG - Accounts & Business Planning,University of Oxford,99745443,25624.84,Research Grant Expenditure
BEIS,UKRI - BBSRC,17/06/2022,Research Grant Expenditure,FG - Accounts & Business Planning,University of Birmingham GRANT,99745444,-9122.46,Research Grant Expenditure
BEIS,UKRI - BBSRC,17/06/2022,Research Grant Expenditure,FG - Accounts & Business Planning,University of Bristol GRANT,99745445,25547.08,Research Grant Expenditure
BEIS,UKRI - BBSRC,17/06/2022,Research Grant Expenditure,FG - Accounts & Business Planning,King's College London,99745446,8339.96,Research Grant Expenditure
BEIS,UKRI - BBSRC,17/06/2022,Research Grant Expenditure,FG - Accounts & Business Planning,Queen Mary University of London,99745447,64964.08,Research Grant Expenditure
BEIS,UKRI - BBSRC,17/06/2022,Research Grant Expenditure,FG - Accounts & Business Planning,University of Cambridge,99745448,40216.93,Research Grant Expenditure
BEIS,UKRI - BBSRC,17/06/2022,Research Grant Expenditure,FG - Accounts & Business Planning,University of York,99745449,50817.04,Research Grant Expenditure
BEIS,UKRI - BBSRC,17/06/2022,Research Grant Expenditure,FG - Accounts & Business Planning,SRUC,99745450,44174.70,Research Grant Expenditure
BEIS,UKRI - BBSRC,17/06/2022,Research Grant Expenditure,FG - Accounts & Business Planning,University of Leeds,99745451,14939.51,Research Grant Expenditure
BEIS,UKRI - BBSRC,17/06/2022,Research Grant Expenditure,FG - Accounts & Business Planning,The Pirbright Institute,99745452,-106899.03,Research Grant Expenditure
BEIS,UKRI - BBSRC,17/06/2022,Capital Grants & Equipment to HEIs,FG - Accounts & Business Planning,King's College London,99745453,-2248.14,Capital Grants & Equipment to HEIs
BEIS,UKRI - BBSRC,17/06/2022,Research Grant Expenditure,FG - Accounts & Business Planning,King's College London,99745453,9910.64,Research Grant Expenditure
BEIS,UKRI - BBSRC,17/06/2022,Capital Grants & Equipment to HEIs,FG - Accounts & Business Planning,University of Newcastle Upon Tyne,99745454,-120.07,Capital Grants & Equipment to HEIs
BEIS,UKRI - BBSRC,17/06/2022,Research Grant Expenditure,FG - Accounts & Business Planning,University of Newcastle Upon Tyne,99745454,20301.22,Research Grant Expenditure
BEIS,UKRI - BBSRC,17/06/2022,Capital Grants & Equipment to HEIs,FG - Accounts & Business Planning,University of Cambridge,99745455,6559.70,Capital Grants & Equipment to HEIs
BEIS,UKRI - BBSRC,17/06/2022,Research Grant Expenditure,FG - Accounts & Business Planning,University of Liverpool,99745456,34543.23,Research Grant Expenditure
BEIS,UKRI - BBSRC,17/06/2022,Research Grant Expenditure,FG - Accounts & Business Planning,University of Nottingham,99745457,42547.90,Research Grant Expenditure
BEIS,UKRI - BBSRC,17/06/2022,Research Grant Expenditure,FG - Accounts & Business Planning,University College London,99745458,43103.69,Research Grant Expenditure
BEIS,UKRI - BBSRC,17/06/2022,Research Grant Expenditure,FG - Accounts & Business Planning,University of Southampton GRANT,99745459,25182.64,Research Grant Expenditure
BEIS,UKRI - BBSRC,17/06/2022,Research Grant Expenditure,FG - Accounts & Business Planning,University of Oxford,99745460,34710.49,Research Grant Expenditure
BEIS,UKRI - BBSRC,17/06/2022,Research Grant Expenditure,FG - Accounts & Business Planning,Cardiff University,99745461,15761.60,Research Grant Expenditure
BEIS,UKRI - BBSRC,17/06/2022,Research Grant Expenditure,FG - Accounts & Business Planning,Birkbeck College,99745462,-671.73,Research Grant Expenditure
BEIS,UKRI - BBSRC,17/06/2022,Capital Grants & Equipment to HEIs,FG - Accounts & Business Planning,University of York,99745463,-152.82,Capital Grants & Equipment to HEIs
BEIS,UKRI - BBSRC,17/06/2022,Research Grant Expenditure,FG - Accounts & Business Planning,University of York,99745463,39448.30,Research Grant Expenditure
BEIS,UKRI - BBSRC,17/06/2022,Capital Grants & Equipment to HEIs,FG - Accounts & Business Planning,University of Leicester,99745464,-15.19,Capital Grants & Equipment to HEIs
BEIS,UKRI - BBSRC,17/06/2022,Research Grant Expenditure,FG - Accounts & Business Planning,University of Leicester,99745464,49663.90,Research Grant Expenditure
BEIS,UKRI - BBSRC,17/06/2022,Research Grant Expenditure,FG - Accounts & Business Planning,King's College London,99745465,36155.75,Research Grant Expenditure
BEIS,UKRI - BBSRC,17/06/2022,Research Grant Expenditure,FG - Accounts & Business Planning,King's College London,99745466,16635.31,Research Grant Expenditure
BEIS,UKRI - BBSRC,17/06/2022,Research Grant Expenditure,FG - Accounts & Business Planning,University of Liverpool,99745467,545.60,Research Grant Expenditure
BEIS,UKRI - BBSRC,17/06/2022,Research Grant Expenditure,FG - Accounts & Business Planning,University of Sussex,99745468,34211.57,Research Grant Expenditure
BEIS,UKRI - BBSRC,17/06/2022,Research Grant Expenditure,FG - Accounts & Business Planning,Earlham Institute,99745469,-582.58,Research Grant Expenditure
BEIS,UKRI - BBSRC,17/06/2022,Research Grant Expenditure,FG - Accounts & Business Planning,The University of Manchester,99745470,15778.45,Research Grant Expenditure
BEIS,UKRI - BBSRC,17/06/2022,Research Grant Expenditure,FG - Accounts & Business Planning,University of Durham,99745471,27764.75,Research Grant Expenditure
BEIS,UKRI - BBSRC,17/06/2022,Research Grant Expenditure,FG - Accounts & Business Planning,University of Reading,99745472,39385.74,Research Grant Expenditure
BEIS,UKRI - BBSRC,17/06/2022,Research Grant Expenditure,FG - Accounts & Business Planning,University of Cambridge,99745473,53712.45,Research Grant Expenditure
BEIS,UKRI - BBSRC,17/06/2022,Research Grant Expenditure,FG - Accounts & Business Planning,University of Aberdeen,99745474,27502.96,Research Grant Expenditure
BEIS,UKRI - BBSRC,17/06/2022,Research Grant Expenditure,FG - Accounts & Business Planning,King's College London,99745475,25078.33,Research Grant Expenditure
BEIS,UKRI - BBSRC,17/06/2022,Research Grant Expenditure,FG - Accounts & Business Planning,University of Southampton GRANT,99745476,37537.34,Research Grant Expenditure
BEIS,UKRI - BBSRC,17/06/2022,Research Grant Expenditure,FG - Accounts & Business Planning,The University of Manchester,99745477,107468.47,Research Grant Expenditure
BEIS,UKRI - BBSRC,17/06/2022,Research Grant Expenditure,FG - Accounts & Business Planning,Cardiff University,99745478,61017.03,Research Grant Expenditure
BEIS,UKRI - BBSRC,17/06/2022,Research Grant Expenditure,FG - Accounts & Business Planning,University of Southampton GRANT,99745479,53830.75,Research Grant Expenditure
BEIS,UKRI - BBSRC,17/06/2022,Research Grant Expenditure,FG - Accounts & Business Planning,University of Oxford,99745480,16911.58,Research Grant Expenditure
BEIS,UKRI - BBSRC,17/06/2022,Research Grant Expenditure,FG - Accounts & Business Planning,Nottingham Trent University,99745481,58293.82,Research Grant Expenditure
BEIS,UKRI - BBSRC,17/06/2022,Research Grant Expenditure,FG - Accounts & Business Planning,Imperial College London,99745482,33595.16,Research Grant Expenditure
BEIS,UKRI - BBSRC,17/06/2022,Research Grant Expenditure,FG - Accounts & Business Planning,University College London,99745483,45684.33,Research Grant Expenditure
BEIS,UKRI - BBSRC,17/06/2022,Research Grant Expenditure,FG - Accounts & Business Planning,University of Sussex,99745484,61253.64,Research Grant Expenditure
BEIS,UKRI - BBSRC,17/06/2022,Research Grant Expenditure,FG - Accounts & Business Planning,University of Leeds,99745485,24316.46,Research Grant Expenditure
BEIS,UKRI - BBSRC,17/06/2022,Research Grant Expenditure,FG - Accounts & Business Planning,London School of Hygiene & Tropical Medicine,99745486,23910.68,Research Grant Expenditure
BEIS,UKRI - BBSRC,17/06/2022,Research Grant Expenditure,FG - Accounts & Business Planning,Royal Botanic Gardens Kew,99745487,-9109.51,Research Grant Expenditure
BEIS,UKRI - BBSRC,17/06/2022,Research Grant Expenditure,FG - Accounts & Business Planning,Nottingham Trent University,99745488,38248.89,Research Grant Expenditure
BEIS,UKRI - BBSRC,17/06/2022,Research Grant Expenditure,FG - Accounts & Business Planning,Imperial College London,99745489,31648.53,Research Grant Expenditure
BEIS,UKRI - BBSRC,17/06/2022,Research Grant Expenditure,FG - Accounts & Business Planning,Bangor University,99745490,-1502.81,Research Grant Expenditure
BEIS,UKRI - BBSRC,17/06/2022,Research Grant Expenditure,FG - Accounts & Business Planning,University of Edinburgh,99745491,-20995.69,Research Grant Expenditure
BEIS,UKRI - BBSRC,17/06/2022,Research Grant Expenditure,FG - Accounts & Business Planning,University College London,99745492,16451.14,Research Grant Expenditure
BEIS,UKRI - BBSRC,17/06/2022,Research Grant Expenditure,FG - Accounts & Business Planning,King's College London,99745493,383.66,Research Grant Expenditure
BEIS,UKRI - BBSRC,17/06/2022,Research Grant Expenditure,FG - Accounts & Business Planning,King's College London,99745494,40241.79,Research Grant Expenditure
BEIS,UKRI - BBSRC,17/06/2022,Capital Grants & Equipment to HEIs,FG - Accounts & Business Planning,King's College London,99745495,-5777.10,Capital Grants & Equipment to HEIs
BEIS,UKRI - BBSRC,17/06/2022,Research Grant Expenditure,FG - Accounts & Business Planning,King's College London,99745495,24979.66,Research Grant Expenditure
BEIS,UKRI - BBSRC,17/06/2022,Research Grant Expenditure,FG - Accounts & Business Planning,University of Nottingham,99745496,17691.22,Research Grant Expenditure
BEIS,UKRI - BBSRC,17/06/2022,Research Grant Expenditure,FG - Accounts & Business Planning,King's College London,99745497,27806.96,Research Grant Expenditure
BEIS,UKRI - BBSRC,17/06/2022,Research Grant Expenditure,FG - Accounts & Business Planning,University of Edinburgh,99745498,-273.60,Research Grant Expenditure
BEIS,UKRI - BBSRC,17/06/2022,Research Grant Expenditure,FG - Accounts & Business Planning,University of Nottingham,99745499,14814.17,Research Grant Expenditure
BEIS,UKRI - BBSRC,17/06/2022,Research Grant Expenditure,FG - Accounts & Business Planning,King's College London,99745500,24559.23,Research Grant Expenditure
BEIS,UKRI - BBSRC,17/06/2022,Research Grant Expenditure,FG - Accounts & Business Planning,University of Oxford,99745501,-31303.14,Research Grant Expenditure
BEIS,UKRI - BBSRC,17/06/2022,Research Grant Expenditure,FG - Accounts & Business Planning,University of Reading,99745502,1431.15,Research Grant Expenditure
BEIS,UKRI - BBSRC,17/06/2022,Research Grant Expenditure,FG - Accounts & Business Planning,Bangor University,99745503,22042.80,Research Grant Expenditure
BEIS,UKRI - BBSRC,17/06/2022,Research Grant Expenditure,FG - Accounts & Business Planning,University of Leeds,99745504,-3966.31,Research Grant Expenditure
BEIS,UKRI - BBSRC,17/06/2022,Research Grant Expenditure,FG - Accounts & Business Planning,University of Kent,99745505,-7607.27,Research Grant Expenditure
BEIS,UKRI - BBSRC,17/06/2022,Research Grant Expenditure,FG - Accounts & Business Planning,University of Edinburgh,99745506,-987.91,Research Grant Expenditure
BEIS,UKRI - BBSRC,17/06/2022,Capital Grants & Equipment to HEIs,FG - Accounts & Business Planning,University of Sheffield,99745507,-4291.22,Capital Grants & Equipment to HEIs
BEIS,UKRI - BBSRC,17/06/2022,Research Grant Expenditure,FG - Accounts & Business Planning,University of Sheffield,99745507,39591.77,Research Grant Expenditure
BEIS,UKRI - BBSRC,17/06/2022,Research Grant Expenditure,FG - Accounts & Business Planning,The University of Manchester,99746270,25000.01,Research Grant Expenditure
BEIS,UKRI - BBSRC,17/06/2022,Research Grant Expenditure,FG - Accounts & Business Planning,University of Liverpool,99746271,25000.01,Research Grant Expenditure
BEIS,UKRI - BBSRC,17/06/2022,Research Grant Expenditure,FG - Accounts & Business Planning,University of York,99746272,25000.01,Research Grant Expenditure
BEIS,UKRI - BBSRC,17/06/2022,Research Grant Expenditure,FG - Accounts & Business Planning,Rothamsted Research Ltd,99746273,25000.01,Research Grant Expenditure
BEIS,UKRI - BBSRC,17/06/2022,Research Grant Expenditure,FG - Accounts & Business Planning,University of Bristol GRANT,99746274,25000.01,Research Grant Expenditure
BEIS,UKRI - BBSRC,17/06/2022,Research Grant Expenditure,FG - Accounts & Business Planning,University of St Andrews,99746275,25000.01,Research Grant Expenditure
BEIS,UKRI - BBSRC,17/06/2022,Research Grant Expenditure,FG - Accounts & Business Planning,University of Essex,99746276,25000.01,Research Grant Expenditure
BEIS,UKRI - BBSRC,17/06/2022,Research Grant Expenditure,FG - Accounts & Business Planning,University of Leicester,99746277,25000.01,Research Grant Expenditure
BEIS,UKRI - BBSRC,17/06/2022,Research Grant Expenditure,FG - Accounts & Business Planning,University of Kent,99746278,25000.01,Research Grant Expenditure
BEIS,UKRI - BBSRC,17/06/2022,Research Grant Expenditure,FG - Accounts & Business Planning,University of Birmingham GRANT,99746279,25000.01,Research Grant Expenditure
BEIS,UKRI - BBSRC,17/06/2022,Research Grant Expenditure,FG - Accounts & Business Planning,The Pirbright Institute,99746280,25000.01,Research Grant Expenditure
BEIS,UKRI - BBSRC,17/06/2022,Research Grant Expenditure,FG - Accounts & Business Planning,University of Oxford,99746281,25000.01,Research Grant Expenditure
BEIS,UKRI - BBSRC,17/06/2022,Research Grant Expenditure,FG - Accounts & Business Planning,University of Glasgow,99746282,25000.01,Research Grant Expenditure
BEIS,UKRI - BBSRC,17/06/2022,Research Grant Expenditure,FG - Accounts & Business Planning,University of Edinburgh,99746283,49999.99,Research Grant Expenditure
BEIS,UKRI - BBSRC,17/06/2022,Research Grant Expenditure,FG - Accounts & Business Planning,University of Cambridge,99746284,25000.01,Research Grant Expenditure
BEIS,UKRI - BBSRC,17/06/2022,Research Grant Expenditure,FG - Accounts & Business Planning,Queen's University Belfast GRANT,99746285,25000.01,Research Grant Expenditure
BEIS,UKRI - BBSRC,17/06/2022,Research Grant Expenditure,FG - Accounts & Business Planning,University College London,99746286,25000.01,Research Grant Expenditure
BEIS,UKRI - BBSRC,17/06/2022,Research Grant Expenditure,FG - Accounts & Business Planning,Queen Mary University of London,99746287,25000.01,Research Grant Expenditure
BEIS,UKRI - BBSRC,17/06/2022,Research Grant Expenditure,FG - Accounts & Business Planning,Imperial College London,99746288,25000.01,Research Grant Expenditure
BEIS,UKRI - BBSRC,17/06/2022,Research Grant Expenditure,FG - Accounts & Business Planning,Cardiff University,99746289,25000.01,Research Grant Expenditure
BEIS,UKRI - BBSRC,17/06/2022,Research Grant Expenditure,FG - Accounts & Business Planning,Aston University,99746290,25000.01,Research Grant Expenditure
BEIS,UKRI - BBSRC,17/06/2022,Research Grant Expenditure,FG - Accounts & Business Planning,University of Leeds,99746291,25000.01,Research Grant Expenditure
BEIS,UKRI - BBSRC,17/06/2022,Research Grant Expenditure,FG - Accounts & Business Planning,Aberystwyth University,99746292,47500.01,Research Grant Expenditure
BEIS,UKRI - BBSRC,17/06/2022,Capital Grants & Equipment to HEIs,FG - Accounts & Business Planning,University of Nottingham,99746293,1875.00,Capital Grants & Equipment to HEIs
